Body Name,Body,Service Area Catergorisation,Service Division Catergorisation,Responsible Unit,Expenses Type,Detailed Expenses Type,Expenses Code,Date,Transaction Number,Amount,Capital / Revenue,Supplier Name,Supplier ID
North East Lincolnshire Council,http://statistics.data.gov.uk/id/local-authority/00FC,People And Communities,Vulnerable Young People,Through Care & Disability,Other Agencies,Personal Allowance,PJ122,5/20/2013,198145,282.65,REVENUE,16+ SERVICES,100943
North East Lincolnshire Council,http://statistics.data.gov.uk/id/local-authority/00FC,People And Communities,Vulnerable Young People,Through Care & Disability,Other Agencies,Incentive Payment,PJ124,5/20/2013,198145,384.00,REVENUE,16+ SERVICES,100943
North East Lincolnshire Council,http://statistics.data.gov.uk/id/local-authority/00FC,People And Communities,Childrens Hlth & Family Supp,Childrens Centre Development,Other Agencies,Further Ed Emp & Training,PJ130,5/8/2013,195336,270.00,REVENUE,1ST AID MATTERS,103999
North East Lincolnshire Council,http://statistics.data.gov.uk/id/local-authority/00FC,Resources,Commission & Information Sys,Head Commission & Info Systems,Private Contractors,Third Party Prov - Private,PH101,5/7/2013,194685,"7,284.00",REVENUE,3G EVOLUTION LTD,119701
North East Lincolnshire Council,http://statistics.data.gov.uk/id/local-authority/00FC,People And Communities,Vulnerable Young People,Placement & Support,Miscellaneous Expenses,Activities - Service Users,LL114,5/14/2013,197237,280.31,REVENUE,PETTY CASH,REDACTED
North East Lincolnshire Council,http://statistics.data.gov.uk/id/local-authority/00FC,People And Communities,Vulnerable Young People,Placement & Support,Catering,Provisions,LB101,5/14/2013,197237,311.74,REVENUE,PETTY CASH,REDACTED
North East Lincolnshire Council,http://statistics.data.gov.uk/id/local-authority/00FC,People And Communities,Vulnerable Young People,Placement & Support,Clothes Uniforms And Laundry,Uniforms,LC102,5/14/2013,197237,437.37,REVENUE,PETTY CASH,REDACTED
North East Lincolnshire Council,http://statistics.data.gov.uk/id/local-authority/00FC,People And Communities,Vulnerable Young People,Placement & Support,Private Contractors,Third Party Prov - Private,PH101,5/8/2013,194790,"4,650.00",REVENUE,A WILDERNESS WAY LTD,102537
North East Lincolnshire Council,http://statistics.data.gov.uk/id/local-authority/00FC,People And Communities,Vulnerable Young People,Placement & Support,Private Contractors,Third Party Prov - Private,PH101,5/8/2013,194789,"4,650.00",REVENUE,A WILDERNESS WAY LTD,102537
North East Lincolnshire Council,http://statistics.data.gov.uk/id/local-authority/00FC,People And Communities,Vulnerable Young People,Placement & Support,Private Contractors,Third Party Prov - Private,PH101,5/29/2013,196901,"4,650.00",REVENUE,A WILDERNESS WAY LTD,102537
North East Lincolnshire Council,http://statistics.data.gov.uk/id/local-authority/00FC,People And Communities,Vulnerable Young People,Placement & Support,Private Contractors,Third Party Prov - Private,PH101,5/27/2013,198786,"4,650.00",REVENUE,A WILDERNESS WAY LTD,102537
North East Lincolnshire Council,http://statistics.data.gov.uk/id/local-authority/00FC,People And Communities,Vulnerable Young People,Placement & Support,Private Contractors,Third Party Prov - Private,PH101,5/21/2013,196891,"4,650.00",REVENUE,A WILDERNESS WAY LTD,102537
North East Lincolnshire Council,http://statistics.data.gov.uk/id/local-authority/00FC,People And Communities,Vulnerable Young People,Sen/Inclusion,Private Contractors,Third Party Prov - Private,PH101,5/31/2013,199919,"7,638.00",REVENUE,A4E CONSULT LTD,101656
North East Lincolnshire Council,http://statistics.data.gov.uk/id/local-authority/00FC,People And Communities,Vulnerable Young People,Through Care & Disability,Private Contractors,Third Party Prov - Private,PH101,5/21/2013,197244,327.75,REVENUE,ABBEY HOMECARE,119247
North East Lincolnshire Council,http://statistics.data.gov.uk/id/local-authority/00FC,People And Communities,Improved Health,Supporting People,Other Agencies,Third Pp - Block Gross,PJ103,5/30/2013,199857,REDACTED COMMERCIALLY SENSITIVE,REVENUE,ABBEYFIELD,100331
North East Lincolnshire Council,http://statistics.data.gov.uk/id/local-authority/00FC,Environment Economy & Housing,Development,Strat Hous Out Of Scope,Private Contractors,Third Party Prov - Private,PH101,5/8/2013,194801,702.00,REVENUE,ABRITAS LTD,102476
North East Lincolnshire Council,http://statistics.data.gov.uk/id/local-authority/00FC,Environment Economy & Housing,Development,Strat Hous Out Of Scope,Private Contractors,Third Party Prov - Private,PH101,5/8/2013,194802,"1,500.00",REVENUE,ABRITAS LTD,102476
North East Lincolnshire Council,http://statistics.data.gov.uk/id/local-authority/00FC,Environment Economy & Housing,Development,Community Investment Team,Miscellaneous Expenses,Legal Fees - General,LL103,5/27/2013,198793,"2,395.40",REVENUE,ACCESS REGENERATION LTD,119929
North East Lincolnshire Council,http://statistics.data.gov.uk/id/local-authority/00FC,Environment Economy & Housing,Development,Transport Policy,Print Stationery / Gen Off Exp,Advertising,LD104,5/2/2013,194930,"5,000.00",REVENUE,ACT NOW TRAINING LTD,118744
North East Lincolnshire Council,http://statistics.data.gov.uk/id/local-authority/00FC,Resources,Governance & Business Support,Legal Services,Direct Employee Expenses,Agency Staff,EA105,5/2/2013,193048,"6,586.00",REVENUE,AD LITEM LEGAL SERVICES,104447
North East Lincolnshire Council,http://statistics.data.gov.uk/id/local-authority/00FC,Resources,Finance & Assets,Income & Payments Service,Print Stationery / Gen Off Exp,Printing And Stationery,LD103,5/7/2013,194929,"1,990.95",REVENUE,ADARE LIMITED,109922
North East Lincolnshire Council,http://statistics.data.gov.uk/id/local-authority/00FC,Resources,Finance & Assets,Income & Payments Service,Print Stationery / Gen Off Exp,Printing And Stationery,LD103,5/7/2013,194929,"1,990.96",REVENUE,ADARE LIMITED,109922
North East Lincolnshire Council,http://statistics.data.gov.uk/id/local-authority/00FC,Resources,Finance & Assets,Income & Payments Service,Print Stationery / Gen Off Exp,Printing And Stationery,LD103,5/7/2013,194929,"9,291.11",REVENUE,ADARE LIMITED,109922
North East Lincolnshire Council,http://statistics.data.gov.uk/id/local-authority/00FC,Chief Executive,Public Health,Directors Public Health,Private Contractors,Contract Payments,PH105,5/21/2013,197539,"31,815.17",REVENUE,ADDACTION,119878
North East Lincolnshire Council,http://statistics.data.gov.uk/id/local-authority/00FC,People And Communities,Vulnerable Young People,Placement & Support,Private Contractors,Third Party Prov - Private,PH101,5/30/2013,196877,"1,194.42",REVENUE,ADOPTION MATTERS NORTHWEST,112108
North East Lincolnshire Council,http://statistics.data.gov.uk/id/local-authority/00FC,People And Communities,Vulnerable Young People,Placement & Support,Print Stationery / Gen Off Exp,Printing And Stationery,LD103,5/2/2013,193474,418.50,REVENUE,ADOPTION UK,101206
North East Lincolnshire Council,http://statistics.data.gov.uk/id/local-authority/00FC,People And Communities,Vulnerable Young People,Placement & Support,Print Stationery / Gen Off Exp,Printing And Stationery,LD103,5/30/2013,193476,418.50,REVENUE,ADOPTION UK,101206
North East Lincolnshire Council,http://statistics.data.gov.uk/id/local-authority/00FC,People And Communities,Vulnerable Young People,Placement & Support,Print Stationery / Gen Off Exp,Advertising,LD104,5/30/2013,199484,550.00,REVENUE,ADOPTION UK,101206
North East Lincolnshire Council,http://statistics.data.gov.uk/id/local-authority/00FC,Chief Executive,Chief Executive,Chief Exec & Support,Print Stationery / Gen Off Exp,Printing And Stationery,LD103,5/15/2013,194613,308.50,REVENUE,ADVERTISING GIFT CONNECT LTD,119559
North East Lincolnshire Council,http://statistics.data.gov.uk/id/local-authority/00FC,People And Communities,Improved Health,Improved Health Operational,Equip / Furniture / Materials,Health & Safety Supplies,LA116,5/2/2013,194678,561.00,REVENUE,AIDAPT BATHROOMS LTD,101164
North East Lincolnshire Council,http://statistics.data.gov.uk/id/local-authority/00FC,Resources,Finance & Assets,Income & Payments Service,Indirect Employee Expenses,Staff Training,EB122,5/9/2013,196188,699.00,REVENUE,AIREY CONSULTANCY SERVICES LTD,109816
North East Lincolnshire Council,http://statistics.data.gov.uk/id/local-authority/00FC,Environment Economy & Housing,Neighbourhood Services,Grounds And Street Cleansing,Private Contractors,Third Party Prov - Private,PH101,5/10/2013,189812,-940.00,REVENUE,AJET DRAIN SERVICES,102888
North East Lincolnshire Council,http://statistics.data.gov.uk/id/local-authority/00FC,Environment Economy & Housing,Neighbourhood Services,Grounds And Street Cleansing,Private Contractors,Third Party Prov - Private,PH101,5/27/2013,199317,480.00,REVENUE,AJET DRAIN SERVICES,102888
North East Lincolnshire Council,http://statistics.data.gov.uk/id/local-authority/00FC,Environment Economy & Housing,Development,Community Investment Team,Private Contractors,Third Party Prov - Private,PH101,5/29/2013,199017,"1,250.00",REVENUE,ALCREST (NORTHERN) LTD,103868
North East Lincolnshire Council,http://statistics.data.gov.uk/id/local-authority/00FC,Environment Economy & Housing,Development,Community Investment Team,Private Contractors,Third Party Prov - Private,PH101,5/7/2013,182309,"10,000.00",REVENUE,ALCREST (NORTHERN) LTD,103868
North East Lincolnshire Council,http://statistics.data.gov.uk/id/local-authority/00FC,Resources,Commission & Information Sys,Information Technology,Communications And Computing,Computer S/Ware - Purchases,LF101,5/15/2013,196424,"6,327.00",REVENUE,ALIGNED ASSETS LTD,101581
North East Lincolnshire Council,http://statistics.data.gov.uk/id/local-authority/00FC,Environment Economy & Housing,Neighbourhood Services,Grounds And Street Cleansing,Direct Transport Costs,Vehicles - Running Costs,JA104,5/15/2013,196248,519.84,REVENUE,ALLSTAR BUSINESS SOLUTIONS LTD,108278
North East Lincolnshire Council,http://statistics.data.gov.uk/id/local-authority/00FC,Environment Economy & Housing,Neighbourhood Services,Grounds And Street Cleansing,Direct Transport Costs,Vehicles - Running Costs,JA104,5/15/2013,196248,594.56,REVENUE,ALLSTAR BUSINESS SOLUTIONS LTD,108278
North East Lincolnshire Council,http://statistics.data.gov.uk/id/local-authority/00FC,Environment Economy & Housing,Culture Leisure & Sport,Tourist Information Centre,Miscellaneous Income,Miscellaneous Income,VG101,5/8/2013,195570,REDACTED COMMERCIALLY SENSITIVE,REVENUE,AMVALE LIMITED,101030
North East Lincolnshire Council,http://statistics.data.gov.uk/id/local-authority/00FC,People And Communities,Vulnerable Young People,School Access Governor Student,Contract Hire-Operating Leases,Vehicles - Contract Hire,JC101,5/2/2013,194196,REDACTED COMMERCIALLY SENSITIVE,REVENUE,AMVALE LIMITED,101030
North East Lincolnshire Council,http://statistics.data.gov.uk/id/local-authority/00FC,People And Communities,Vulnerable Young People,School Access Governor Student,Contract Hire-Operating Leases,Vehicles - Contract Hire,JC101,5/2/2013,194199,REDACTED COMMERCIALLY SENSITIVE,REVENUE,AMVALE LIMITED,101030
North East Lincolnshire Council,http://statistics.data.gov.uk/id/local-authority/00FC,People And Communities,Vulnerable Young People,School Access Governor Student,Contract Hire-Operating Leases,Vehicles - Contract Hire,JC101,5/2/2013,194197,REDACTED COMMERCIALLY SENSITIVE,REVENUE,AMVALE LIMITED,101030
North East Lincolnshire Council,http://statistics.data.gov.uk/id/local-authority/00FC,People And Communities,Vulnerable Young People,School Access Governor Student,Contract Hire-Operating Leases,Vehicles - Contract Hire,JC101,5/30/2013,199764,REDACTED COMMERCIALLY SENSITIVE,REVENUE,AMVALE LIMITED,101030
North East Lincolnshire Council,http://statistics.data.gov.uk/id/local-authority/00FC,People And Communities,Improved Health,Supporting People,Other Agencies,Third Pp - Block Gross,PJ103,5/30/2013,199856,REDACTED COMMERCIALLY SENSITIVE,REVENUE,ANCHOR TRUST,100327
North East Lincolnshire Council,http://statistics.data.gov.uk/id/local-authority/00FC,Resources,Finance & Assets,Chief Finance Officer,Direct Employee Expenses,Agency Staff,EA105,5/27/2013,196843,870.00,REVENUE,ANGIE RIDGEWELL ASSOCIATES LTD,110200
North East Lincolnshire Council,http://statistics.data.gov.uk/id/local-authority/00FC,Environment Economy & Housing,Culture Leisure & Sport,Discovery Centre,Equip / Furniture / Materials,Goods For Resale,LA123,5/23/2013,190694,-14.20,REVENUE,ANGLIA WOODS,100805
North East Lincolnshire Council,http://statistics.data.gov.uk/id/local-authority/00FC,Environment Economy & Housing,Culture Leisure & Sport,Bradley Playing Fields,Equip / Furniture / Materials,Goods For Resale,LA123,5/23/2013,193708,-13.15,REVENUE,ANGLIA WOODS,100805
North East Lincolnshire Council,http://statistics.data.gov.uk/id/local-authority/00FC,Environment Economy & Housing,Culture Leisure & Sport,Discovery Centre,Equip / Furniture / Materials,Goods For Resale,LA123,5/30/2013,199473,-10.82,REVENUE,ANGLIA WOODS,100805
North East Lincolnshire Council,http://statistics.data.gov.uk/id/local-authority/00FC,Environment Economy & Housing,Culture Leisure & Sport,Discovery Centre,Equip / Furniture / Materials,Goods For Resale,LA123,5/2/2013,187903,-6.12,REVENUE,ANGLIA WOODS,100805
North East Lincolnshire Council,http://statistics.data.gov.uk/id/local-authority/00FC,Environment Economy & Housing,Culture Leisure & Sport,Discovery Centre,Equip / Furniture / Materials,Goods For Resale,LA123,5/23/2013,188236,305.16,REVENUE,ANGLIA WOODS,100805
North East Lincolnshire Council,http://statistics.data.gov.uk/id/local-authority/00FC,Environment Economy & Housing,Culture Leisure & Sport,Discovery Centre,Equip / Furniture / Materials,Goods For Resale,LA123,5/30/2013,199569,324.22,REVENUE,ANGLIA WOODS,100805
North East Lincolnshire Council,http://statistics.data.gov.uk/id/local-authority/00FC,Environment Economy & Housing,Culture Leisure & Sport,Discovery Centre,Equip / Furniture / Materials,Goods For Resale,LA123,5/27/2013,198439,461.28,REVENUE,ANGLIA WOODS,100805
North East Lincolnshire Council,http://statistics.data.gov.uk/id/local-authority/00FC,Resources,Finance & Assets,Facilities Management,Water Services,Water,GE101,5/15/2013,197181,290.63,REVENUE,ANGLIAN WATER,100508
North East Lincolnshire Council,http://statistics.data.gov.uk/id/local-authority/00FC,Resources,Finance & Assets,Commercial Estate,Water Services,Water,GE101,5/14/2013,197235,315.09,REVENUE,ANGLIAN WATER,100508
North East Lincolnshire Council,http://statistics.data.gov.uk/id/local-authority/00FC,People And Communities,Vulnerable Young People,Placement & Support,Water Services,Water,GE101,5/15/2013,197185,413.16,REVENUE,ANGLIAN WATER,100508
North East Lincolnshire Council,http://statistics.data.gov.uk/id/local-authority/00FC,Resources,Finance & Assets,Commercial Estate,Water Services,Water,GE101,5/15/2013,197192,431.35,REVENUE,ANGLIAN WATER,100508
North East Lincolnshire Council,http://statistics.data.gov.uk/id/local-authority/00FC,Environment Economy & Housing,Development,Car Parks,Water Services,Water,GE101,5/22/2013,198590,433.60,REVENUE,ANGLIAN WATER,100508
North East Lincolnshire Council,http://statistics.data.gov.uk/id/local-authority/00FC,Resources,Finance & Assets,Facilities Management,Water Services,Water,GE101,5/15/2013,197191,590.00,REVENUE,ANGLIAN WATER,100508
North East Lincolnshire Council,http://statistics.data.gov.uk/id/local-authority/00FC,Resources,Finance & Assets,Facilities Management,Water Services,Water,GE101,5/14/2013,197178,630.27,REVENUE,ANGLIAN WATER,100508
North East Lincolnshire Council,http://statistics.data.gov.uk/id/local-authority/00FC,Resources,Finance & Assets,Facilities Management,Water Services,Water,GE101,5/14/2013,197283,858.95,REVENUE,ANGLIAN WATER,100508
North East Lincolnshire Council,http://statistics.data.gov.uk/id/local-authority/00FC,People And Communities,Childrens Hlth & Family Supp,Childrens Centre Development,Water Services,Water,GE101,5/15/2013,197285,898.72,REVENUE,ANGLIAN WATER,100508
North East Lincolnshire Council,http://statistics.data.gov.uk/id/local-authority/00FC,Resources,Finance & Assets,Facilities Management,Water Services,Water,GE101,5/14/2013,197283,950.93,REVENUE,ANGLIAN WATER,100508
North East Lincolnshire Council,http://statistics.data.gov.uk/id/local-authority/00FC,Resources,Finance & Assets,Facilities Management,Water Services,Water,GE101,5/14/2013,197151,"1,217.99",REVENUE,ANGLIAN WATER,100508
North East Lincolnshire Council,http://statistics.data.gov.uk/id/local-authority/00FC,Environment Economy & Housing,Culture Leisure & Sport,Bradley Playing Fields,Water Services,Water,GE101,5/13/2013,195550,"1,681.59",REVENUE,ANGLIAN WATER,100508
North East Lincolnshire Council,http://statistics.data.gov.uk/id/local-authority/00FC,Resources,Finance & Assets,Facilities Management,Water Services,Water,GE101,5/15/2013,197208,"1,958.88",REVENUE,ANGLIAN WATER,100508
North East Lincolnshire Council,http://statistics.data.gov.uk/id/local-authority/00FC,Resources,Finance & Assets,Facilities Management,Water Services,Water,GE101,5/15/2013,197208,"2,096.23",REVENUE,ANGLIAN WATER,100508
North East Lincolnshire Council,http://statistics.data.gov.uk/id/local-authority/00FC,People And Communities,Childrens Hlth & Family Supp,Childrens Centre Development,Equip / Furniture / Materials,Teaching Materials,LA117,5/21/2013,198319,765.00,REVENUE,ANNEXUS LTD,120045
North East Lincolnshire Council,http://statistics.data.gov.uk/id/local-authority/00FC,Resources,Governance & Business Support,Town Hall,Car Allowances,Travel - Employees,JF101,5/7/2013,194907,REDACTED COMMERCIALLY SENSITIVE,REVENUE,APEX CARS,102226
North East Lincolnshire Council,http://statistics.data.gov.uk/id/local-authority/00FC,Environment Economy & Housing,Neighbourhood Services,Neighbourhood Serv Mgmt A/C,Grants And Subscriptions,Subscriptions,LJ101,5/23/2013,198835,"3,159.00",REVENUE,APSE,101174
North East Lincolnshire Council,http://statistics.data.gov.uk/id/local-authority/00FC,Resources,Commission & Information Sys,Communications And Marketing,Private Contractors,Third Party Prov - Private,PH101,5/21/2013,196422,410.00,REVENUE,AR PRINTING LTD,100596
North East Lincolnshire Council,http://statistics.data.gov.uk/id/local-authority/00FC,Resources,Commission & Information Sys,Communications And Marketing,Private Contractors,Third Party Prov - Private,PH101,5/21/2013,196422,425.00,REVENUE,AR PRINTING LTD,100596
North East Lincolnshire Council,http://statistics.data.gov.uk/id/local-authority/00FC,Resources,Commission & Information Sys,Communications And Marketing,Private Contractors,Third Party Prov - Private,PH101,5/15/2013,196423,565.00,REVENUE,AR PRINTING LTD,100596
North East Lincolnshire Council,http://statistics.data.gov.uk/id/local-authority/00FC,Resources,Commission & Information Sys,Communications And Marketing,Private Contractors,Third Party Prov - Private,PH101,5/2/2013,194093,960.00,REVENUE,AR PRINTING LTD,100596
North East Lincolnshire Council,http://statistics.data.gov.uk/id/local-authority/00FC,Chief Executive,Chief Executive,Chief Exec & Support,Contributions To Provisions,Contributions - Communities,LK101,5/21/2013,196243,441.65,REVENUE,ARGOS BUSINESS SOLUTIONS,101032
North East Lincolnshire Council,http://statistics.data.gov.uk/id/local-authority/00FC,Resources,Finance & Assets,Commercial Estate,Water Services,Water,GE101,5/13/2013,196516,"1,055.71",REVENUE,ASSOCIATED BRITISH PORTS,100834
North East Lincolnshire Council,http://statistics.data.gov.uk/id/local-authority/00FC,Environment Economy & Housing,Culture Leisure & Sport,Tourist Information Centre,Private Contractors,Third Party Prov - Private,PH101,5/8/2013,194822,REDACTED COMMERCIALLY SENSITIVE,REVENUE,ATG VENUES UK LTD,102453
North East Lincolnshire Council,http://statistics.data.gov.uk/id/local-authority/00FC,Environment Economy & Housing,Culture Leisure & Sport,Leisure Contracts,Private Contractors,Contract Payments,PH105,5/8/2013,194823,REDACTED COMMERCIALLY SENSITIVE,REVENUE,ATG VENUES UK LTD,102453
North East Lincolnshire Council,http://statistics.data.gov.uk/id/local-authority/00FC,Environment Economy & Housing,Development,Community Investment Team,Private Contractors,Third Party Prov - Private,PH101,5/27/2013,199248,"1,280.00",REVENUE,AUDIO ISLAND LTD,119206
North East Lincolnshire Council,http://statistics.data.gov.uk/id/local-authority/00FC,Environment Economy & Housing,Culture Leisure & Sport,Library Service,Equip / Furniture / Materials,Library Books,LA120,5/8/2013,195571,-51.95,REVENUE,AUDIOGO LIMITED,102636
North East Lincolnshire Council,http://statistics.data.gov.uk/id/local-authority/00FC,Environment Economy & Housing,Culture Leisure & Sport,Library Service,Equip / Furniture / Materials,Library Books,LA120,5/30/2013,199295,333.56,REVENUE,AUDIOGO LIMITED,102636
North East Lincolnshire Council,http://statistics.data.gov.uk/id/local-authority/00FC,Environment Economy & Housing,Neighbourhood Services,Community Pride,Private Contractors,Third Party Prov - Private,PH101,5/7/2013,194141,350.00,REVENUE,AZTEC TRANSLATIONS,106512
North East Lincolnshire Council,http://statistics.data.gov.uk/id/local-authority/00FC,Environment Economy & Housing,Development,Community Learning Services,Equip / Furniture / Materials,Equipment - Purchase,LA101,5/2/2013,192331,-1.66,REVENUE,BAKER ROSS LTD,100778
North East Lincolnshire Council,http://statistics.data.gov.uk/id/local-authority/00FC,Cap Resources,Cap Finance And Assets,Property Planned Repairs,Cap Land/Build-Build Enh Wrk,Cap Land/Build-Build Enh Wrk,YA102,5/22/2013,198572,REDACTED COMMERCIALLY SENSITIVE,CAPITAL,BALFOUR BEATTY,102595
North East Lincolnshire Council,http://statistics.data.gov.uk/id/local-authority/00FC,Environment Economy & Housing,Development,In Scope Contract,Private Contractors,Contract Payments,PH105,5/21/2013,198357,REDACTED COMMERCIALLY SENSITIVE,REVENUE,BALFOUR BEATTY,102595
North East Lincolnshire Council,http://statistics.data.gov.uk/id/local-authority/00FC,Environment Economy & Housing,Development,In Scope Contract,Private Contractors,Contract Payments,PH105,5/21/2013,198357,REDACTED COMMERCIALLY SENSITIVE,REVENUE,BALFOUR BEATTY,102595
North East Lincolnshire Council,http://statistics.data.gov.uk/id/local-authority/00FC,Resources,Finance & Assets,Facilities Management,Rates,Rates,GD101,5/16/2013,198053,REDACTED COMMERCIALLY SENSITIVE,REVENUE,BALFOUR BEATTY,102595
North East Lincolnshire Council,http://statistics.data.gov.uk/id/local-authority/00FC,Environment Economy & Housing,Development,In Scope Contract,Private Contractors,Contract Payments,PH105,5/21/2013,198357,REDACTED COMMERCIALLY SENSITIVE,REVENUE,BALFOUR BEATTY,102595
North East Lincolnshire Council,http://statistics.data.gov.uk/id/local-authority/00FC,Environment Economy & Housing,Development,In Scope Contract,Private Contractors,Contract Payments,PH105,5/21/2013,198357,REDACTED COMMERCIALLY SENSITIVE,REVENUE,BALFOUR BEATTY,102595
North East Lincolnshire Council,http://statistics.data.gov.uk/id/local-authority/00FC,Environment Economy & Housing,Development,In Scope Contract,Private Contractors,Contract Payments,PH105,5/21/2013,198357,REDACTED COMMERCIALLY SENSITIVE,REVENUE,BALFOUR BEATTY,102595
North East Lincolnshire Council,http://statistics.data.gov.uk/id/local-authority/00FC,Environment Economy & Housing,Development,In Scope Contract,Private Contractors,Contract Payments,PH105,5/21/2013,198357,REDACTED COMMERCIALLY SENSITIVE,REVENUE,BALFOUR BEATTY,102595
North East Lincolnshire Council,http://statistics.data.gov.uk/id/local-authority/00FC,Resources,Finance & Assets,Contract Fee Asset Management,Private Contractors,Contract Payments,PH105,5/21/2013,198357,REDACTED COMMERCIALLY SENSITIVE,REVENUE,BALFOUR BEATTY,102595
North East Lincolnshire Council,http://statistics.data.gov.uk/id/local-authority/00FC,Environment Economy & Housing,Development,In Scope Contract,Private Contractors,Contract Payments,PH105,5/21/2013,198357,REDACTED COMMERCIALLY SENSITIVE,REVENUE,BALFOUR BEATTY,102595
North East Lincolnshire Council,http://statistics.data.gov.uk/id/local-authority/00FC,People And Communities,Vulnerable Young People,Sen/Inclusion,Other Local Authorities,Third Pp - Other Local Auth,PC101,5/7/2013,194692,"6,048.33",REVENUE,BARNARDO SERVICES LTD,101050
North East Lincolnshire Council,http://statistics.data.gov.uk/id/local-authority/00FC,People And Communities,Vulnerable Young People,Sen/Inclusion,Other Local Authorities,Third Pp - Other Local Auth,PC101,5/2/2013,194689,"16,128.88",REVENUE,BARNARDO SERVICES LTD,101050
North East Lincolnshire Council,http://statistics.data.gov.uk/id/local-authority/00FC,People And Communities,Vulnerable Young People,Placement & Support,Private Contractors,Third Party Prov - Private,PH101,5/7/2013,194464,"18,000.00",REVENUE,BARNARDOS,103030
North East Lincolnshire Council,http://statistics.data.gov.uk/id/local-authority/00FC,Environment Economy & Housing,Neighbourhood Services,Beach Safety,Rep Alterations Maint Building,Buildings - Repairs And Maint,GA102,5/22/2013,198316,375.00,REVENUE,BCJ CONSTRUCTION LTD,112224
North East Lincolnshire Council,http://statistics.data.gov.uk/id/local-authority/00FC,Environment Economy & Housing,Neighbourhood Services,Beach Safety,Rep Alterations Maint Building,Buildings - Repairs And Maint,GA102,5/22/2013,198312,568.40,REVENUE,BCJ CONSTRUCTION LTD,112224
North East Lincolnshire Council,http://statistics.data.gov.uk/id/local-authority/00FC,Environment Economy & Housing,Neighbourhood Services,Countryside Management,Rep Alterations Maint Building,Buildings - Repairs And Maint,GA102,5/21/2013,197391,"2,707.00",REVENUE,BCJ CONSTRUCTION LTD,112224
North East Lincolnshire Council,http://statistics.data.gov.uk/id/local-authority/00FC,Environment Economy & Housing,Neighbourhood Services,Beach Safety,Rep Alterations Maint Building,Buildings - Repairs And Maint,GA102,5/22/2013,198314,"2,754.00",REVENUE,BCJ CONSTRUCTION LTD,112224
North East Lincolnshire Council,http://statistics.data.gov.uk/id/local-authority/00FC,Environment Economy & Housing,Neighbourhood Services,Countryside Management,Rep Alterations Maint Building,Buildings - Repairs And Maint,GA102,5/22/2013,198311,"3,200.00",REVENUE,BCJ CONSTRUCTION LTD,112224
North East Lincolnshire Council,http://statistics.data.gov.uk/id/local-authority/00FC,Environment Economy & Housing,Neighbourhood Services,Countryside Management,Rep Alterations Maint Building,Buildings - Repairs And Maint,GA102,5/23/2013,198313,"3,793.00",REVENUE,BCJ CONSTRUCTION LTD,112224
North East Lincolnshire Council,http://statistics.data.gov.uk/id/local-authority/00FC,Environment Economy & Housing,Neighbourhood Services,Grounds And Street Cleansing,Grounds Maintenance Costs,Grounds Maintenance,GJ101,5/21/2013,197393,"5,837.00",REVENUE,BCJ CONSTRUCTION LTD,112224
North East Lincolnshire Council,http://statistics.data.gov.uk/id/local-authority/00FC,Environment Economy & Housing,Development,Community Investment Team,Private Contractors,Third Party Prov - Private,PH101,5/15/2013,194696,539.00,REVENUE,BE EVERYTHING LTD,109539
North East Lincolnshire Council,http://statistics.data.gov.uk/id/local-authority/00FC,Environment Economy & Housing,Development,Community Investment Team,Private Contractors,Third Party Prov - Private,PH101,5/2/2013,194471,567.88,REVENUE,BE EVERYTHING LTD,109539
North East Lincolnshire Council,http://statistics.data.gov.uk/id/local-authority/00FC,People And Communities,Childrens Hlth & Family Supp,Childrens Centre Development,Cleaning And Domestic Supplies,Refuse Collection,GH104,5/30/2013,199297,302.38,REVENUE,BELL WASTE CONTROL,101433
North East Lincolnshire Council,http://statistics.data.gov.uk/id/local-authority/00FC,People And Communities,Childrens Hlth & Family Supp,Childrens Centre Development,Cleaning And Domestic Supplies,Refuse Collection,GH104,5/7/2013,194826,336.96,REVENUE,BELL WASTE CONTROL,101433
North East Lincolnshire Council,http://statistics.data.gov.uk/id/local-authority/00FC,Environment Economy & Housing,Culture Leisure & Sport,Library Service,Equip / Furniture / Materials,Library Books,LA120,5/9/2013,196239,-8.19,REVENUE,BERTRAM LIBRARY SERVICES,101586
North East Lincolnshire Council,http://statistics.data.gov.uk/id/local-authority/00FC,Environment Economy & Housing,Culture Leisure & Sport,Library Service,Equip / Furniture / Materials,Library Books,LA120,5/20/2013,198112,-5.82,REVENUE,BERTRAM LIBRARY SERVICES,101586
North East Lincolnshire Council,http://statistics.data.gov.uk/id/local-authority/00FC,Environment Economy & Housing,Culture Leisure & Sport,Library Service,Equip / Furniture / Materials,Library Books,LA120,5/21/2013,198113,-3.63,REVENUE,BERTRAM LIBRARY SERVICES,101586
North East Lincolnshire Council,http://statistics.data.gov.uk/id/local-authority/00FC,Environment Economy & Housing,Culture Leisure & Sport,Library Service,Equip / Furniture / Materials,Library Books,LA120,5/21/2013,198181,275.17,REVENUE,BERTRAM LIBRARY SERVICES,101586
North East Lincolnshire Council,http://statistics.data.gov.uk/id/local-authority/00FC,Environment Economy & Housing,Culture Leisure & Sport,Library Service,Equip / Furniture / Materials,Library Books,LA120,5/8/2013,195466,357.09,REVENUE,BERTRAM LIBRARY SERVICES,101586
North East Lincolnshire Council,http://statistics.data.gov.uk/id/local-authority/00FC,Environment Economy & Housing,Culture Leisure & Sport,Library Service,Equip / Furniture / Materials,Library Books,LA120,5/9/2013,196226,364.91,REVENUE,BERTRAM LIBRARY SERVICES,101586
North East Lincolnshire Council,http://statistics.data.gov.uk/id/local-authority/00FC,Environment Economy & Housing,Culture Leisure & Sport,Library Service,Equip / Furniture / Materials,Library Books,LA120,5/7/2013,195469,453.27,REVENUE,BERTRAM LIBRARY SERVICES,101586
North East Lincolnshire Council,http://statistics.data.gov.uk/id/local-authority/00FC,Environment Economy & Housing,Culture Leisure & Sport,Community Support Mgmt A/C,Equip / Furniture / Materials,Library Books,LA120,5/30/2013,199585,482.43,REVENUE,BERTRAM LIBRARY SERVICES,101586
North East Lincolnshire Council,http://statistics.data.gov.uk/id/local-authority/00FC,Environment Economy & Housing,Culture Leisure & Sport,Library Service,Equip / Furniture / Materials,Library Books,LA120,5/8/2013,194887,515.00,REVENUE,BERTRAM LIBRARY SERVICES,101586
North East Lincolnshire Council,http://statistics.data.gov.uk/id/local-authority/00FC,Environment Economy & Housing,Culture Leisure & Sport,Library Service,Equip / Furniture / Materials,Library Books,LA120,5/7/2013,195465,593.31,REVENUE,BERTRAM LIBRARY SERVICES,101586
North East Lincolnshire Council,http://statistics.data.gov.uk/id/local-authority/00FC,Environment Economy & Housing,Culture Leisure & Sport,Library Service,Equip / Furniture / Materials,Library Books,LA120,5/20/2013,198148,867.29,REVENUE,BERTRAM LIBRARY SERVICES,101586
North East Lincolnshire Council,http://statistics.data.gov.uk/id/local-authority/00FC,Environment Economy & Housing,Development,Community Investment Team,Private Contractors,Third Party Prov - Private,PH101,5/7/2013,194815,656.25,REVENUE,BEST TRAINING (LINCS) LTD,106396
North East Lincolnshire Council,http://statistics.data.gov.uk/id/local-authority/00FC,Environment Economy & Housing,Development,Community Investment Team,Private Contractors,Third Party Prov - Private,PH101,5/2/2013,194124,693.00,REVENUE,BIG SKY PUBLISHING LTD,119601
North East Lincolnshire Council,http://statistics.data.gov.uk/id/local-authority/00FC,Chief Executive,Public Health,Public Hlth - Improved Health,Contributions To Provisions,Contributions - Other,LK103,5/2/2013,194085,"3,616.67",REVENUE,BIGFOOT ARTS EDUCATION UK,119506
North East Lincolnshire Council,http://statistics.data.gov.uk/id/local-authority/00FC,People And Communities,Vulnerable Young People,Through Care & Disability,Private Contractors,Third Party Prov - Private,PH101,5/2/2013,194890,504.00,REVENUE,BIO CLINICS LTD,120128
North East Lincolnshire Council,http://statistics.data.gov.uk/id/local-authority/00FC,Environment Economy & Housing,Culture Leisure & Sport,Library Service,Equip / Furniture / Materials,Library Books,LA120,5/9/2013,196281,791.67,REVENUE,BIRMINGHAM CITY COUNCIL,101363
North East Lincolnshire Council,http://statistics.data.gov.uk/id/local-authority/00FC,People And Communities,Vulnerable Young People,Sen/Inclusion,Communications And Computing,Telephones,LF112,5/29/2013,199341,"1,329.00",REVENUE,BIRMINGHAM TELECOM LTD,119995
North East Lincolnshire Council,http://statistics.data.gov.uk/id/local-authority/00FC,Cap Economy Env And Housing,Cap Development,Hps-Disabled Fac. Grants,Cap Grants To O/Side Sources,Cap Grants To O/Side Sources,YJ101,5/21/2013,194952,"2,750.00",CAPITAL,BLAKES BUILDING SERVICES,101805
North East Lincolnshire Council,http://statistics.data.gov.uk/id/local-authority/00FC,Chief Executive,Public Health,Public Hlth - Improved Health,Miscellaneous Expenses,Medical Supplies And Services,LL109,5/30/2013,199939,425.68,REVENUE,BOOTS THE CHEMIST,103912
North East Lincolnshire Council,http://statistics.data.gov.uk/id/local-authority/00FC,Resources,Commission & Information Sys,Information Technology,Communications And Computing,Computer H/Ware - Purchases,LF105,5/13/2013,196928,"5,668.50",REVENUE,BORRI LTD ( SYSTEMS HOUSE ),112737
North East Lincolnshire Council,http://statistics.data.gov.uk/id/local-authority/00FC,Cap Resources,Cap Commission & Inform System,Ict Strategy,Cap Land/Build-Build Enh Wrk,Cap Land/Build-Build Enh Wrk,YA102,5/13/2013,196929,"7,389.00",CAPITAL,BORRI LTD ( SYSTEMS HOUSE ),112737
North East Lincolnshire Council,http://statistics.data.gov.uk/id/local-authority/00FC,Cap Resources,Cap Commission & Inform System,Ict Strategy,Cap Veh Plt Eqp-Purchase,Cap Veh Plt Eqp-Purchase,YB101,5/15/2013,197538,"7,389.00",CAPITAL,BORRI LTD ( SYSTEMS HOUSE ),112737
North East Lincolnshire Council,http://statistics.data.gov.uk/id/local-authority/00FC,Resources,Commission & Information Sys,Information Technology,Communications And Computing,Computer S/Ware - Maintenance,LF102,5/23/2013,198204,-674.20,REVENUE,BOTTOMLINE TECHNOLOGIES,109292
North East Lincolnshire Council,http://statistics.data.gov.uk/id/local-authority/00FC,Resources,Commission & Information Sys,Information Technology,Communications And Computing,Computer S/Ware - Maintenance,LF102,5/23/2013,198141,828.56,REVENUE,BOTTOMLINE TECHNOLOGIES,109292
North East Lincolnshire Council,http://statistics.data.gov.uk/id/local-authority/00FC,Resources,Finance & Assets,Commercial Estate,Energy Costs,Electricity,GB102,5/13/2013,196515,"1,455.20",REVENUE,BOURNE LEISURE LTD,109336
North East Lincolnshire Council,http://statistics.data.gov.uk/id/local-authority/00FC,Resources,Finance & Assets,Commercial Estate,Energy Costs,Electricity,GB102,5/13/2013,196500,"1,465.85",REVENUE,BOURNE LEISURE LTD,109336
North East Lincolnshire Council,http://statistics.data.gov.uk/id/local-authority/00FC,Resources,Finance & Assets,Commercial Estate,Energy Costs,Electricity,GB102,5/13/2013,196515,"4,365.67",REVENUE,BOURNE LEISURE LTD,109336
North East Lincolnshire Council,http://statistics.data.gov.uk/id/local-authority/00FC,Resources,Finance & Assets,Commercial Estate,Energy Costs,Electricity,GB102,5/13/2013,196500,"4,397.49",REVENUE,BOURNE LEISURE LTD,109336
North East Lincolnshire Council,http://statistics.data.gov.uk/id/local-authority/00FC,Resources,Finance & Assets,Commercial Estate,Energy Costs,Electricity,GB102,5/13/2013,196506,"9,585.25",REVENUE,BOURNE LEISURE LTD,102429
North East Lincolnshire Council,http://statistics.data.gov.uk/id/local-authority/00FC,People And Communities,Vulnerable Young People,Strategic Management,Miscellaneous Expenses,Other Supplies & Services,LL110,5/2/2013,194629,290.74,REVENUE,BOX-IT HUMBERSIDE,112319
North East Lincolnshire Council,http://statistics.data.gov.uk/id/local-authority/00FC,People And Communities,Vulnerable Young People,Strategic Management,Miscellaneous Expenses,Other Supplies & Services,LL110,5/7/2013,194840,290.74,REVENUE,BOX-IT HUMBERSIDE,112319
North East Lincolnshire Council,http://statistics.data.gov.uk/id/local-authority/00FC,Cap Economy Env And Housing,Cap Development,Housing Assistance,Cap Grants To O/Side Sources,Cap Grants To O/Side Sources,YJ101,5/23/2013,191613,"1,422.03",CAPITAL,BRIAN KING HEATING & PLUMBING LTD,112869
North East Lincolnshire Council,http://statistics.data.gov.uk/id/local-authority/00FC,Resources,Finance & Assets,Commercial Estate,Cleaning And Domestic Supplies,Cleaning - Services,GH102,5/7/2013,195429,260.00,REVENUE,BRIANPLANT (HUMBERSIDE) LTD,100583
North East Lincolnshire Council,http://statistics.data.gov.uk/id/local-authority/00FC,Environment Economy & Housing,Neighbourhood Services,Grounds And Street Cleansing,Equip / Furniture / Materials,Equipment - Purchase,LA101,5/15/2013,194775,882.28,REVENUE,BRIANPLANT (HUMBERSIDE) LTD,100583
North East Lincolnshire Council,http://statistics.data.gov.uk/id/local-authority/00FC,People And Communities,Vulnerable Young People,Placement & Support,Indirect Employee Expenses,Staff Training,EB122,5/15/2013,196892,250.00,REVENUE,BRITISH AGENCIES FOR (DO NOT USE),100662
North East Lincolnshire Council,http://statistics.data.gov.uk/id/local-authority/00FC,People And Communities,Vulnerable Young People,Placement & Support,Grants And Subscriptions,Subscriptions,LJ101,5/15/2013,194698,606.48,REVENUE,BRITISH AGENCIES FOR (DO NOT USE),100662
North East Lincolnshire Council,http://statistics.data.gov.uk/id/local-authority/00FC,Resources,Finance & Assets,Facilities Management,Energy Costs,Gas,GB101,5/13/2013,196526,437.10,REVENUE,BRITISH GAS BUSINESS,104398
North East Lincolnshire Council,http://statistics.data.gov.uk/id/local-authority/00FC,People And Communities,Childrens Hlth & Family Supp,Childrens Centre Development,Energy Costs,Gas,GB101,5/23/2013,198473,375.48,REVENUE,BRITISH GAS TRADING LTD,101507
North East Lincolnshire Council,http://statistics.data.gov.uk/id/local-authority/00FC,People And Communities,Childrens Hlth & Family Supp,Childrens Centre Development,Energy Costs,Gas,GB101,5/2/2013,194566,387.20,REVENUE,BRITISH GAS TRADING LTD,101507
North East Lincolnshire Council,http://statistics.data.gov.uk/id/local-authority/00FC,People And Communities,Childrens Hlth & Family Supp,Childrens Centre Development,Energy Costs,Gas,GB101,5/30/2013,199605,395.78,REVENUE,BRITISH GAS TRADING LTD,101507
North East Lincolnshire Council,http://statistics.data.gov.uk/id/local-authority/00FC,Resources,Finance & Assets,Facilities Management,Energy Costs,Gas,GB101,5/14/2013,197241,681.32,REVENUE,BRITISH GAS TRADING LTD,101507
North East Lincolnshire Council,http://statistics.data.gov.uk/id/local-authority/00FC,People And Communities,Vulnerable Young People,Sen/Inclusion,Energy Costs,Gas,GB101,5/15/2013,196649,718.58,REVENUE,BRITISH GAS TRADING LTD,101507
North East Lincolnshire Council,http://statistics.data.gov.uk/id/local-authority/00FC,People And Communities,Childrens Hlth & Family Supp,Childrens Centre Development,Energy Costs,Gas,GB101,5/7/2013,195541,910.54,REVENUE,BRITISH GAS TRADING LTD,101507
North East Lincolnshire Council,http://statistics.data.gov.uk/id/local-authority/00FC,People And Communities,Childrens Hlth & Family Supp,Childrens Centre Development,Energy Costs,Gas,GB101,5/7/2013,194950,"1,953.73",REVENUE,BRITISH GAS TRADING LTD,101507
North East Lincolnshire Council,http://statistics.data.gov.uk/id/local-authority/00FC,Resources,Governance & Business Support,Customer Services,Print Stationery / Gen Off Exp,Printing And Stationery,LD103,5/28/2013,198360,"1,701.46",REVENUE,BRITISH TELECOMMUNICATIONS PLC,100974
North East Lincolnshire Council,http://statistics.data.gov.uk/id/local-authority/00FC,People And Communities,Vulnerable Young People,Placement & Support,Other Agencies,Additional Cost,PJ114,5/20/2013,195604,769.90,REVENUE,BUSI BODIES CHILDRENS NURSERY,112733
North East Lincolnshire Council,http://statistics.data.gov.uk/id/local-authority/00FC,Environment Economy & Housing,Neighbourhood Services,Garage & Fleet Strategy,Direct Transport Costs,Vehicles - Repairs And Maint,JA105,5/13/2013,196702,412.43,REVENUE,C F PARKINSON LIMITED,100553
North East Lincolnshire Council,http://statistics.data.gov.uk/id/local-authority/00FC,People And Communities,Improved Health,Trading Standards,Indirect Employee Expenses,Professional Fees - Employees,EB115,5/20/2013,196610,450.00,REVENUE,C T BRATLEY & CO LTD,103815
North East Lincolnshire Council,http://statistics.data.gov.uk/id/local-authority/00FC,Cap Economy Env And Housing,Cap Development,Local Transport Plan,Cap Infrastr-Purchase,Cap Infrastr-Purchase,YC101,5/20/2013,195910,507.00,CAPITAL,CA TRAFFIC LTD,105390
North East Lincolnshire Council,http://statistics.data.gov.uk/id/local-authority/00FC,People And Communities,Improved Health,Supporting People,Other Agencies,Third Pp - Block Gross,PJ103,5/30/2013,199853,REDACTED COMMERCIALLY SENSITIVE,REVENUE,CARE LTD,100314
North East Lincolnshire Council,http://statistics.data.gov.uk/id/local-authority/00FC,Environment Economy & Housing,Development,Private Sector Housing,Rents,Rent,GC101,5/7/2013,194645,280.00,REVENUE,CARE PLUS GROUP,106467
North East Lincolnshire Council,http://statistics.data.gov.uk/id/local-authority/00FC,Chief Executive,Public Health,Public Hlth - Improved Health,Catering,Provisions,LB101,5/8/2013,195602,416.16,REVENUE,CARE PLUS GROUP,106467
North East Lincolnshire Council,http://statistics.data.gov.uk/id/local-authority/00FC,Chief Executive,Public Health,Public Hlth - Improved Health,Catering,Provisions,LB101,5/8/2013,195603,416.16,REVENUE,CARE PLUS GROUP,106467
North East Lincolnshire Council,http://statistics.data.gov.uk/id/local-authority/00FC,Environment Economy & Housing,Development,Community Investment Team,Private Contractors,Third Party Prov - Private,PH101,5/15/2013,197551,742.80,REVENUE,CARE PLUS GROUP,106467
North East Lincolnshire Council,http://statistics.data.gov.uk/id/local-authority/00FC,Environment Economy & Housing,Development,Community Investment Team,Private Contractors,Third Party Prov - Private,PH101,5/15/2013,197550,792.32,REVENUE,CARE PLUS GROUP,106467
North East Lincolnshire Council,http://statistics.data.gov.uk/id/local-authority/00FC,Environment Economy & Housing,Development,Community Investment Team,Private Contractors,Third Party Prov - Private,PH101,5/27/2013,198869,"1,044.56",REVENUE,CARE PLUS GROUP,106467
North East Lincolnshire Council,http://statistics.data.gov.uk/id/local-authority/00FC,Environment Economy & Housing,Development,Community Investment Team,Private Contractors,Third Party Prov - Private,PH101,5/15/2013,196599,"1,044.56",REVENUE,CARE PLUS GROUP,106467
North East Lincolnshire Council,http://statistics.data.gov.uk/id/local-authority/00FC,Environment Economy & Housing,Development,Community Investment Team,Private Contractors,Third Party Prov - Private,PH101,5/15/2013,196606,"1,044.56",REVENUE,CARE PLUS GROUP,106467
North East Lincolnshire Council,http://statistics.data.gov.uk/id/local-authority/00FC,Environment Economy & Housing,Development,Community Investment Team,Private Contractors,Third Party Prov - Private,PH101,5/15/2013,196598,"1,566.85",REVENUE,CARE PLUS GROUP,106467
North East Lincolnshire Council,http://statistics.data.gov.uk/id/local-authority/00FC,People And Communities,Improved Health,Supporting People,Other Agencies,Third Pp - Block Subsidy,PJ102,5/20/2013,198161,REDACTED COMMERCIALLY SENSITIVE,REVENUE,CARE PLUS GROUP,106467
North East Lincolnshire Council,http://statistics.data.gov.uk/id/local-authority/00FC,Cap Economy Env And Housing,Cap Development,Housing Assistance,Cap Grants To O/Side Sources,Cap Grants To O/Side Sources,YJ101,5/2/2013,194179,744.77,CAPITAL,CARILLION ENERGY SERVICES LTD,109558
North East Lincolnshire Council,http://statistics.data.gov.uk/id/local-authority/00FC,Resources,Commission & Information Sys,Communications And Marketing,Print Stationery / Gen Off Exp,Printing And Stationery,LD103,5/21/2013,197518,391.21,REVENUE,CARTRIDGE SAVE LIMITED,102114
North East Lincolnshire Council,http://statistics.data.gov.uk/id/local-authority/00FC,Environment Economy & Housing,Development,Strat Hous Out Of Scope,Rents,Service Charge,GC102,5/7/2013,194632,830.00,REVENUE,CASH CREATORS,102653
North East Lincolnshire Council,http://statistics.data.gov.uk/id/local-authority/00FC,People And Communities,Childrens Hlth & Family Supp,Integ Local Service Delivery,Private Contractors,Third Party Prov - Private,PH101,5/30/2013,199307,"30,000.00",REVENUE,CAT ZERO,114975
North East Lincolnshire Council,http://statistics.data.gov.uk/id/local-authority/00FC,Cap Governance And Trans,Cap Transformation Project,Transformation Programme,Cap Intangible Assets,Cap Intangible Assets,YH101,5/2/2013,194893,REDACTED COMMERCIALLY SENSITIVE,CAPITAL,CEDAR OPEN ACCOUNTS,101614
North East Lincolnshire Council,http://statistics.data.gov.uk/id/local-authority/00FC,Resources,Commission & Information Sys,Head Commission & Info Systems,Private Contractors,Third Party Prov - Private,PH101,5/2/2013,193952,REDACTED COMMERCIALLY SENSITIVE,REVENUE,CEDAR OPEN ACCOUNTS,101614
North East Lincolnshire Council,http://statistics.data.gov.uk/id/local-authority/00FC,Resources,Commission & Information Sys,Head Commission & Info Systems,Private Contractors,Third Party Prov - Private,PH101,5/2/2013,193953,REDACTED COMMERCIALLY SENSITIVE,REVENUE,CEDAR OPEN ACCOUNTS,101614
North East Lincolnshire Council,http://statistics.data.gov.uk/id/local-authority/00FC,Resources,Commission & Information Sys,Information Technology,Communications And Computing,Computer S/Ware - Maintenance,LF102,5/16/2013,197690,REDACTED COMMERCIALLY SENSITIVE,REVENUE,CEDAR OPEN ACCOUNTS,101614
North East Lincolnshire Council,http://statistics.data.gov.uk/id/local-authority/00FC,Resources,Commission & Information Sys,Information Technology,Communications And Computing,Computer S/Ware - Maintenance,LF102,5/16/2013,197690,REDACTED COMMERCIALLY SENSITIVE,REVENUE,CEDAR OPEN ACCOUNTS,101614
North East Lincolnshire Council,http://statistics.data.gov.uk/id/local-authority/00FC,Resources,Commission & Information Sys,Information Technology,Communications And Computing,Computer S/Ware - Maintenance,LF102,5/16/2013,197690,REDACTED COMMERCIALLY SENSITIVE,REVENUE,CEDAR OPEN ACCOUNTS,101614
North East Lincolnshire Council,http://statistics.data.gov.uk/id/local-authority/00FC,Resources,Commission & Information Sys,Information Technology,Communications And Computing,Computer S/Ware - Maintenance,LF102,5/16/2013,197690,REDACTED COMMERCIALLY SENSITIVE,REVENUE,CEDAR OPEN ACCOUNTS,101614
North East Lincolnshire Council,http://statistics.data.gov.uk/id/local-authority/00FC,People And Communities,Improved Health,Improved Health Operational,Equip / Furniture / Materials,Health & Safety Supplies,LA116,5/23/2013,198868,265.62,REVENUE,CEFNDY HEALTHCARE,103209
North East Lincolnshire Council,http://statistics.data.gov.uk/id/local-authority/00FC,People And Communities,Improved Health,Improved Health Operational,Equip / Furniture / Materials,Health & Safety Supplies,LA116,5/23/2013,198868,331.86,REVENUE,CEFNDY HEALTHCARE,103209
North East Lincolnshire Council,http://statistics.data.gov.uk/id/local-authority/00FC,Environment Economy & Housing,Culture Leisure & Sport,Library Service,Equip / Furniture / Materials,Library Books,LA120,5/7/2013,195553,"3,075.00",REVENUE,CENGAGE LEARNING (EMEA) LTD,102028
North East Lincolnshire Council,http://statistics.data.gov.uk/id/local-authority/00FC,Environment Economy & Housing,Culture Leisure & Sport,Library Service,Equip / Furniture / Materials,Library Books,LA120,5/7/2013,195518,"10,600.00",REVENUE,CENGAGE LEARNING (EMEA) LTD,102028
North East Lincolnshire Council,http://statistics.data.gov.uk/id/local-authority/00FC,Environment Economy & Housing,Development,Transport Policy,Miscellaneous Expenses,Other Expenses General,LL119,5/2/2013,194181,"28,670.00",REVENUE,CHALLENGE FOR CHANGE LTD,119407
North East Lincolnshire Council,http://statistics.data.gov.uk/id/local-authority/00FC,Environment Economy & Housing,Development,Retained Function,Indirect Employee Expenses,Staff Training,EB122,5/2/2013,192334,"1,212.00",REVENUE,CHARTERED INSTITUTE OF HOUSING,100666
North East Lincolnshire Council,http://statistics.data.gov.uk/id/local-authority/00FC,Environment Economy & Housing,Development,Community Investment Team,Private Contractors,Third Party Prov - Private,PH101,5/15/2013,196465,689.85,REVENUE,CHILL FRESH FISH LTD,111295
North East Lincolnshire Council,http://statistics.data.gov.uk/id/local-authority/00FC,Environment Economy & Housing,Development,Community Investment Team,Private Contractors,Third Party Prov - Private,PH101,5/23/2013,196481,821.37,REVENUE,CHILL FRESH FISH LTD,111295
North East Lincolnshire Council,http://statistics.data.gov.uk/id/local-authority/00FC,Environment Economy & Housing,Development,Community Investment Team,Private Contractors,Third Party Prov - Private,PH101,5/2/2013,194119,"1,793.47",REVENUE,CHILL FRESH FISH LTD,111295
North East Lincolnshire Council,http://statistics.data.gov.uk/id/local-authority/00FC,Environment Economy & Housing,Culture Leisure & Sport,Bradley Playing Fields,Rep Alterations Maint Building,Buildings - Repairs And Maint,GA102,5/23/2013,199013,260.16,REVENUE,CHRISTY FLOODLIGHTING LTD,119856
North East Lincolnshire Council,http://statistics.data.gov.uk/id/local-authority/00FC,Environment Economy & Housing,Culture Leisure & Sport,Bradley Playing Fields,Rep Alterations Maint Building,Buildings - Repairs And Maint,GA102,5/23/2013,199013,"2,832.00",REVENUE,CHRISTY FLOODLIGHTING LTD,119856
North East Lincolnshire Council,http://statistics.data.gov.uk/id/local-authority/00FC,Resources,Finance & Assets,Accountancy,Grants And Subscriptions,Subscriptions,LJ101,5/8/2013,194809,725.00,REVENUE,CIPFA BUSINESS LIMITED,102338
North East Lincolnshire Council,http://statistics.data.gov.uk/id/local-authority/00FC,Resources,Governance & Business Support,Audit / Insurance And Risk,Grants And Subscriptions,Subscriptions,LJ101,5/7/2013,194644,"2,940.00",REVENUE,CIPFA BUSINESS LIMITED,102338
North East Lincolnshire Council,http://statistics.data.gov.uk/id/local-authority/00FC,Resources,Finance & Assets,Accountancy,Grants And Subscriptions,Subscriptions,LJ101,5/8/2013,194811,"3,450.00",REVENUE,CIPFA BUSINESS LIMITED,102338
North East Lincolnshire Council,http://statistics.data.gov.uk/id/local-authority/00FC,Resources,Finance & Assets,Accountancy,Grants And Subscriptions,Subscriptions,LJ101,5/7/2013,194812,"3,640.00",REVENUE,CIPFA BUSINESS LIMITED,102338
North East Lincolnshire Council,http://statistics.data.gov.uk/id/local-authority/00FC,Resources,Finance & Assets,Accountancy,Grants And Subscriptions,Subscriptions,LJ101,5/8/2013,194810,"6,340.00",REVENUE,CIPFA BUSINESS LIMITED,102338
North East Lincolnshire Council,http://statistics.data.gov.uk/id/local-authority/00FC,People And Communities,Improved Health,Trading Standards,Communications And Computing,Computer S/Ware - Licences,LF103,5/15/2013,196440,346.11,REVENUE,CIVICA UK LIMITED,103029
North East Lincolnshire Council,http://statistics.data.gov.uk/id/local-authority/00FC,People And Communities,Improved Health,Trading Standards,Communications And Computing,Computer S/Ware - Licences,LF103,5/15/2013,196440,"6,849.50",REVENUE,CIVICA UK LIMITED,103029
North East Lincolnshire Council,http://statistics.data.gov.uk/id/local-authority/00FC,People And Communities,Improved Health,Improved Health Operational,Equip / Furniture / Materials,Health & Safety Supplies,LA116,5/23/2013,196869,920.00,REVENUE,CLARK & PARTNERS LTD,101269
North East Lincolnshire Council,http://statistics.data.gov.uk/id/local-authority/00FC,People And Communities,Improved Health,Improved Health Operational,Equip / Furniture / Materials,Health & Safety Supplies,LA116,5/23/2013,199026,920.00,REVENUE,CLARK & PARTNERS LTD,101269
North East Lincolnshire Council,http://statistics.data.gov.uk/id/local-authority/00FC,People And Communities,Improved Health,Improved Health Operational,Equip / Furniture / Materials,Health & Safety Supplies,LA116,5/27/2013,199247,920.00,REVENUE,CLARK & PARTNERS LTD,101269
North East Lincolnshire Council,http://statistics.data.gov.uk/id/local-authority/00FC,People And Communities,Improved Health,Improved Health Operational,Equip / Furniture / Materials,Health & Safety Supplies,LA116,5/29/2013,196837,920.00,REVENUE,CLARK & PARTNERS LTD,101269
North East Lincolnshire Council,http://statistics.data.gov.uk/id/local-authority/00FC,People And Communities,Improved Health,Improved Health Operational,Equip / Furniture / Materials,Health & Safety Supplies,LA116,5/29/2013,196838,920.00,REVENUE,CLARK & PARTNERS LTD,101269
North East Lincolnshire Council,http://statistics.data.gov.uk/id/local-authority/00FC,People And Communities,Improved Health,Improved Health Operational,Equip / Furniture / Materials,Health & Safety Supplies,LA116,5/29/2013,196839,920.00,REVENUE,CLARK & PARTNERS LTD,101269
North East Lincolnshire Council,http://statistics.data.gov.uk/id/local-authority/00FC,People And Communities,Improved Health,Improved Health Operational,Equip / Furniture / Materials,Health & Safety Supplies,LA116,5/23/2013,194212,936.00,REVENUE,CLARK & PARTNERS LTD,101269
North East Lincolnshire Council,http://statistics.data.gov.uk/id/local-authority/00FC,People And Communities,Improved Health,Improved Health Operational,Equip / Furniture / Materials,Health & Safety Supplies,LA116,5/23/2013,194213,936.00,REVENUE,CLARK & PARTNERS LTD,101269
North East Lincolnshire Council,http://statistics.data.gov.uk/id/local-authority/00FC,People And Communities,Improved Health,Improved Health Operational,Equip / Furniture / Materials,Health & Safety Supplies,LA116,5/23/2013,194214,936.00,REVENUE,CLARK & PARTNERS LTD,101269
North East Lincolnshire Council,http://statistics.data.gov.uk/id/local-authority/00FC,People And Communities,Improved Health,Improved Health Operational,Equip / Furniture / Materials,Health & Safety Supplies,LA116,5/23/2013,194215,936.00,REVENUE,CLARK & PARTNERS LTD,101269
North East Lincolnshire Council,http://statistics.data.gov.uk/id/local-authority/00FC,People And Communities,Improved Health,Improved Health Operational,Equip / Furniture / Materials,Health & Safety Supplies,LA116,5/23/2013,194216,936.00,REVENUE,CLARK & PARTNERS LTD,101269
North East Lincolnshire Council,http://statistics.data.gov.uk/id/local-authority/00FC,Resources,Governance & Business Support,Coroners,Rents,Rent,GC101,5/8/2013,194829,355.00,REVENUE,CLEETHORPES CHARTER TRUSTEES,101604
North East Lincolnshire Council,http://statistics.data.gov.uk/id/local-authority/00FC,Environment Economy & Housing,Development,Transport Policy,Miscellaneous Expenses,Other Expenses General,LL119,5/27/2013,188831,583.05,REVENUE,CLEETHORPES CHRONICLE,102013
North East Lincolnshire Council,http://statistics.data.gov.uk/id/local-authority/00FC,People And Communities,Childrens Hlth & Family Supp,Childrens Centre Development,Other Agencies,Educational Visits,PJ152,5/27/2013,198785,820.00,REVENUE,CLEETHORPES SENIOR CITIZENS CLUB,103967
North East Lincolnshire Council,http://statistics.data.gov.uk/id/local-authority/00FC,Cap Resources,Cap Finance And Assets,Property Planned Repairs,Cap Land/Build-Build Enh Wrk,Cap Land/Build-Build Enh Wrk,YA102,5/21/2013,194485,"1,600.00",CAPITAL,CLUGSTON SURVEY SERVICES,105668
North East Lincolnshire Council,http://statistics.data.gov.uk/id/local-authority/00FC,Chief Executive,Public Health,Public Hlth - Improved Health,Miscellaneous Expenses,Medical Supplies And Services,LL109,5/30/2013,199962,"1,570.40",REVENUE,COHENS CHEMIST,108177
North East Lincolnshire Council,http://statistics.data.gov.uk/id/local-authority/00FC,Resources,Strategic Director Resources,Director And Support,Private Contractors,Third Party Prov - Private,PH101,5/2/2013,194659,"2,500.00",REVENUE,COMMUNITIES TOGETHER,102857
North East Lincolnshire Council,http://statistics.data.gov.uk/id/local-authority/00FC,Resources,Governance & Business Support,Strategy Change & Improvement,Private Contractors,Third Party Prov - Private,PH101,5/10/2013,194682,"23,000.00",REVENUE,COMMUNITIES TOGETHER,102857
North East Lincolnshire Council,http://statistics.data.gov.uk/id/local-authority/00FC,People And Communities,Vulnerable Young People,Sen/Inclusion,Contributions To Provisions,Contributions - Other,LK103,5/21/2013,196872,"1,200.00",REVENUE,COMMUNITY ACCORD,106613
North East Lincolnshire Council,http://statistics.data.gov.uk/id/local-authority/00FC,Environment Economy & Housing,Development,Community Learning Services,Miscellaneous Expenses,Other Expenses General,LL119,5/30/2013,199596,962.72,REVENUE,COMMUNITY LEARNING SERVICES - WBL,110690
North East Lincolnshire Council,http://statistics.data.gov.uk/id/local-authority/00FC,Environment Economy & Housing,Development,Community Learning Services,Miscellaneous Expenses,Other Expenses General,LL119,5/9/2013,196249,"1,025.45",REVENUE,COMMUNITY LEARNING SERVICES - WBL,110690
North East Lincolnshire Council,http://statistics.data.gov.uk/id/local-authority/00FC,Resources,Commission & Information Sys,Head Commission & Info Systems,Communications And Computing,Computer H/Ware - Purchases,LF105,5/10/2013,194646,313.68,REVENUE,COMPUTACENTER UK LTD,101303
North East Lincolnshire Council,http://statistics.data.gov.uk/id/local-authority/00FC,Resources,Finance & Assets,Income & Payments Service,Communications And Computing,Computer Consumables,LF109,5/8/2013,195499,573.80,REVENUE,COMPUTACENTER UK LTD,101303
North East Lincolnshire Council,http://statistics.data.gov.uk/id/local-authority/00FC,Resources,Commission & Information Sys,Head Commission & Info Systems,Communications And Computing,Computer H/Ware - Purchases,LF105,5/23/2013,193676,741.06,REVENUE,COMPUTACENTER UK LTD,101303
North East Lincolnshire Council,http://statistics.data.gov.uk/id/local-authority/00FC,People And Communities,Vulnerable Young People,School Access Governor Student,Contract Hire-Operating Leases,Vehicles - Contract Hire,JC101,5/30/2013,199767,REDACTED COMMERCIALLY SENSITIVE,REVENUE,COOPERS TOURS,101503
North East Lincolnshire Council,http://statistics.data.gov.uk/id/local-authority/00FC,Chief Executive,Public Health,Public Hlth - Improved Health,Miscellaneous Expenses,Medical Supplies And Services,LL109,5/30/2013,199949,334.47,REVENUE,COTTINGHAM PHARMACY,104020
North East Lincolnshire Council,http://statistics.data.gov.uk/id/local-authority/00FC,Environment Economy & Housing,Development,Community Learning Services,Miscellaneous Expenses,Exam Fees,LL115,5/27/2013,196834,256.00,REVENUE,COUNCIL FOR AWARDS IN CARE HEALTH & EDUCATION,103423
North East Lincolnshire Council,http://statistics.data.gov.uk/id/local-authority/00FC,Environment Economy & Housing,Development,Community Learning Services,Miscellaneous Expenses,Exam Fees,LL115,5/7/2013,194610,"1,320.00",REVENUE,COUNCIL FOR AWARDS IN CARE HEALTH & EDUCATION,103423
North East Lincolnshire Council,http://statistics.data.gov.uk/id/local-authority/00FC,Environment Economy & Housing,Culture Leisure & Sport,Discovery Centre,Equip / Furniture / Materials,Equipment - Purchase,LA101,5/20/2013,197718,"1,359.82",REVENUE,COWIES PAINTING AND DECORATING,120175
North East Lincolnshire Council,http://statistics.data.gov.uk/id/local-authority/00FC,People And Communities,Vulnerable Young People,School Access Governor Student,Contract Hire-Operating Leases,Vehicles - Contract Hire,JC101,5/15/2013,195580,REDACTED COMMERCIALLY SENSITIVE,REVENUE,COXONS CARS LIMITED,100578
North East Lincolnshire Council,http://statistics.data.gov.uk/id/local-authority/00FC,People And Communities,Vulnerable Young People,School Access Governor Student,Contract Hire-Operating Leases,Vehicles - Contract Hire,JC101,5/8/2013,195575,REDACTED COMMERCIALLY SENSITIVE,REVENUE,COXONS CARS LIMITED,100578
North East Lincolnshire Council,http://statistics.data.gov.uk/id/local-authority/00FC,People And Communities,Vulnerable Young People,School Access Governor Student,Contract Hire-Operating Leases,Vehicles - Contract Hire,JC101,5/8/2013,195502,REDACTED COMMERCIALLY SENSITIVE,REVENUE,COXONS CARS LIMITED,100578
North East Lincolnshire Council,http://statistics.data.gov.uk/id/local-authority/00FC,People And Communities,Vulnerable Young People,School Access Governor Student,Contract Hire-Operating Leases,Vehicles - Contract Hire,JC101,5/10/2013,195607,REDACTED COMMERCIALLY SENSITIVE,REVENUE,COXONS CARS LIMITED,100578
North East Lincolnshire Council,http://statistics.data.gov.uk/id/local-authority/00FC,People And Communities,Vulnerable Young People,School Access Governor Student,Contract Hire-Operating Leases,Vehicles - Contract Hire,JC101,5/8/2013,195578,REDACTED COMMERCIALLY SENSITIVE,REVENUE,COXONS CARS LIMITED,100578
North East Lincolnshire Council,http://statistics.data.gov.uk/id/local-authority/00FC,People And Communities,Vulnerable Young People,School Access Governor Student,Contract Hire-Operating Leases,Vehicles - Contract Hire,JC101,5/8/2013,195503,REDACTED COMMERCIALLY SENSITIVE,REVENUE,COXONS CARS LIMITED,100578
North East Lincolnshire Council,http://statistics.data.gov.uk/id/local-authority/00FC,People And Communities,Vulnerable Young People,Sen/Inclusion,Private Contractors,Third Party Prov - Private,PH101,5/8/2013,195584,"4,669.80",REVENUE,CPO MEDIA,102186
North East Lincolnshire Council,http://statistics.data.gov.uk/id/local-authority/00FC,Cap Economy Env And Housing,Cap Development,Housing Assistance,Cap Grants To O/Side Sources,Cap Grants To O/Side Sources,YJ101,5/8/2013,195491,"9,111.11",CAPITAL,CRAIG BRABBEN BUILDING CONTRACTOR LTD,112316
North East Lincolnshire Council,http://statistics.data.gov.uk/id/local-authority/00FC,People And Communities,Improved Health,Supporting People,Other Agencies,Third Pp - Block Subsidy,PJ102,5/20/2013,198162,REDACTED COMMERCIALLY SENSITIVE,REVENUE,CREATIVE SUPPORT LTD,107198
North East Lincolnshire Council,http://statistics.data.gov.uk/id/local-authority/00FC,Environment Economy & Housing,Neighbourhood Services,Beach Safety,Rents,Rent,GC101,5/15/2013,196212,350.00,REVENUE,CROWN ESTATE RE CARTER JONAS RENTAL AC,103817
North East Lincolnshire Council,http://statistics.data.gov.uk/id/local-authority/00FC,Environment Economy & Housing,Culture Leisure & Sport,Library Service,Equip / Furniture / Materials,Equipment - Hire,LA102,5/23/2013,198758,585.00,REVENUE,CRS BUSINESS SYSTEMS,101000
North East Lincolnshire Council,http://statistics.data.gov.uk/id/local-authority/00FC,Cap Economy Env And Housing,Cap Development,Local Transport Plan,Cap Infrastr-Build Enh Wrk,Cap Infrastr-Build Enh Wrk,YC102,5/30/2013,181976,"3,000.00",CAPITAL,CYCLEPODS LTD,109419
North East Lincolnshire Council,http://statistics.data.gov.uk/id/local-authority/00FC,Resources,Commission & Information Sys,Central Commissioning & Delive,Catering,Purchase School Meals,LB103,5/15/2013,196455,REDACTED COMMERCIALLY SENSITIVE,REVENUE,CYGNET CATERING,108880
North East Lincolnshire Council,http://statistics.data.gov.uk/id/local-authority/00FC,Resources,Commission & Information Sys,Central Commissioning & Delive,Catering,Purchase School Meals,LB103,5/15/2013,196439,REDACTED COMMERCIALLY SENSITIVE,REVENUE,CYGNET CATERING,108880
North East Lincolnshire Council,http://statistics.data.gov.uk/id/local-authority/00FC,Environment Economy & Housing,Development,Community Investment Team,Private Contractors,Third Party Prov - Private,PH101,5/30/2013,199507,760.00,REVENUE,D A & J P HARRISON,119804
North East Lincolnshire Council,http://statistics.data.gov.uk/id/local-authority/00FC,People And Communities,Strat Dir People & Communities,Schools Non Asb,Miscellaneous Expenses,Other Expenses General,LL119,5/7/2013,194589,945.00,REVENUE,D BROWN PAINTING & DECORATING LTD,108214
North East Lincolnshire Council,http://statistics.data.gov.uk/id/local-authority/00FC,People And Communities,Strat Dir People & Communities,Schools Non Asb,Miscellaneous Expenses,Other Expenses General,LL119,5/7/2013,194596,"1,121.00",REVENUE,D BROWN PAINTING & DECORATING LTD,108214
North East Lincolnshire Council,http://statistics.data.gov.uk/id/local-authority/00FC,Environment Economy & Housing,Development,Community Investment Team,Private Contractors,Third Party Prov - Private,PH101,5/14/2013,196953,"1,280.00",REVENUE,D J SERVICE CENTRE,119916
North East Lincolnshire Council,http://statistics.data.gov.uk/id/local-authority/00FC,Cap Economy Env And Housing,Cap Development,Housing Assistance,Cap Grants To O/Side Sources,Cap Grants To O/Side Sources,YJ101,5/27/2013,198750,"1,634.00",CAPITAL,D THORPE PLUMBING & HEATING SERVICES,118800
North East Lincolnshire Council,http://statistics.data.gov.uk/id/local-authority/00FC,Cap Economy Env And Housing,Cap Development,Housing Assistance,Cap Grants To O/Side Sources,Cap Grants To O/Side Sources,YJ101,5/2/2013,194185,"1,887.00",CAPITAL,D THORPE PLUMBING & HEATING SERVICES,118800
North East Lincolnshire Council,http://statistics.data.gov.uk/id/local-authority/00FC,Cap Economy Env And Housing,Cap Development,Housing Assistance,Cap Grants To O/Side Sources,Cap Grants To O/Side Sources,YJ101,5/2/2013,194188,"2,029.00",CAPITAL,D THORPE PLUMBING & HEATING SERVICES,118800
North East Lincolnshire Council,http://statistics.data.gov.uk/id/local-authority/00FC,Cap Economy Env And Housing,Cap Development,Housing Assistance,Cap Grants To O/Side Sources,Cap Grants To O/Side Sources,YJ101,5/16/2013,190056,"2,342.00",CAPITAL,D THORPE PLUMBING & HEATING SERVICES,118800
North East Lincolnshire Council,http://statistics.data.gov.uk/id/local-authority/00FC,Cap Economy Env And Housing,Cap Development,Housing Assistance,Cap Grants To O/Side Sources,Cap Grants To O/Side Sources,YJ101,5/27/2013,198751,"2,402.00",CAPITAL,D THORPE PLUMBING & HEATING SERVICES,118800
North East Lincolnshire Council,http://statistics.data.gov.uk/id/local-authority/00FC,Resources,Commission & Information Sys,Central Commissioning & Delive,Catering,Provisions,LB101,5/21/2013,196876,"9,438.46",REVENUE,DAIRY CREST LTD,101743
North East Lincolnshire Council,http://statistics.data.gov.uk/id/local-authority/00FC,Resources,Commission & Information Sys,Information Technology,Print Stationery / Gen Off Exp,Photocopier - Running Costs,LD102,5/15/2013,196443,307.50,REVENUE,DANWOOD FINANCIAL SERVICES LTD,101075
North East Lincolnshire Council,http://statistics.data.gov.uk/id/local-authority/00FC,Resources,Commission & Information Sys,Information Technology,Communications And Computing,Computer H/Ware - Maintenance,LF106,5/15/2013,195590,"2,025.80",REVENUE,DELL COMPUTER CORPORATION LTD,100892
North East Lincolnshire Council,http://statistics.data.gov.uk/id/local-authority/00FC,Resources,Commission & Information Sys,Information Technology,Communications And Computing,Computer H/Ware - Maintenance,LF106,5/15/2013,195590,"4,051.60",REVENUE,DELL COMPUTER CORPORATION LTD,100892
North East Lincolnshire Council,http://statistics.data.gov.uk/id/local-authority/00FC,Resources,Commission & Information Sys,Information Technology,Communications And Computing,Computer H/Ware - Maintenance,LF106,5/15/2013,195590,"18,083.10",REVENUE,DELL COMPUTER CORPORATION LTD,100892
North East Lincolnshire Council,http://statistics.data.gov.uk/id/local-authority/00FC,Resources,Governance & Business Support,Legal Services,Consultancy,Consultancy,PL101,5/8/2013,194798,"1,589.00",REVENUE,DICKINSON DEES,101644
North East Lincolnshire Council,http://statistics.data.gov.uk/id/local-authority/00FC,Resources,Governance & Business Support,Legal Services,Consultancy,Consultancy,PL101,5/2/2013,194693,"5,268.00",REVENUE,DICKINSON DEES,101644
North East Lincolnshire Council,http://statistics.data.gov.uk/id/local-authority/00FC,People And Communities,Improved Health,Improved Health Operational,Equip / Furniture / Materials,Health & Safety Supplies,LA116,5/29/2013,199059,867.00,REVENUE,DIRECT HEALTHCARE,102678
North East Lincolnshire Council,http://statistics.data.gov.uk/id/local-authority/00FC,People And Communities,Vulnerable Young People,Sen/Inclusion,Contributions To Provisions,Contributions - Other,LK103,5/10/2013,194676,400.00,REVENUE,DKM ASSESSMENT & VERIFICATION LTD,101643
North East Lincolnshire Council,http://statistics.data.gov.uk/id/local-authority/00FC,People And Communities,Vulnerable Young People,Sen/Inclusion,Contributions To Provisions,Contributions - Other,LK103,5/30/2013,199266,550.00,REVENUE,DKM ASSESSMENT & VERIFICATION LTD,101643
North East Lincolnshire Council,http://statistics.data.gov.uk/id/local-authority/00FC,People And Communities,Vulnerable Young People,Sen/Inclusion,Private Contractors,Third Party Prov - Private,PH101,5/2/2013,193092,689.40,REVENUE,DKM ASSESSMENT & VERIFICATION LTD,101643
North East Lincolnshire Council,http://statistics.data.gov.uk/id/local-authority/00FC,People And Communities,Vulnerable Young People,Sen/Inclusion,Contributions To Provisions,Contributions - Other,LK103,5/2/2013,194681,"1,000.00",REVENUE,DKM ASSESSMENT & VERIFICATION LTD,101643
North East Lincolnshire Council,http://statistics.data.gov.uk/id/local-authority/00FC,People And Communities,Vulnerable Young People,Sen/Inclusion,Private Contractors,Third Party Prov - Private,PH101,5/2/2013,193074,"1,000.00",REVENUE,DKM ASSESSMENT & VERIFICATION LTD,101643
North East Lincolnshire Council,http://statistics.data.gov.uk/id/local-authority/00FC,People And Communities,Vulnerable Young People,Sen/Inclusion,Private Contractors,Third Party Prov - Private,PH101,5/2/2013,193082,"1,000.00",REVENUE,DKM ASSESSMENT & VERIFICATION LTD,101643
North East Lincolnshire Council,http://statistics.data.gov.uk/id/local-authority/00FC,People And Communities,Vulnerable Young People,Sen/Inclusion,Private Contractors,Third Party Prov - Private,PH101,5/2/2013,193087,"1,000.00",REVENUE,DKM ASSESSMENT & VERIFICATION LTD,101643
North East Lincolnshire Council,http://statistics.data.gov.uk/id/local-authority/00FC,People And Communities,Vulnerable Young People,Sen/Inclusion,Private Contractors,Third Party Prov - Private,PH101,5/2/2013,193085,"1,036.00",REVENUE,DKM ASSESSMENT & VERIFICATION LTD,101643
North East Lincolnshire Council,http://statistics.data.gov.uk/id/local-authority/00FC,People And Communities,Vulnerable Young People,Sen/Inclusion,Private Contractors,Third Party Prov - Private,PH101,5/15/2013,194875,"2,800.00",REVENUE,DKM ASSESSMENT & VERIFICATION LTD,101643
North East Lincolnshire Council,http://statistics.data.gov.uk/id/local-authority/00FC,People And Communities,Vulnerable Young People,Sen/Inclusion,Private Contractors,Third Party Prov - Private,PH101,5/2/2013,193076,"2,800.00",REVENUE,DKM ASSESSMENT & VERIFICATION LTD,101643
North East Lincolnshire Council,http://statistics.data.gov.uk/id/local-authority/00FC,People And Communities,Vulnerable Young People,Sen/Inclusion,Private Contractors,Third Party Prov - Private,PH101,5/2/2013,193090,"2,836.00",REVENUE,DKM ASSESSMENT & VERIFICATION LTD,101643
North East Lincolnshire Council,http://statistics.data.gov.uk/id/local-authority/00FC,People And Communities,Vulnerable Young People,Sen/Inclusion,Private Contractors,Third Party Prov - Private,PH101,5/2/2013,194200,"3,135.00",REVENUE,DKM ASSESSMENT & VERIFICATION LTD,101643
North East Lincolnshire Council,http://statistics.data.gov.uk/id/local-authority/00FC,People And Communities,Vulnerable Young People,Sen/Inclusion,Other Local Authorities,Third Pp - Other Local Auth,PC101,5/15/2013,194875,"8,400.00",REVENUE,DKM ASSESSMENT & VERIFICATION LTD,101643
North East Lincolnshire Council,http://statistics.data.gov.uk/id/local-authority/00FC,People And Communities,Childrens Hlth & Family Supp,Childrens Health Provision,Indirect Employee Expenses,Staff Training,EB122,5/23/2013,196576,350.00,REVENUE,DODS PARLIAMENTARY COMMUNICATIONS,101542
North East Lincolnshire Council,http://statistics.data.gov.uk/id/local-authority/00FC,Cap Economy Env And Housing,Cap Development,Hps-Disabled Fac. Grants,Cap Grants To O/Side Sources,Cap Grants To O/Side Sources,YJ101,5/8/2013,195015,250.00,CAPITAL,DOLPHIN MOBILITY EAST MIDLANDS LTD,101317
North East Lincolnshire Council,http://statistics.data.gov.uk/id/local-authority/00FC,Cap Economy Env And Housing,Cap Development,Hps-Disabled Fac. Grants,Cap Grants To O/Side Sources,Cap Grants To O/Side Sources,YJ101,5/7/2013,195376,"1,676.00",CAPITAL,DOLPHIN MOBILITY EAST MIDLANDS LTD,101317
North East Lincolnshire Council,http://statistics.data.gov.uk/id/local-authority/00FC,Cap Economy Env And Housing,Cap Development,Hps-Disabled Fac. Grants,Cap Grants To O/Side Sources,Cap Grants To O/Side Sources,YJ101,5/27/2013,197533,"1,923.00",CAPITAL,DOLPHIN MOBILITY EAST MIDLANDS LTD,101317
North East Lincolnshire Council,http://statistics.data.gov.uk/id/local-authority/00FC,Cap Economy Env And Housing,Cap Development,Hps-Disabled Fac. Grants,Cap Grants To O/Side Sources,Cap Grants To O/Side Sources,YJ101,5/15/2013,193970,"1,939.00",CAPITAL,DOLPHIN MOBILITY EAST MIDLANDS LTD,101317
North East Lincolnshire Council,http://statistics.data.gov.uk/id/local-authority/00FC,Cap Economy Env And Housing,Cap Development,Hps-Disabled Fac. Grants,Cap Grants To O/Side Sources,Cap Grants To O/Side Sources,YJ101,5/15/2013,197302,"1,955.00",CAPITAL,DOLPHIN MOBILITY EAST MIDLANDS LTD,101317
North East Lincolnshire Council,http://statistics.data.gov.uk/id/local-authority/00FC,Cap Economy Env And Housing,Cap Development,Hps-Disabled Fac. Grants,Cap Grants To O/Side Sources,Cap Grants To O/Side Sources,YJ101,5/7/2013,194963,"4,255.00",CAPITAL,DOLPHIN MOBILITY EAST MIDLANDS LTD,101317
North East Lincolnshire Council,http://statistics.data.gov.uk/id/local-authority/00FC,Cap Economy Env And Housing,Cap Development,Hps-Disabled Fac. Grants,Cap Grants To O/Side Sources,Cap Grants To O/Side Sources,YJ101,5/27/2013,197530,"4,407.00",CAPITAL,DOLPHIN MOBILITY EAST MIDLANDS LTD,101317
North East Lincolnshire Council,http://statistics.data.gov.uk/id/local-authority/00FC,People And Communities,Improved Health,Supporting People,Other Agencies,Third Pp - Block Gross,PJ103,5/30/2013,199851,REDACTED COMMERCIALLY SENSITIVE,REVENUE,DOORSTEP,100310
North East Lincolnshire Council,http://statistics.data.gov.uk/id/local-authority/00FC,Resources,Governance & Business Support,Coroners,Other Agencies,Post Mortems,PJ148,5/23/2013,198481,"4,065.60",REVENUE,REDACTED PERSONAL INFORMATION,REDACTED PERSONAL INFORMATION
North East Lincolnshire Council,http://statistics.data.gov.uk/id/local-authority/00FC,Resources,Governance & Business Support,Coroners,Other Agencies,Post Mortems,PJ148,5/10/2013,194828,"1,161.60",REVENUE,REDACTED PERSONAL INFORMATION,REDACTED PERSONAL INFORMATION
North East Lincolnshire Council,http://statistics.data.gov.uk/id/local-authority/00FC,People And Communities,Improved Health,Improved Health Operational,Equip / Furniture / Materials,Health & Safety Supplies,LA116,5/23/2013,194684,295.80,REVENUE,DRIVE MEDICAL,101627
North East Lincolnshire Council,http://statistics.data.gov.uk/id/local-authority/00FC,People And Communities,Improved Health,Improved Health Operational,Equip / Furniture / Materials,Health & Safety Supplies,LA116,5/23/2013,194684,319.20,REVENUE,DRIVE MEDICAL,101627
North East Lincolnshire Council,http://statistics.data.gov.uk/id/local-authority/00FC,People And Communities,Improved Health,Improved Health Operational,Equip / Furniture / Materials,Health & Safety Supplies,LA116,5/2/2013,193915,378.00,REVENUE,DRIVE MEDICAL,101627
North East Lincolnshire Council,http://statistics.data.gov.uk/id/local-authority/00FC,People And Communities,Improved Health,Improved Health Operational,Equip / Furniture / Materials,Health & Safety Supplies,LA116,5/23/2013,194684,394.50,REVENUE,DRIVE MEDICAL,101627
North East Lincolnshire Council,http://statistics.data.gov.uk/id/local-authority/00FC,People And Communities,Improved Health,Improved Health Operational,Equip / Furniture / Materials,Health & Safety Supplies,LA116,5/23/2013,194684,472.50,REVENUE,DRIVE MEDICAL,101627
North East Lincolnshire Council,http://statistics.data.gov.uk/id/local-authority/00FC,People And Communities,Improved Health,Improved Health Operational,Equip / Furniture / Materials,Health & Safety Supplies,LA116,5/7/2013,192942,487.50,REVENUE,DRIVE MEDICAL,101627
North East Lincolnshire Council,http://statistics.data.gov.uk/id/local-authority/00FC,People And Communities,Improved Health,Improved Health Operational,Equip / Furniture / Materials,Health & Safety Supplies,LA116,5/7/2013,192942,585.00,REVENUE,DRIVE MEDICAL,101627
North East Lincolnshire Council,http://statistics.data.gov.uk/id/local-authority/00FC,People And Communities,Improved Health,Improved Health Operational,Equip / Furniture / Materials,Health & Safety Supplies,LA116,5/7/2013,194687,585.00,REVENUE,DRIVE MEDICAL,101627
North East Lincolnshire Council,http://statistics.data.gov.uk/id/local-authority/00FC,Environment Economy & Housing,Neighbourhood Services,Grounds And Street Cleansing,Private Contractors,Third Party Prov - Private,PH101,5/15/2013,194098,"3,640.79",REVENUE,DRY ICE LIMITED,109830
North East Lincolnshire Council,http://statistics.data.gov.uk/id/local-authority/00FC,People And Communities,Vulnerable Young People,Placement & Support,Contract Hire-Operating Leases,Vehicles - Contract Hire,JC101,5/7/2013,194581,320.47,REVENUE,DUNELM (SOFT FURNISHINGS) LTD,111296
North East Lincolnshire Council,http://statistics.data.gov.uk/id/local-authority/00FC,Cap Economy Env And Housing,Cap Development,Local Transport Plan,Cap Infrastr-Build Enh Wrk,Cap Infrastr-Build Enh Wrk,YC102,5/2/2013,193710,"15,340.00",CAPITAL,DUNLOP TRANSCALM LTD,112715
North East Lincolnshire Council,http://statistics.data.gov.uk/id/local-authority/00FC,Resources,Commission & Information Sys,Communications And Marketing,Communications And Computing,Postage,LF111,5/27/2013,198754,"3,516.11",REVENUE,DX NETWORK SERVICES LTD,101576
North East Lincolnshire Council,http://statistics.data.gov.uk/id/local-authority/00FC,People And Communities,Childrens Hlth & Family Supp,Childrens Centre Development,Private Contractors,Third Party Prov - Private,PH101,5/27/2013,196828,290.00,REVENUE,E H ADVERTISING LIMITED,101403
North East Lincolnshire Council,http://statistics.data.gov.uk/id/local-authority/00FC,Cap Economy Env And Housing,Cap Development,Hps-Disabled Fac. Grants,Cap Grants To O/Side Sources,Cap Grants To O/Side Sources,YJ101,5/2/2013,194640,"5,972.50",CAPITAL,E J PARMENTER,100924
North East Lincolnshire Council,http://statistics.data.gov.uk/id/local-authority/00FC,Cap Economy Env And Housing,Cap Development,Hps-Disabled Fac. Grants,Cap Grants To O/Side Sources,Cap Grants To O/Side Sources,YJ101,5/23/2013,191702,"13,500.00",CAPITAL,E J PARMENTER,100924
North East Lincolnshire Council,http://statistics.data.gov.uk/id/local-authority/00FC,Environment Economy & Housing,Neighbourhood Services,Countryside Management,Equip / Furniture / Materials,Equipment - Purchase,LA101,5/2/2013,193422,630.00,REVENUE,E K M LTD,101926
North East Lincolnshire Council,http://statistics.data.gov.uk/id/local-authority/00FC,Environment Economy & Housing,Neighbourhood Services,Countryside Management,Rep Alterations Maint Building,Buildings - Repairs And Maint,GA102,5/2/2013,194150,"1,500.00",REVENUE,E K M LTD,101926
North East Lincolnshire Council,http://statistics.data.gov.uk/id/local-authority/00FC,Resources,Governance & Business Support,Human Resources,Indirect Employee Expenses,Medical Expenses - Employees,EB112,5/8/2013,195599,-16.50,REVENUE,EA BROADBURN DISPENSING CHEMIST,101135
North East Lincolnshire Council,http://statistics.data.gov.uk/id/local-authority/00FC,Resources,Governance & Business Support,Human Resources,Indirect Employee Expenses,Medical Expenses - Employees,EB112,5/8/2013,195116,412.50,REVENUE,EA BROADBURN DISPENSING CHEMIST,101135
North East Lincolnshire Council,http://statistics.data.gov.uk/id/local-authority/00FC,People And Communities,Childrens Hlth & Family Supp,Palliative / Complex Care,Private Contractors,Third Party Prov - Private,PH101,5/29/2013,199015,"1,393.20",REVENUE,EAST MIDLANDS CROSSROADS,102400
North East Lincolnshire Council,http://statistics.data.gov.uk/id/local-authority/00FC,Resources,Finance & Assets,Cfs Assets & Pc Programme,Indirect Employee Expenses,Pension P/Ment Early Retire,EB108,5/7/2013,194746,REDACTED PERSONAL INFORMATION,REVENUE,EAST RIDING OF YORKSHIRE,100377
North East Lincolnshire Council,http://statistics.data.gov.uk/id/local-authority/00FC,Resources,Governance & Business Support,Human Resources,Private Contractors,Third Party Prov - Private,PH101,5/30/2013,199668,REDACTED COMMERCIALLY SENSITIVE,REVENUE,EAST RIDING OF YORKSHIRE,100377
North East Lincolnshire Council,http://statistics.data.gov.uk/id/local-authority/00FC,People And Communities,Childrens Hlth & Family Supp,Childrens Centre Development,Indirect Employee Expenses,Pension P/Ment Early Retire,EB108,5/7/2013,195384,REDACTED PERSONAL INFORMATION,REVENUE,EAST RIDING OF YORKSHIRE,100377
North East Lincolnshire Council,http://statistics.data.gov.uk/id/local-authority/00FC,People And Communities,Childrens Hlth & Family Supp,Childrens Centre Development,Indirect Employee Expenses,Pension P/Ment Early Retire,EB108,5/22/2013,198571,REDACTED PERSONAL INFORMATION,REVENUE,EAST RIDING OF YORKSHIRE,100377
North East Lincolnshire Council,http://statistics.data.gov.uk/id/local-authority/00FC,People And Communities,Vulnerable Young People,Placement & Support,Indirect Employee Expenses,Pension P/Ment Early Retire,EB108,5/7/2013,195385,REDACTED COMMERCIALLY SENSITIVE,REVENUE,EAST RIDING OF YORKSHIRE,100377
North East Lincolnshire Council,http://statistics.data.gov.uk/id/local-authority/00FC,People And Communities,Childrens Hlth & Family Supp,Childrens Centre Development,Indirect Employee Expenses,Pension P/Ment Early Retire,EB108,5/28/2013,198458,REDACTED PERSONAL INFORMATION,REVENUE,EAST RIDING OF YORKSHIRE,100377
North East Lincolnshire Council,http://statistics.data.gov.uk/id/local-authority/00FC,Resources,Commission & Information Sys,Information Technology,Indirect Employee Expenses,Pension P/Ment Early Retire,EB108,5/8/2013,195809,REDACTED PERSONAL INFORMATION,REVENUE,EAST RIDING OF YORKSHIRE,100377
North East Lincolnshire Council,http://statistics.data.gov.uk/id/local-authority/00FC,People And Communities,Vulnerable Young People,Sen/Inclusion,Equip / Furniture / Materials,Teaching Materials,LA117,5/8/2013,193462,-14.98,REVENUE,EAST RIDING OF YORKSHIRE COUNCIL,100654
North East Lincolnshire Council,http://statistics.data.gov.uk/id/local-authority/00FC,People And Communities,Vulnerable Young People,Sen/Inclusion,Equip / Furniture / Materials,Teaching Materials,LA117,5/21/2013,197308,-7.91,REVENUE,EAST RIDING OF YORKSHIRE COUNCIL,100654
North East Lincolnshire Council,http://statistics.data.gov.uk/id/local-authority/00FC,People And Communities,Childrens Hlth & Family Supp,Childrens Centre Development,Cleaning And Domestic Supplies,Cleaning - Services,GH102,5/7/2013,194955,541.00,REVENUE,EASY CLEAN MARSHCHAPEL LTD,104531
North East Lincolnshire Council,http://statistics.data.gov.uk/id/local-authority/00FC,Chief Executive,Chief Executive,Chief Exec & Support,Contributions To Provisions,Contributions - Communities,LK101,5/23/2013,196207,785.00,REVENUE,ECOFURN LOUTH LTD,119285
North East Lincolnshire Council,http://statistics.data.gov.uk/id/local-authority/00FC,Cap Resources,Cap Finance And Assets,Property Planned Repairs,Cap Land/Build-Build Enh Wrk,Cap Land/Build-Build Enh Wrk,YA102,5/21/2013,198138,"3,500.00",CAPITAL,ECOLAB SERVICES LTD,101391
North East Lincolnshire Council,http://statistics.data.gov.uk/id/local-authority/00FC,People And Communities,Childrens Hlth & Family Supp,Play 4 Success,Miscellaneous Expenses,Activities - Service Users,LL114,5/20/2013,198169,"2,398.40",REVENUE,EDEXCEL LIMITED,101548
North East Lincolnshire Council,http://statistics.data.gov.uk/id/local-authority/00FC,Environment Economy & Housing,Development,Community Learning Services,Miscellaneous Expenses,Exam Fees,LL115,5/2/2013,194615,333.50,REVENUE,EDUCATION DEV INTERNATIONAL PLC,101377
North East Lincolnshire Council,http://statistics.data.gov.uk/id/local-authority/00FC,Environment Economy & Housing,Development,Community Learning Services,Miscellaneous Expenses,Exam Fees,LL115,5/27/2013,198775,475.00,REVENUE,EDUCATION DEV INTERNATIONAL PLC,101377
North East Lincolnshire Council,http://statistics.data.gov.uk/id/local-authority/00FC,Environment Economy & Housing,Development,Community Learning Services,Miscellaneous Expenses,Exam Fees,LL115,5/10/2013,194987,667.00,REVENUE,EDUCATION DEV INTERNATIONAL PLC,101377
North East Lincolnshire Council,http://statistics.data.gov.uk/id/local-authority/00FC,People And Communities,Vulnerable Young People,Standards & Effectiveness,Communications And Computing,Computer H/Ware - Licences,LF107,5/30/2013,199924,837.00,REVENUE,EDUCATION LINCS LTD,101059
North East Lincolnshire Council,http://statistics.data.gov.uk/id/local-authority/00FC,Environment Economy & Housing,Development,Community Investment Team,Private Contractors,Third Party Prov - Private,PH101,5/15/2013,195335,"8,250.15",REVENUE,E-FACTOR ENTERPRISES (NEL) LTD,102010
North East Lincolnshire Council,http://statistics.data.gov.uk/id/local-authority/00FC,Environment Economy & Housing,Development,Community Investment Team,Private Contractors,Third Party Prov - Private,PH101,5/23/2013,192329,-13.00,REVENUE,ELECTRICAL WHOLESALE SERVICES LTD,105544
North East Lincolnshire Council,http://statistics.data.gov.uk/id/local-authority/00FC,Resources,Commission & Information Sys,Communications And Marketing,Equip / Furniture / Materials,Equipment - Purchase,LA101,5/21/2013,196411,369.67,REVENUE,ELLIOTT BAXTER & COMPANY LIMITED,101996
North East Lincolnshire Council,http://statistics.data.gov.uk/id/local-authority/00FC,Resources,Commission & Information Sys,Communications And Marketing,Equip / Furniture / Materials,Equipment - Purchase,LA101,5/21/2013,196410,378.72,REVENUE,ELLIOTT BAXTER & COMPANY LIMITED,101996
North East Lincolnshire Council,http://statistics.data.gov.uk/id/local-authority/00FC,Environment Economy & Housing,Development,Community Investment Team,Private Contractors,Third Party Prov - Private,PH101,5/15/2013,197554,420.92,REVENUE,ELPIS TRAINING,120193
North East Lincolnshire Council,http://statistics.data.gov.uk/id/local-authority/00FC,Environment Economy & Housing,Neighbourhood Services,Community Pride,Private Contractors,Third Party Prov - Private,PH101,5/15/2013,195891,"1,700.00",REVENUE,EMPOWER EMPLOYABILITY MENTORING PROGRAMME,118831
North East Lincolnshire Council,http://statistics.data.gov.uk/id/local-authority/00FC,Environment Economy & Housing,Neighbourhood Services,Safer Communities P/Ship,Voluntary Associations,Third Pp - Third Sector,PF101,5/2/2013,195045,"60,000.00",REVENUE,EMPOWER EMPLOYABILITY MENTORING PROGRAMME,118831
North East Lincolnshire Council,http://statistics.data.gov.uk/id/local-authority/00FC,Cap Resources,Cap Finance And Assets,Property Planned Repairs,Cap Land/Build-Build Enh Wrk,Cap Land/Build-Build Enh Wrk,YA102,5/13/2013,195555,"3,198.75",CAPITAL,EMSC UK LIMITED,102526
North East Lincolnshire Council,http://statistics.data.gov.uk/id/local-authority/00FC,Environment Economy & Housing,Neighbourhood Services,Grounds And Street Cleansing,Miscellaneous Expenses,Licences,LL116,5/16/2013,197498,"10,320.00",REVENUE,ENVIRONMENT AGENCY,101076
North East Lincolnshire Council,http://statistics.data.gov.uk/id/local-authority/00FC,Environment Economy & Housing,Development,Environment,Grants And Subscriptions,Subscriptions,LJ101,5/2/2013,193934,369.00,REVENUE,ENVIRONMENTAL MANAGEMENT PUBLISHING,103847
North East Lincolnshire Council,http://statistics.data.gov.uk/id/local-authority/00FC,Resources,Finance & Assets,Cfs Assets & Pc Programme,Energy Costs,Electricity,GB102,5/23/2013,198478,-432.93,REVENUE,E-ON (GAS),101983
North East Lincolnshire Council,http://statistics.data.gov.uk/id/local-authority/00FC,Resources,Finance & Assets,Facilities Management,Energy Costs,Gas,GB101,5/14/2013,197177,262.69,REVENUE,E-ON (GAS),101983
North East Lincolnshire Council,http://statistics.data.gov.uk/id/local-authority/00FC,People And Communities,Childrens Hlth & Family Supp,Childrens Health Provision,Miscellaneous Expenses,Other Expenses General,LL119,5/27/2013,193341,331.40,REVENUE,E-ON (GAS),101983
North East Lincolnshire Council,http://statistics.data.gov.uk/id/local-authority/00FC,People And Communities,Childrens Hlth & Family Supp,Childrens Health Provision,Energy Costs,Electricity,GB102,5/21/2013,196289,558.38,REVENUE,E-ON (GAS),101983
North East Lincolnshire Council,http://statistics.data.gov.uk/id/local-authority/00FC,Resources,Finance & Assets,Cfs Assets & Pc Programme,Energy Costs,Electricity,GB102,5/28/2013,198402,"1,524.31",REVENUE,E-ON (GAS),101983
North East Lincolnshire Council,http://statistics.data.gov.uk/id/local-authority/00FC,Resources,Finance & Assets,Cfs Assets & Pc Programme,Energy Costs,Electricity,GB102,5/23/2013,198401,"1,650.60",REVENUE,E-ON (GAS),101983
North East Lincolnshire Council,http://statistics.data.gov.uk/id/local-authority/00FC,Resources,Finance & Assets,Cfs Assets & Pc Programme,Energy Costs,Electricity,GB102,5/22/2013,198403,"2,618.56",REVENUE,E-ON (GAS),101983
North East Lincolnshire Council,http://statistics.data.gov.uk/id/local-authority/00FC,Cap Economy Env And Housing,Cap Development,Housing Assistance,Cap Grants To O/Side Sources,Cap Grants To O/Side Sources,YJ101,5/8/2013,194777,"2,249.00",CAPITAL,E-ON UK PLC,109083
North East Lincolnshire Council,http://statistics.data.gov.uk/id/local-authority/00FC,Cap Economy Env And Housing,Cap Development,Housing Assistance,Cap Grants To O/Side Sources,Cap Grants To O/Side Sources,YJ101,5/8/2013,194796,"3,397.70",CAPITAL,E-ON UK PLC,109083
North East Lincolnshire Council,http://statistics.data.gov.uk/id/local-authority/00FC,Cap Economy Env And Housing,Cap Development,Housing Assistance,Cap Grants To O/Side Sources,Cap Grants To O/Side Sources,YJ101,5/8/2013,195340,"3,397.70",CAPITAL,E-ON UK PLC,109083
North East Lincolnshire Council,http://statistics.data.gov.uk/id/local-authority/00FC,Cap Economy Env And Housing,Cap Development,Housing Assistance,Cap Grants To O/Side Sources,Cap Grants To O/Side Sources,YJ101,5/15/2013,196601,"3,406.83",CAPITAL,E-ON UK PLC,109083
North East Lincolnshire Council,http://statistics.data.gov.uk/id/local-authority/00FC,Cap Economy Env And Housing,Cap Development,Housing Assistance,Cap Grants To O/Side Sources,Cap Grants To O/Side Sources,YJ101,5/15/2013,196613,"3,406.83",CAPITAL,E-ON UK PLC,109083
North East Lincolnshire Council,http://statistics.data.gov.uk/id/local-authority/00FC,Cap Economy Env And Housing,Cap Development,Housing Assistance,Cap Grants To O/Side Sources,Cap Grants To O/Side Sources,YJ101,5/10/2013,195339,"3,613.30",CAPITAL,E-ON UK PLC,109083
North East Lincolnshire Council,http://statistics.data.gov.uk/id/local-authority/00FC,Cap Economy Env And Housing,Cap Development,Housing Assistance,Cap Grants To O/Side Sources,Cap Grants To O/Side Sources,YJ101,5/8/2013,195338,"3,814.50",CAPITAL,E-ON UK PLC,109083
North East Lincolnshire Council,http://statistics.data.gov.uk/id/local-authority/00FC,Environment Economy & Housing,Neighbourhood Services,Grounds And Street Cleansing,Equip / Furniture / Materials,Equipment - Purchase,LA101,5/14/2013,193296,492.00,REVENUE,ERIC HUNTER LIMITED,101301
North East Lincolnshire Council,http://statistics.data.gov.uk/id/local-authority/00FC,People And Communities,Vulnerable Young People,Sen/Inclusion,Rep Alterations Maint Building,Buildings - Repairs And Maint,GA102,5/30/2013,199822,914.44,REVENUE,EXCELL ELECTRICAL CONTRACTORS,100601
North East Lincolnshire Council,http://statistics.data.gov.uk/id/local-authority/00FC,Resources,Commission & Information Sys,Informatics And Research,Communications And Computing,Computer S/Ware - Licences,LF103,5/27/2013,194700,"8,910.00",REVENUE,EXPERIAN LIMITED,100909
North East Lincolnshire Council,http://statistics.data.gov.uk/id/local-authority/00FC,Environment Economy & Housing,Development,Community Investment Team,Private Contractors,Third Party Prov - Private,PH101,5/30/2013,199771,731.25,REVENUE,EXPO DATA COMMS LTD,103571
North East Lincolnshire Council,http://statistics.data.gov.uk/id/local-authority/00FC,Environment Economy & Housing,Culture Leisure & Sport,Bradley Playing Fields,Equip / Furniture / Materials,Equipment - Purchase,LA101,5/16/2013,196210,"14,419.00",REVENUE,F G ADAMSON & SON,100752
North East Lincolnshire Council,http://statistics.data.gov.uk/id/local-authority/00FC,Environment Economy & Housing,Culture Leisure & Sport,Library Service,Print Stationery / Gen Off Exp,Printing And Stationery,LD103,5/2/2013,190069,282.06,REVENUE,F J RATCHFORD LTD,112425
North East Lincolnshire Council,http://statistics.data.gov.uk/id/local-authority/00FC,People And Communities,Vulnerable Young People,Placement & Support,Private Contractors,Third Party Prov - Private,PH101,5/7/2013,194821,750.00,REVENUE,FAMILIES FOR CHILDREN,109586
North East Lincolnshire Council,http://statistics.data.gov.uk/id/local-authority/00FC,Resources,Finance & Assets,Accountancy,Grants And Subscriptions,Subscriptions,LJ101,5/16/2013,197503,690.00,REVENUE,FINANCIAL REPORTING COUNCIL,108360
North East Lincolnshire Council,http://statistics.data.gov.uk/id/local-authority/00FC,Governance And Transformation,Transformation Project,Transformation Programme,Consultancy,Consultancy,PL101,5/15/2013,195026,"5,720.00",REVENUE,FIRST ASCENT CONSULTANCY LTD,103836
North East Lincolnshire Council,http://statistics.data.gov.uk/id/local-authority/00FC,Resources,Commission & Information Sys,Informatics And Research,Communications And Computing,Computer S/Ware - Licences,LF103,5/30/2013,199259,"5,114.00",REVENUE,FISCHER EDUCATION PROJECT LTD,110710
North East Lincolnshire Council,http://statistics.data.gov.uk/id/local-authority/00FC,Environment Economy & Housing,Neighbourhood Services,Garage & Fleet Strategy,Direct Transport Costs,Vehicles - Repairs And Maint,JA105,5/13/2013,196720,623.88,REVENUE,FLEET FACTORS LTD,100886
North East Lincolnshire Council,http://statistics.data.gov.uk/id/local-authority/00FC,Environment Economy & Housing,Neighbourhood Services,Garage & Fleet Strategy,Direct Transport Costs,Vehicles - Repairs And Maint,JA105,5/13/2013,196724,"1,198.52",REVENUE,FLEET FACTORS LTD,100886
North East Lincolnshire Council,http://statistics.data.gov.uk/id/local-authority/00FC,Environment Economy & Housing,Neighbourhood Services,Garage & Fleet Strategy,Direct Transport Costs,Vehicles - Repairs And Maint,JA105,5/13/2013,196725,"1,253.05",REVENUE,FLEET FACTORS LTD,100886
North East Lincolnshire Council,http://statistics.data.gov.uk/id/local-authority/00FC,Environment Economy & Housing,Neighbourhood Services,Garage & Fleet Strategy,Direct Transport Costs,Vehicles - Repairs And Maint,JA105,5/13/2013,196723,"1,270.27",REVENUE,FLEET FACTORS LTD,100886
North East Lincolnshire Council,http://statistics.data.gov.uk/id/local-authority/00FC,Environment Economy & Housing,Neighbourhood Services,Garage & Fleet Strategy,Direct Transport Costs,Vehicles - Repairs And Maint,JA105,5/13/2013,196722,"1,788.54",REVENUE,FLEET FACTORS LTD,100886
North East Lincolnshire Council,http://statistics.data.gov.uk/id/local-authority/00FC,Environment Economy & Housing,Neighbourhood Services,Garage & Fleet Strategy,Direct Transport Costs,Vehicles - Repairs And Maint,JA105,5/28/2013,196732,"2,357.63",REVENUE,FLEET FACTORS LTD,100886
North East Lincolnshire Council,http://statistics.data.gov.uk/id/local-authority/00FC,Environment Economy & Housing,Neighbourhood Services,Garage & Fleet Strategy,Direct Transport Costs,Vehicles - Repairs And Maint,JA105,5/28/2013,196731,"2,806.63",REVENUE,FLEET FACTORS LTD,100886
North East Lincolnshire Council,http://statistics.data.gov.uk/id/local-authority/00FC,Environment Economy & Housing,Neighbourhood Services,Garage & Fleet Strategy,Direct Transport Costs,Vehicles - Repairs And Maint,JA105,5/13/2013,196727,"2,858.53",REVENUE,FLEET FACTORS LTD,100886
North East Lincolnshire Council,http://statistics.data.gov.uk/id/local-authority/00FC,Environment Economy & Housing,Neighbourhood Services,Garage & Fleet Strategy,Direct Transport Costs,Vehicles - Repairs And Maint,JA105,5/28/2013,196730,"2,868.95",REVENUE,FLEET FACTORS LTD,100886
North East Lincolnshire Council,http://statistics.data.gov.uk/id/local-authority/00FC,Environment Economy & Housing,Neighbourhood Services,Grounds And Street Cleansing,Equip / Furniture / Materials,Equipment - Purchase,LA101,5/15/2013,194788,"1,300.00",REVENUE,FLEET LINE MARKERS LIMITED,100595
North East Lincolnshire Council,http://statistics.data.gov.uk/id/local-authority/00FC,People And Communities,Vulnerable Young People,Placement & Support,Other Agencies,Additional Cost,PJ114,5/7/2013,195605,"1,400.00",REVENUE,FLEX E VOUCHERS,103348
North East Lincolnshire Council,http://statistics.data.gov.uk/id/local-authority/00FC,Resources,Finance & Assets,Facilities Management,Grounds Maintenance Costs,Grounds Maintenance,GJ101,5/9/2013,196279,260.00,REVENUE,FLORAL DECOR,103642
North East Lincolnshire Council,http://statistics.data.gov.uk/id/local-authority/00FC,Resources,Finance & Assets,Commercial Estate,Grounds Maintenance Costs,Grounds Maintenance,GJ101,5/13/2013,196512,424.19,REVENUE,FLORAL DECOR,103642
North East Lincolnshire Council,http://statistics.data.gov.uk/id/local-authority/00FC,People And Communities,Vulnerable Young People,Sen/Inclusion,Direct Employee Expenses,Agency Staff,EA105,5/3/2013,195117,285.75,REVENUE,FOCUSCHANGE LTD,112011
North East Lincolnshire Council,http://statistics.data.gov.uk/id/local-authority/00FC,People And Communities,Vulnerable Young People,Sen/Inclusion,Direct Employee Expenses,Agency Staff,EA105,5/3/2013,195117,304.00,REVENUE,FOCUSCHANGE LTD,112011
North East Lincolnshire Council,http://statistics.data.gov.uk/id/local-authority/00FC,People And Communities,Vulnerable Young People,Sen/Inclusion,Direct Employee Expenses,Agency Staff,EA105,5/3/2013,193418,"2,625.00",REVENUE,FOCUSCHANGE LTD,112011
North East Lincolnshire Council,http://statistics.data.gov.uk/id/local-authority/00FC,People And Communities,Vulnerable Young People,Sen/Inclusion,Direct Employee Expenses,Agency Staff,EA105,5/3/2013,195117,"5,775.00",REVENUE,FOCUSCHANGE LTD,112011
North East Lincolnshire Council,http://statistics.data.gov.uk/id/local-authority/00FC,People And Communities,Childrens Hlth & Family Supp,Childrens Centre Development,Other Agencies,Child Care Payments,PJ104,5/2/2013,194099,425.39,REVENUE,FOR UNDER FIVES,101931
North East Lincolnshire Council,http://statistics.data.gov.uk/id/local-authority/00FC,People And Communities,Childrens Hlth & Family Supp,Childrens Centre Development,Other Agencies,Child Care Payments,PJ104,5/23/2013,198467,502.93,REVENUE,FOR UNDER FIVES,101931
North East Lincolnshire Council,http://statistics.data.gov.uk/id/local-authority/00FC,People And Communities,Childrens Hlth & Family Supp,Childrens Centre Development,Other Agencies,Child Care Payments,PJ104,5/2/2013,193971,509.91,REVENUE,FOR UNDER FIVES,101931
North East Lincolnshire Council,http://statistics.data.gov.uk/id/local-authority/00FC,People And Communities,Childrens Hlth & Family Supp,Integ Local Service Delivery,Communications And Computing,Postage,LF111,5/14/2013,196988,"2,000.00",REVENUE,FRANCOTYP-POSTALIA LTD,108425
North East Lincolnshire Council,http://statistics.data.gov.uk/id/local-authority/00FC,Chief Executive,Public Health,Directors Public Health,Private Contractors,Contract Payments,PH105,5/21/2013,197540,"13,635.27",REVENUE,FREELANCE NEEDLE EXCHANGE LIMITED,119999
North East Lincolnshire Council,http://statistics.data.gov.uk/id/local-authority/00FC,Chief Executive,Public Health,Directors Public Health,Private Contractors,Contract Payments,PH105,5/15/2013,197502,"16,841.33",REVENUE,FREELANCE NEEDLE EXCHANGE LIMITED,119999
North East Lincolnshire Council,http://statistics.data.gov.uk/id/local-authority/00FC,Resources,Commission & Information Sys,Central Commissioning & Delive,Communications And Computing,Computer S/Ware - Purchases,LF101,5/15/2013,196603,"4,762.58",REVENUE,FRETWELL-DOWNING HOSPITALITY,103090
North East Lincolnshire Council,http://statistics.data.gov.uk/id/local-authority/00FC,Resources,Governance & Business Support,Strategy Change & Improvement,Contributions To Provisions,Contributions - Third Sector,LK102,5/15/2013,197275,"2,380.50",REVENUE,FRIENDSHIP AT HOME,108515
North East Lincolnshire Council,http://statistics.data.gov.uk/id/local-authority/00FC,Environment Economy & Housing,Development,Economic Development,Grounds Maintenance Costs,Grounds Maintenance,GJ101,5/15/2013,197296,275.71,REVENUE,FUTURE CLEANING SERVICES LTD,102557
North East Lincolnshire Council,http://statistics.data.gov.uk/id/local-authority/00FC,People And Communities,Childrens Hlth & Family Supp,Childrens Centre Development,Cleaning And Domestic Supplies,Cleaning - Consumables,GH103,5/23/2013,198470,318.51,REVENUE,FUTURE CLEANING SERVICES LTD,102557
North East Lincolnshire Council,http://statistics.data.gov.uk/id/local-authority/00FC,People And Communities,Childrens Hlth & Family Supp,Childrens Centre Development,Direct Employee Expenses,Agency Staff,EA105,5/30/2013,199831,529.00,REVENUE,FUTURE CLEANING SERVICES LTD,102557
North East Lincolnshire Council,http://statistics.data.gov.uk/id/local-authority/00FC,People And Communities,Childrens Hlth & Family Supp,Childrens Centre Development,Cleaning And Domestic Supplies,Cleaning - Services,GH102,5/2/2013,194634,529.00,REVENUE,FUTURE CLEANING SERVICES LTD,102557
North East Lincolnshire Council,http://statistics.data.gov.uk/id/local-authority/00FC,People And Communities,Childrens Hlth & Family Supp,Childrens Centre Development,Cleaning And Domestic Supplies,Cleaning - Services,GH102,5/10/2013,194837,529.00,REVENUE,FUTURE CLEANING SERVICES LTD,102557
North East Lincolnshire Council,http://statistics.data.gov.uk/id/local-authority/00FC,People And Communities,Childrens Hlth & Family Supp,Childrens Centre Development,Cleaning And Domestic Supplies,Cleaning - Services,GH102,5/23/2013,196814,690.08,REVENUE,FUTURE CLEANING SERVICES LTD,102557
North East Lincolnshire Council,http://statistics.data.gov.uk/id/local-authority/00FC,People And Communities,Childrens Hlth & Family Supp,Childrens Centre Development,Cleaning And Domestic Supplies,Cleaning - Services,GH102,5/23/2013,196815,860.00,REVENUE,FUTURE CLEANING SERVICES LTD,102557
North East Lincolnshire Council,http://statistics.data.gov.uk/id/local-authority/00FC,Resources,Finance & Assets,Facilities Management,Cleaning And Domestic Supplies,Cleaning - Services,GH102,5/13/2013,196493,"1,332.50",REVENUE,FUTURE CLEANING SERVICES LTD,102557
North East Lincolnshire Council,http://statistics.data.gov.uk/id/local-authority/00FC,Resources,Finance & Assets,Facilities Management,Cleaning And Domestic Supplies,Cleaning - Services,GH102,5/13/2013,196498,"186,635.68",REVENUE,FUTURE CLEANING SERVICES LTD,102557
North East Lincolnshire Council,http://statistics.data.gov.uk/id/local-authority/00FC,Resources,Governance & Business Support,Customer Services,Private Contractors,External Security Services,PH103,5/21/2013,198455,"-1,526.50",REVENUE,G4S CASH SERVICES (UK) LIMITED,100952
North East Lincolnshire Council,http://statistics.data.gov.uk/id/local-authority/00FC,Resources,Governance & Business Support,Customer Services,Private Contractors,External Security Services,PH103,5/21/2013,198457,651.66,REVENUE,G4S CASH SERVICES (UK) LIMITED,100952
North East Lincolnshire Council,http://statistics.data.gov.uk/id/local-authority/00FC,Resources,Governance & Business Support,Customer Services,Private Contractors,External Security Services,PH103,5/21/2013,198456,"2,080.11",REVENUE,G4S CASH SERVICES (UK) LIMITED,100952
North East Lincolnshire Council,http://statistics.data.gov.uk/id/local-authority/00FC,Resources,Governance & Business Support,Customer Services,Private Contractors,External Security Services,PH103,5/20/2013,198118,"2,080.11",REVENUE,G4S CASH SERVICES (UK) LIMITED,100952
North East Lincolnshire Council,http://statistics.data.gov.uk/id/local-authority/00FC,People And Communities,Vulnerable Young People,Placement & Support,Miscellaneous Expenses,Other Expenses General,LL119,5/23/2013,198870,360.00,REVENUE,GAP GROUP LTD,103371
North East Lincolnshire Council,http://statistics.data.gov.uk/id/local-authority/00FC,Resources,Finance & Assets,Accountancy,Consultancy,Consultancy,PL101,5/15/2013,196406,"2,552.39",REVENUE,GEMINI CONSULTANTS LTD,100597
North East Lincolnshire Council,http://statistics.data.gov.uk/id/local-authority/00FC,Resources,Commission & Information Sys,Informatics And Research,Communications And Computing,Computer S/Ware - Licences,LF103,5/2/2013,194666,"6,856.25",REVENUE,GEOWISE LIMITED,102016
North East Lincolnshire Council,http://statistics.data.gov.uk/id/local-authority/00FC,Resources,Commission & Information Sys,Communications And Marketing,Print Stationery / Gen Off Exp,Printing And Stationery,LD103,5/20/2013,194902,"1,400.00",REVENUE,GETTY IMAGES INTERNATIONAL,109521
North East Lincolnshire Council,http://statistics.data.gov.uk/id/local-authority/00FC,Resources,Governance & Business Support,Customer Services,Communications And Computing,Computer S/Ware - Maintenance,LF102,5/7/2013,195579,"1,886.00",REVENUE,GLORY,102762
North East Lincolnshire Council,http://statistics.data.gov.uk/id/local-authority/00FC,Chief Executive,Public Health,Public Hlth - Improved Health,Indirect Employee Expenses,Staff Training,EB122,5/23/2013,196595,295.00,REVENUE,GOVNET COMMUNICATIONS,101546
North East Lincolnshire Council,http://statistics.data.gov.uk/id/local-authority/00FC,Cap Resources,Cap Finance And Assets,Property Rationalisation,Cap Land/Build-Build Enh Wrk,Cap Land/Build-Build Enh Wrk,YA102,5/21/2013,196812,"4,714.00",CAPITAL,GRADE 3 LIMITED,101924
North East Lincolnshire Council,http://statistics.data.gov.uk/id/local-authority/00FC,Environment Economy & Housing,Development,Transport Policy,Private Contractors,Concessionary Fares,PH104,5/30/2013,196810,"1,217.31",REVENUE,GRAYSCROFT BUS SERVICES LIMITED,101786
North East Lincolnshire Council,http://statistics.data.gov.uk/id/local-authority/00FC,Resources,Commission & Information Sys,Information Technology,Communications And Computing,Computer H/Ware - Purchases,LF105,5/23/2013,180434,-926.62,REVENUE,GREENWORLD ELECTRONICS LTD,109085
North East Lincolnshire Council,http://statistics.data.gov.uk/id/local-authority/00FC,People And Communities,Vulnerable Young People,Strategic Management,Indirect Employee Expenses,Allowances - Employees,EB110,5/9/2013,195847,756.00,REVENUE,GRIMSBY & DISTRICT TEACHERS ASSOCIATION,107358
North East Lincolnshire Council,http://statistics.data.gov.uk/id/local-authority/00FC,People And Communities,Improved Health,Supporting People,Other Agencies,Third Pp - Block Gross,PJ103,5/30/2013,199848,REDACTED COMMERCIALLY SENSITIVE,REVENUE,GRIMSBY AND CLEETHORPES YMCA,100305
North East Lincolnshire Council,http://statistics.data.gov.uk/id/local-authority/00FC,Environment Economy & Housing,Development,Community Investment Team,Private Contractors,Third Party Prov - Private,PH101,5/7/2013,193969,960.00,REVENUE,GRIMSBY CENTRAL HALL TRUST,100882
North East Lincolnshire Council,http://statistics.data.gov.uk/id/local-authority/00FC,Resources,Governance & Business Support,Strategy Change & Improvement,Contributions To Provisions,Contributions - Third Sector,LK102,5/14/2013,197274,"2,653.00",REVENUE,GRIMSBY CLEETHORPES & DISTRICT MIND,104458
North East Lincolnshire Council,http://statistics.data.gov.uk/id/local-authority/00FC,Environment Economy & Housing,Neighbourhood Services,Grounds And Street Cleansing,Private Contractors,Third Party Prov - Private,PH101,5/16/2013,197392,"2,926.75",REVENUE,GRIMSBY OPERATIONS LTD,101116
North East Lincolnshire Council,http://statistics.data.gov.uk/id/local-authority/00FC,Environment Economy & Housing,Development,Community Investment Team,Private Contractors,Third Party Prov - Private,PH101,5/15/2013,196917,"1,250.00",REVENUE,GRIMSBY TWIST & FLIP (GYMNASTICS GROUP),119685
North East Lincolnshire Council,http://statistics.data.gov.uk/id/local-authority/00FC,Resources,Commission & Information Sys,Communications And Marketing,Private Contractors,Third Party Prov - Private,PH101,5/15/2013,194944,254.00,REVENUE,GSB PRINT & DESIGN LTD,101553
North East Lincolnshire Council,http://statistics.data.gov.uk/id/local-authority/00FC,Resources,Commission & Information Sys,Communications And Marketing,Private Contractors,Third Party Prov - Private,PH101,5/2/2013,193913,287.00,REVENUE,GSB PRINT & DESIGN LTD,101553
North East Lincolnshire Council,http://statistics.data.gov.uk/id/local-authority/00FC,Resources,Commission & Information Sys,Communications And Marketing,Private Contractors,Third Party Prov - Private,PH101,5/2/2013,193916,287.00,REVENUE,GSB PRINT & DESIGN LTD,101553
North East Lincolnshire Council,http://statistics.data.gov.uk/id/local-authority/00FC,Resources,Commission & Information Sys,Communications And Marketing,Private Contractors,Third Party Prov - Private,PH101,5/30/2013,199285,496.00,REVENUE,GSB PRINT & DESIGN LTD,101553
North East Lincolnshire Council,http://statistics.data.gov.uk/id/local-authority/00FC,Resources,Commission & Information Sys,Communications And Marketing,Private Contractors,Third Party Prov - Private,PH101,5/2/2013,193910,956.00,REVENUE,GSB PRINT & DESIGN LTD,101553
North East Lincolnshire Council,http://statistics.data.gov.uk/id/local-authority/00FC,Resources,Commission & Information Sys,Communications And Marketing,Private Contractors,Third Party Prov - Private,PH101,5/2/2013,193909,956.00,REVENUE,GSB PRINT & DESIGN LTD,101553
North East Lincolnshire Council,http://statistics.data.gov.uk/id/local-authority/00FC,Resources,Commission & Information Sys,Communications And Marketing,Private Contractors,Third Party Prov - Private,PH101,5/2/2013,193911,"1,923.00",REVENUE,GSB PRINT & DESIGN LTD,101553
North East Lincolnshire Council,http://statistics.data.gov.uk/id/local-authority/00FC,Resources,Commission & Information Sys,Communications And Marketing,Private Contractors,Third Party Prov - Private,PH101,5/2/2013,193906,"1,923.00",REVENUE,GSB PRINT & DESIGN LTD,101553
North East Lincolnshire Council,http://statistics.data.gov.uk/id/local-authority/00FC,Environment Economy & Housing,Development,Strat Hous Out Of Scope,Consultancy,Consultancy,PL101,5/9/2013,196181,"17,482.50",REVENUE,GVA GRIMLEY,101103
North East Lincolnshire Council,http://statistics.data.gov.uk/id/local-authority/00FC,Environment Economy & Housing,Development,Strat Hous Out Of Scope,Consultancy,Consultancy,PL101,5/9/2013,196183,"17,482.50",REVENUE,GVA GRIMLEY,101103
North East Lincolnshire Council,http://statistics.data.gov.uk/id/local-authority/00FC,People And Communities,Childrens Hlth & Family Supp,Childrens Health Provision,Miscellaneous Expenses,Medical Supplies And Services,LL109,5/27/2013,196476,-30.50,REVENUE,H C SLINGSBY PLC,100640
North East Lincolnshire Council,http://statistics.data.gov.uk/id/local-authority/00FC,Chief Executive,Public Health,Public Hlth - Improved Health,Contributions To Provisions,Contributions - Other,LK103,5/15/2013,195859,"1,384.00",REVENUE,HAGS-SMP LTD,119703
North East Lincolnshire Council,http://statistics.data.gov.uk/id/local-authority/00FC,Chief Executive,Public Health,Public Hlth - Improved Health,Print Stationery / Gen Off Exp,Publicity,LD105,5/2/2013,194090,"17,000.00",REVENUE,HAGS-SMP LTD,119703
North East Lincolnshire Council,http://statistics.data.gov.uk/id/local-authority/00FC,Chief Executive,Public Health,Public Hlth - Improved Health,Catering,Provisions,LB101,5/2/2013,194114,"40,000.00",REVENUE,HAGS-SMP LTD,119703
North East Lincolnshire Council,http://statistics.data.gov.uk/id/local-authority/00FC,Cap Resources,Cap Finance And Assets,Property Rationalisation,Cap Infrastr-Purchase,Cap Infrastr-Purchase,YC101,5/14/2013,197148,472.00,CAPITAL,HAITH'S HEATING LTD,101342
North East Lincolnshire Council,http://statistics.data.gov.uk/id/local-authority/00FC,Resources,Governance & Business Support,Democratic Services,Communications And Computing,Computer S/Ware - Licences,LF103,5/2/2013,194149,"14,084.50",REVENUE,HALAROSE LIMITED,101974
North East Lincolnshire Council,http://statistics.data.gov.uk/id/local-authority/00FC,People And Communities,Improved Health,Licensing,Other Agencies,Exceptional Task,PJ113,5/15/2013,194910,"2,730.00",REVENUE,HALCROW GROUP LTD,102256
North East Lincolnshire Council,http://statistics.data.gov.uk/id/local-authority/00FC,People And Communities,Vulnerable Young People,Placement & Support,Equip / Furniture / Materials,Equipment - Purchase,LA101,5/27/2013,199040,541.59,REVENUE,HALFORDS,103402
North East Lincolnshire Council,http://statistics.data.gov.uk/id/local-authority/00FC,People And Communities,Improved Health,Improved Health Operational,Equip / Furniture / Materials,Health & Safety Supplies,LA116,5/29/2013,199021,390.00,REVENUE,HANDICARE ACCESSIIBILITY LTD,102647
North East Lincolnshire Council,http://statistics.data.gov.uk/id/local-authority/00FC,Cap Economy Env And Housing,Cap Development,Hps-Disabled Fac. Grants,Cap Grants To O/Side Sources,Cap Grants To O/Side Sources,YJ101,5/8/2013,195495,"2,025.00",CAPITAL,HANDICARE ACCESSIIBILITY LTD,102647
North East Lincolnshire Council,http://statistics.data.gov.uk/id/local-authority/00FC,Cap Economy Env And Housing,Cap Development,Hps-Disabled Fac. Grants,Cap Grants To O/Side Sources,Cap Grants To O/Side Sources,YJ101,5/2/2013,193690,"2,025.00",CAPITAL,HANDICARE ACCESSIIBILITY LTD,102647
North East Lincolnshire Council,http://statistics.data.gov.uk/id/local-authority/00FC,Cap Economy Env And Housing,Cap Development,Hps-Disabled Fac. Grants,Cap Grants To O/Side Sources,Cap Grants To O/Side Sources,YJ101,5/8/2013,195494,"2,025.00",CAPITAL,HANDICARE ACCESSIIBILITY LTD,102647
North East Lincolnshire Council,http://statistics.data.gov.uk/id/local-authority/00FC,Cap Economy Env And Housing,Cap Development,Hps-Disabled Fac. Grants,Cap Grants To O/Side Sources,Cap Grants To O/Side Sources,YJ101,5/21/2013,197257,"2,077.00",CAPITAL,HANDICARE ACCESSIIBILITY LTD,102647
North East Lincolnshire Council,http://statistics.data.gov.uk/id/local-authority/00FC,Cap Economy Env And Housing,Cap Development,Hps-Disabled Fac. Grants,Cap Grants To O/Side Sources,Cap Grants To O/Side Sources,YJ101,5/2/2013,193682,"2,223.00",CAPITAL,HANDICARE ACCESSIIBILITY LTD,102647
North East Lincolnshire Council,http://statistics.data.gov.uk/id/local-authority/00FC,Cap Economy Env And Housing,Cap Development,Hps-Disabled Fac. Grants,Cap Grants To O/Side Sources,Cap Grants To O/Side Sources,YJ101,5/21/2013,196609,"2,236.00",CAPITAL,HANDICARE ACCESSIIBILITY LTD,102647
North East Lincolnshire Council,http://statistics.data.gov.uk/id/local-authority/00FC,Cap Economy Env And Housing,Cap Development,Hps-Disabled Fac. Grants,Cap Grants To O/Side Sources,Cap Grants To O/Side Sources,YJ101,5/2/2013,193688,"2,371.00",CAPITAL,HANDICARE ACCESSIIBILITY LTD,102647
North East Lincolnshire Council,http://statistics.data.gov.uk/id/local-authority/00FC,Cap Economy Env And Housing,Cap Development,Hps-Disabled Fac. Grants,Cap Grants To O/Side Sources,Cap Grants To O/Side Sources,YJ101,5/2/2013,193686,"2,371.00",CAPITAL,HANDICARE ACCESSIIBILITY LTD,102647
North East Lincolnshire Council,http://statistics.data.gov.uk/id/local-authority/00FC,Cap Economy Env And Housing,Cap Development,Hps-Disabled Fac. Grants,Cap Grants To O/Side Sources,Cap Grants To O/Side Sources,YJ101,5/15/2013,196608,"2,582.00",CAPITAL,HANDICARE ACCESSIIBILITY LTD,102647
North East Lincolnshire Council,http://statistics.data.gov.uk/id/local-authority/00FC,People And Communities,Improved Health,Improved Health Operational,Equip / Furniture / Materials,Health & Safety Supplies,LA116,5/29/2013,199021,"3,000.00",REVENUE,HANDICARE ACCESSIIBILITY LTD,102647
North East Lincolnshire Council,http://statistics.data.gov.uk/id/local-authority/00FC,Cap Economy Env And Housing,Cap Development,Hps-Disabled Fac. Grants,Cap Grants To O/Side Sources,Cap Grants To O/Side Sources,YJ101,5/8/2013,195492,"4,609.00",CAPITAL,HANDICARE ACCESSIIBILITY LTD,102647
North East Lincolnshire Council,http://statistics.data.gov.uk/id/local-authority/00FC,Cap Economy Env And Housing,Cap Development,Hps-Disabled Fac. Grants,Cap Grants To O/Side Sources,Cap Grants To O/Side Sources,YJ101,5/21/2013,197255,"4,742.00",CAPITAL,HANDICARE ACCESSIIBILITY LTD,102647
North East Lincolnshire Council,http://statistics.data.gov.uk/id/local-authority/00FC,Cap Economy Env And Housing,Cap Development,Hps-Disabled Fac. Grants,Cap Grants To O/Side Sources,Cap Grants To O/Side Sources,YJ101,5/8/2013,195595,"4,901.00",CAPITAL,HANDICARE ACCESSIIBILITY LTD,102647
North East Lincolnshire Council,http://statistics.data.gov.uk/id/local-authority/00FC,Cap Economy Env And Housing,Cap Development,Hps-Disabled Fac. Grants,Cap Grants To O/Side Sources,Cap Grants To O/Side Sources,YJ101,5/8/2013,195493,"4,920.00",CAPITAL,HANDICARE ACCESSIIBILITY LTD,102647
North East Lincolnshire Council,http://statistics.data.gov.uk/id/local-authority/00FC,People And Communities,Improved Health,Supporting People,Other Agencies,Third Pp - Block Gross,PJ103,5/30/2013,199849,REDACTED COMMERCIALLY SENSITIVE,REVENUE,HANOVER HOUSING ASSOCIATION,100307
North East Lincolnshire Council,http://statistics.data.gov.uk/id/local-authority/00FC,People And Communities,Vulnerable Young People,School Access Governor Student,Contract Hire-Operating Leases,Vehicles - Contract Hire,JC101,5/30/2013,199824,REDACTED COMMERCIALLY SENSITIVE,REVENUE,HANSONS AIRPORT EXPRESS,111879
North East Lincolnshire Council,http://statistics.data.gov.uk/id/local-authority/00FC,Chief Executive,Public Health,Public Hlth - Improved Health,Miscellaneous Expenses,Other Supplies & Services,LL110,5/2/2013,193918,578.80,REVENUE,HARLEQUIN OFFICE FURNITURE LTD,103530
North East Lincolnshire Council,http://statistics.data.gov.uk/id/local-authority/00FC,Environment Economy & Housing,Neighbourhood Services,Beach Safety,Rep Alterations Maint Building,Buildings - Repairs And Maint,GA102,5/2/2013,190102,622.44,REVENUE,HARRIS & GARROD LTD,100604
North East Lincolnshire Council,http://statistics.data.gov.uk/id/local-authority/00FC,Environment Economy & Housing,Development,Highways Dso,Dlo Holding,Depot Fuel Holding Account,LM101,5/23/2013,195911,"-4,575.60",REVENUE,HARVEST ENERGY LTD,102544
North East Lincolnshire Council,http://statistics.data.gov.uk/id/local-authority/00FC,Environment Economy & Housing,Development,Highways Dso,Dlo Holding,Depot Fuel Holding Account,LM101,5/23/2013,197279,"4,575.60",REVENUE,HARVEST ENERGY LTD,102544
North East Lincolnshire Council,http://statistics.data.gov.uk/id/local-authority/00FC,Environment Economy & Housing,Development,Highways Dso,Dlo Holding,Depot Fuel Holding Account,LM101,5/23/2013,197527,"18,022.40",REVENUE,HARVEST ENERGY LTD,102544
North East Lincolnshire Council,http://statistics.data.gov.uk/id/local-authority/00FC,Environment Economy & Housing,Development,Highways Dso,Dlo Holding,Depot Fuel Holding Account,LM101,5/29/2013,196808,"18,022.40",REVENUE,HARVEST ENERGY LTD,102544
North East Lincolnshire Council,http://statistics.data.gov.uk/id/local-authority/00FC,Environment Economy & Housing,Development,Highways Dso,Dlo Holding,Depot Fuel Holding Account,LM101,5/29/2013,196807,"18,023.53",REVENUE,HARVEST ENERGY LTD,102544
North East Lincolnshire Council,http://statistics.data.gov.uk/id/local-authority/00FC,Environment Economy & Housing,Development,Highways Dso,Dlo Holding,Depot Fuel Holding Account,LM101,5/2/2013,194474,"20,590.20",REVENUE,HARVEST ENERGY LTD,102544
North East Lincolnshire Council,http://statistics.data.gov.uk/id/local-authority/00FC,People And Communities,Vulnerable Young People,Sen/Inclusion,Contributions To Provisions,Contributions - Other,LK103,5/16/2013,197500,"2,293.49",REVENUE,HAVEN METHODIST CHURCH PRE-SCHOOL,101780
North East Lincolnshire Council,http://statistics.data.gov.uk/id/local-authority/00FC,People And Communities,Improved Health,Supporting People,Other Agencies,Third Pp - Block Subsidy,PJ102,5/20/2013,198152,REDACTED COMMERCIALLY SENSITIVE,REVENUE,HICA,100319
North East Lincolnshire Council,http://statistics.data.gov.uk/id/local-authority/00FC,Resources,Governance & Business Support,Democratic Services,Indirect Employee Expenses,Allowances - Employees,EB110,5/31/2013,200149,-483.60,REVENUE,HM REVENUE & CUSTOMS,120121
North East Lincolnshire Council,http://statistics.data.gov.uk/id/local-authority/00FC,Resources,Governance & Business Support,Democratic Services,Indirect Employee Expenses,Allowances - Employees,EB110,5/8/2013,194758,483.60,REVENUE,HM REVENUE & CUSTOMS,120121
North East Lincolnshire Council,http://statistics.data.gov.uk/id/local-authority/00FC,Resources,Governance & Business Support,Democratic Services,Indirect Employee Expenses,Allowances - Employees,EB110,5/9/2013,196170,483.60,REVENUE,HM REVENUE & CUSTOMS,120121
North East Lincolnshire Council,http://statistics.data.gov.uk/id/local-authority/00FC,People And Communities,Vulnerable Young People,Placement & Support,Miscellaneous Expenses,Other Expenses General,LL119,5/15/2013,194462,"2,875.00",REVENUE,HOLLIDAY CREATIVE MARKETING,112397
North East Lincolnshire Council,http://statistics.data.gov.uk/id/local-authority/00FC,People And Communities,Vulnerable Young People,Placement & Support,Indirect Employee Expenses,Staff Training,EB122,5/14/2013,196458,"2,950.00",REVENUE,HOLLIDAY CREATIVE MARKETING,112397
North East Lincolnshire Council,http://statistics.data.gov.uk/id/local-authority/00FC,Environment Economy & Housing,Neighbourhood Services,Safer Communities P/Ship,Government Departments,Third Party Prov - Govt Depts,PE101,5/13/2013,195497,"2,742.93",REVENUE,HOME OFFICE ACCOUNTING OFFICER,120164
North East Lincolnshire Council,http://statistics.data.gov.uk/id/local-authority/00FC,People And Communities,Improved Health,Supporting People,Other Agencies,Third Pp - Block Subsidy,PJ102,5/20/2013,198154,REDACTED COMMERCIALLY SENSITIVE,REVENUE,HOUSING & SUPPORT SOLUTIONS,100321
North East Lincolnshire Council,http://statistics.data.gov.uk/id/local-authority/00FC,People And Communities,Improved Health,Supporting People,Other Agencies,Third Pp - Block Gross,PJ103,5/30/2013,199854,REDACTED COMMERCIALLY SENSITIVE,REVENUE,HOUSING 21,100320
North East Lincolnshire Council,http://statistics.data.gov.uk/id/local-authority/00FC,Resources,Strategic Director Resources,Director And Support,Indirect Employee Expenses,Staff Training,EB122,5/2/2013,194665,465.00,REVENUE,HUB EVENTS LTD,119733
North East Lincolnshire Council,http://statistics.data.gov.uk/id/local-authority/00FC,Environment Economy & Housing,Development,Community Investment Team,Private Contractors,Third Party Prov - Private,PH101,5/22/2013,195024,"1,250.00",REVENUE,HULL BUSINESS TRAINING CENTRE,107699
North East Lincolnshire Council,http://statistics.data.gov.uk/id/local-authority/00FC,Environment Economy & Housing,Development,Transport Policy,Other Agencies,Grants Pd Over To Third Party,PJ138,5/16/2013,194839,"10,402.50",REVENUE,HUMBER & WOLDS RURAL COMM COUN,101169
North East Lincolnshire Council,http://statistics.data.gov.uk/id/local-authority/00FC,Environment Economy & Housing,Culture Leisure & Sport,Tourist Information Centre,Private Contractors,Third Party Prov - Private,PH101,5/7/2013,195583,"2,457.00",REVENUE,HUMBER BRIDGE BOARD,101054
North East Lincolnshire Council,http://statistics.data.gov.uk/id/local-authority/00FC,Environment Economy & Housing,Culture Leisure & Sport,Tourist Information Centre,Private Contractors,Third Party Prov - Private,PH101,5/7/2013,195585,"4,428.00",REVENUE,HUMBER BRIDGE BOARD,101054
North East Lincolnshire Council,http://statistics.data.gov.uk/id/local-authority/00FC,People And Communities,Improved Health,Supporting People,Other Agencies,Third Pp - Block Subsidy,PJ102,5/20/2013,198151,REDACTED COMMERCIALLY SENSITIVE,REVENUE,HUMBERCARE LTD,100311
North East Lincolnshire Council,http://statistics.data.gov.uk/id/local-authority/00FC,People And Communities,Vulnerable Young People,Through Care & Disability,Other Agencies,Housing Benefit,PJ134,5/7/2013,195374,"7,187.56",REVENUE,HUMBERCARE LTD,100311
North East Lincolnshire Council,http://statistics.data.gov.uk/id/local-authority/00FC,People And Communities,Vulnerable Young People,Through Care & Disability,Private Contractors,Third Party Prov - Private,PH101,5/23/2013,198871,REDACTED COMMERCIALLY SENSITIVE,REVENUE,HUMBERCARE LTD,100311
North East Lincolnshire Council,http://statistics.data.gov.uk/id/local-authority/00FC,People And Communities,Improved Health,Supporting People,Other Agencies,Third Pp - Block Gross,PJ103,5/30/2013,199852,REDACTED COMMERCIALLY SENSITIVE,REVENUE,HUMBERCARE LTD,100311
North East Lincolnshire Council,http://statistics.data.gov.uk/id/local-authority/00FC,People And Communities,Vulnerable Young People,Sen/Inclusion,Contributions To Provisions,Contributions - Other,LK103,5/7/2013,194543,"1,260.00",REVENUE,HUMBERSTON ACADEMY,106067
North East Lincolnshire Council,http://statistics.data.gov.uk/id/local-authority/00FC,People And Communities,Vulnerable Young People,School Access Governor Student,Contract Hire-Operating Leases,Vehicles - Contract Hire,JC101,5/30/2013,199303,REDACTED COMMERCIALLY SENSITIVE,REVENUE,HUXMANOR LTD,101444
North East Lincolnshire Council,http://statistics.data.gov.uk/id/local-authority/00FC,People And Communities,Vulnerable Young People,School Access Governor Student,Contract Hire-Operating Leases,Vehicles - Contract Hire,JC101,5/30/2013,199301,REDACTED COMMERCIALLY SENSITIVE,REVENUE,HUXMANOR LTD,101444
North East Lincolnshire Council,http://statistics.data.gov.uk/id/local-authority/00FC,People And Communities,Vulnerable Young People,School Access Governor Student,Contract Hire-Operating Leases,Vehicles - Contract Hire,JC101,5/30/2013,199302,REDACTED COMMERCIALLY SENSITIVE,REVENUE,HUXMANOR LTD,101444
North East Lincolnshire Council,http://statistics.data.gov.uk/id/local-authority/00FC,People And Communities,Vulnerable Young People,Through Care & Disability,Direct Transport Costs,Voluntary Drivers Expenses,JA107,5/9/2013,196178,288.67,REVENUE,REDACTED PERSONAL INFORMATION,REDACTED PERSONAL INFORMATION
North East Lincolnshire Council,http://statistics.data.gov.uk/id/local-authority/00FC,People And Communities,Vulnerable Young People,Sen/Inclusion,Direct Employee Expenses,Agency Staff,EA105,5/7/2013,194876,570.00,REVENUE,IDM CONSULTING,119926
North East Lincolnshire Council,http://statistics.data.gov.uk/id/local-authority/00FC,People And Communities,Vulnerable Young People,Sen/Inclusion,Direct Employee Expenses,Agency Staff,EA105,5/2/2013,194472,763.24,REVENUE,IDM CONSULTING,119926
North East Lincolnshire Council,http://statistics.data.gov.uk/id/local-authority/00FC,Resources,Commission & Information Sys,Information Technology,Miscellaneous Expenses,Other Expenses General,LL119,5/7/2013,194625,677.25,REVENUE,IMERJA LTD,102238
North East Lincolnshire Council,http://statistics.data.gov.uk/id/local-authority/00FC,Resources,Commission & Information Sys,Information Technology,Miscellaneous Expenses,Other Expenses General,LL119,5/7/2013,194625,"1,404.08",REVENUE,IMERJA LTD,102238
North East Lincolnshire Council,http://statistics.data.gov.uk/id/local-authority/00FC,Resources,Commission & Information Sys,Information Technology,Miscellaneous Expenses,Other Expenses General,LL119,5/7/2013,194625,"1,502.00",REVENUE,IMERJA LTD,102238
North East Lincolnshire Council,http://statistics.data.gov.uk/id/local-authority/00FC,Resources,Governance & Business Support,Customer Services,Rep Alterations Maint Building,Electrical Testing,GA107,5/7/2013,195386,"7,140.00",REVENUE,IMMINGHAM TOWN COUNCIL,101597
North East Lincolnshire Council,http://statistics.data.gov.uk/id/local-authority/00FC,Environment Economy & Housing,Neighbourhood Services,Grounds And Street Cleansing,Private Contractors,Contract Payments,PH105,5/10/2013,195591,"7,500.00",REVENUE,IMMINGHAM TOWN COUNCIL,101597
North East Lincolnshire Council,http://statistics.data.gov.uk/id/local-authority/00FC,Resources,Finance & Assets,Facilities Management,Rents,Rent,GC101,5/13/2013,196501,"9,000.00",REVENUE,IMMINGHAM TOWN COUNCIL,101597
North East Lincolnshire Council,http://statistics.data.gov.uk/id/local-authority/00FC,Environment Economy & Housing,Neighbourhood Services,Grounds And Street Cleansing,Private Contractors,Contract Payments,PH105,5/10/2013,195591,"13,750.00",REVENUE,IMMINGHAM TOWN COUNCIL,101597
North East Lincolnshire Council,http://statistics.data.gov.uk/id/local-authority/00FC,Environment Economy & Housing,Development,Retained Function,Print Stationery / Gen Off Exp,Publicity,LD105,5/23/2013,196472,840.00,REVENUE,INCEPTION DESIGN,112143
North East Lincolnshire Council,http://statistics.data.gov.uk/id/local-authority/00FC,People And Communities,Childrens Hlth & Family Supp,Palliative / Complex Care,Private Contractors,Third Party Prov - Private,PH101,5/27/2013,199246,"6,349.27",REVENUE,INDEPENDENT COMMUNITY CARE MANAGEMENT LTD,105477
North East Lincolnshire Council,http://statistics.data.gov.uk/id/local-authority/00FC,Environment Economy & Housing,Neighbourhood Services,Grounds And Street Cleansing,Private Contractors,Third Party Prov - Private,PH101,5/7/2013,194695,"6,227.99",REVENUE,INITIAL MEDICAL SERVICES LTD,102141
North East Lincolnshire Council,http://statistics.data.gov.uk/id/local-authority/00FC,Environment Economy & Housing,Neighbourhood Services,Cemeteries & Crematorium,Indirect Employee Expenses,Staff Training,EB122,5/21/2013,194674,650.00,REVENUE,INSTITUTE OF CEMETERY & CREMATORIUM,101460
North East Lincolnshire Council,http://statistics.data.gov.uk/id/local-authority/00FC,Chief Executive,Public Health,Public Hlth - Improved Health,Miscellaneous Expenses,Medical Supplies And Services,LL109,5/10/2013,194889,"1,950.00",REVENUE,INTERMEDICAL,108219
North East Lincolnshire Council,http://statistics.data.gov.uk/id/local-authority/00FC,Environment Economy & Housing,Culture Leisure & Sport,Bradley Playing Fields,Equip / Furniture / Materials,Equipment - Hire,LA102,5/21/2013,197259,414.83,REVENUE,INVESTEC ASSET FINANCE PLC,104003
North East Lincolnshire Council,http://statistics.data.gov.uk/id/local-authority/00FC,Environment Economy & Housing,Culture Leisure & Sport,Discovery Centre,Equip / Furniture / Materials,Equipment - Hire,LA102,5/29/2013,199056,437.44,REVENUE,INVESTEC ASSET FINANCE PLC,104003
North East Lincolnshire Council,http://statistics.data.gov.uk/id/local-authority/00FC,Environment Economy & Housing,Culture Leisure & Sport,Bradley Playing Fields,Equip / Furniture / Materials,Equipment - Hire,LA102,5/21/2013,197260,895.31,REVENUE,INVESTEC ASSET FINANCE PLC,104003
North East Lincolnshire Council,http://statistics.data.gov.uk/id/local-authority/00FC,People And Communities,Vulnerable Young People,Sen/Inclusion,Direct Employee Expenses,Agency Staff,EA105,5/15/2013,196593,515.60,REVENUE,IRWIN EDUCATION LTD,106910
North East Lincolnshire Council,http://statistics.data.gov.uk/id/local-authority/00FC,People And Communities,Vulnerable Young People,Sen/Inclusion,Direct Employee Expenses,Agency Staff,EA105,5/15/2013,193069,"1,546.80",REVENUE,IRWIN EDUCATION LTD,106910
North East Lincolnshire Council,http://statistics.data.gov.uk/id/local-authority/00FC,People And Communities,Vulnerable Young People,Sen/Inclusion,Direct Employee Expenses,Agency Staff,EA105,5/15/2013,196591,"2,095.20",REVENUE,IRWIN EDUCATION LTD,106910
North East Lincolnshire Council,http://statistics.data.gov.uk/id/local-authority/00FC,People And Communities,Vulnerable Young People,Through Care & Disability,Direct Transport Costs,Voluntary Drivers Expenses,JA107,5/9/2013,196180,"1,183.90",REVENUE,REDACTED PERSONAL INFORMATION,REDACTED PERSONAL INFORMATION
North East Lincolnshire Council,http://statistics.data.gov.uk/id/local-authority/00FC,Cap Economy Env And Housing,Cap Development,Local Transport Plan,Cap Infrastr-Build Enh Wrk,Cap Infrastr-Build Enh Wrk,YC102,5/30/2013,199560,260.00,CAPITAL,J MCCANN & CO LTD,100841
North East Lincolnshire Council,http://statistics.data.gov.uk/id/local-authority/00FC,Environment Economy & Housing,Development,Street Lighting,Rep Alterations Maint Building,Street Lighting-General Maint,GA111,5/23/2013,198363,260.15,REVENUE,J MCCANN & CO LTD,100841
North East Lincolnshire Council,http://statistics.data.gov.uk/id/local-authority/00FC,Cap Economy Env And Housing,Cap Development,Local Transport Plan,Cap Infrastr-Build Enh Wrk,Cap Infrastr-Build Enh Wrk,YC102,5/23/2013,198363,278.35,CAPITAL,J MCCANN & CO LTD,100841
North East Lincolnshire Council,http://statistics.data.gov.uk/id/local-authority/00FC,Cap Economy Env And Housing,Cap Development,Local Transport Plan,Cap Infrastr-Purchase,Cap Infrastr-Purchase,YC101,5/30/2013,199576,300.00,CAPITAL,J MCCANN & CO LTD,100841
North East Lincolnshire Council,http://statistics.data.gov.uk/id/local-authority/00FC,Cap Economy Env And Housing,Cap Development,Local Transport Plan,Cap Infrastr-Build Enh Wrk,Cap Infrastr-Build Enh Wrk,YC102,5/30/2013,199573,325.00,CAPITAL,J MCCANN & CO LTD,100841
North East Lincolnshire Council,http://statistics.data.gov.uk/id/local-authority/00FC,Cap Economy Env And Housing,Cap Development,Local Transport Plan,Cap Land/Build-Build Enh Wrk,Cap Land/Build-Build Enh Wrk,YA102,5/23/2013,198363,376.33,CAPITAL,J MCCANN & CO LTD,100841
North East Lincolnshire Council,http://statistics.data.gov.uk/id/local-authority/00FC,Environment Economy & Housing,Development,Street Lighting,Rep Alterations Maint Building,Traffic Signs / Signals,GA113,5/23/2013,198363,455.61,REVENUE,J MCCANN & CO LTD,100841
North East Lincolnshire Council,http://statistics.data.gov.uk/id/local-authority/00FC,Environment Economy & Housing,Development,Street Lighting,Rep Alterations Maint Building,Traffic Mgmt-Irrecoverable Dam,GA115,5/23/2013,198363,534.25,REVENUE,J MCCANN & CO LTD,100841
North East Lincolnshire Council,http://statistics.data.gov.uk/id/local-authority/00FC,Environment Economy & Housing,Development,Street Lighting,Rep Alterations Maint Building,Street Lighting-General Maint,GA111,5/23/2013,198363,576.28,REVENUE,J MCCANN & CO LTD,100841
North East Lincolnshire Council,http://statistics.data.gov.uk/id/local-authority/00FC,Environment Economy & Housing,Development,Street Lighting,Rep Alterations Maint Building,Traffic Signs / Signals,GA113,5/23/2013,198363,581.62,REVENUE,J MCCANN & CO LTD,100841
North East Lincolnshire Council,http://statistics.data.gov.uk/id/local-authority/00FC,Environment Economy & Housing,Development,Street Lighting,Rep Alterations Maint Building,Traffic Mgmt-Irrecoverable Dam,GA115,5/23/2013,198363,624.65,REVENUE,J MCCANN & CO LTD,100841
North East Lincolnshire Council,http://statistics.data.gov.uk/id/local-authority/00FC,Cap Economy Env And Housing,Cap Development,Local Transport Plan,Cap Infrastr-Build Enh Wrk,Cap Infrastr-Build Enh Wrk,YC102,5/23/2013,198363,639.02,CAPITAL,J MCCANN & CO LTD,100841
North East Lincolnshire Council,http://statistics.data.gov.uk/id/local-authority/00FC,Cap Economy Env And Housing,Cap Development,Local Transport Plan,Cap Infrastr-Build Enh Wrk,Cap Infrastr-Build Enh Wrk,YC102,5/23/2013,198363,716.38,CAPITAL,J MCCANN & CO LTD,100841
North East Lincolnshire Council,http://statistics.data.gov.uk/id/local-authority/00FC,Environment Economy & Housing,Development,Street Lighting,Rep Alterations Maint Building,Traffic Signs / Signals,GA113,5/23/2013,198363,828.75,REVENUE,J MCCANN & CO LTD,100841
North East Lincolnshire Council,http://statistics.data.gov.uk/id/local-authority/00FC,Cap Economy Env And Housing,Cap Development,Local Transport Plan,Cap Infrastr-Build Enh Wrk,Cap Infrastr-Build Enh Wrk,YC102,5/23/2013,198363,886.25,CAPITAL,J MCCANN & CO LTD,100841
North East Lincolnshire Council,http://statistics.data.gov.uk/id/local-authority/00FC,Environment Economy & Housing,Development,Street Lighting,Rep Alterations Maint Building,Street Light-Irrecoverable Dam,GA112,5/23/2013,198363,907.56,REVENUE,J MCCANN & CO LTD,100841
North East Lincolnshire Council,http://statistics.data.gov.uk/id/local-authority/00FC,Environment Economy & Housing,Development,Street Lighting,Rep Alterations Maint Building,Street Lighting-General Maint,GA111,5/23/2013,198363,929.27,REVENUE,J MCCANN & CO LTD,100841
North East Lincolnshire Council,http://statistics.data.gov.uk/id/local-authority/00FC,Cap Economy Env And Housing,Cap Development,Local Transport Plan,Cap Infrastr-Purchase,Cap Infrastr-Purchase,YC101,5/30/2013,199558,"1,650.00",CAPITAL,J MCCANN & CO LTD,100841
North East Lincolnshire Council,http://statistics.data.gov.uk/id/local-authority/00FC,Environment Economy & Housing,Development,Street Lighting,Rep Alterations Maint Building,Street Lighting-General Maint,GA111,5/23/2013,198363,"2,526.54",REVENUE,J MCCANN & CO LTD,100841
North East Lincolnshire Council,http://statistics.data.gov.uk/id/local-authority/00FC,Environment Economy & Housing,Development,Street Lighting,Rep Alterations Maint Building,Traffic Signs / Signals,GA113,5/23/2013,198363,"2,895.57",REVENUE,J MCCANN & CO LTD,100841
North East Lincolnshire Council,http://statistics.data.gov.uk/id/local-authority/00FC,Cap Economy Env And Housing,Cap Development,Local Transport Plan,Cap Infrastr-Build Enh Wrk,Cap Infrastr-Build Enh Wrk,YC102,5/23/2013,198363,"3,381.15",CAPITAL,J MCCANN & CO LTD,100841
North East Lincolnshire Council,http://statistics.data.gov.uk/id/local-authority/00FC,Environment Economy & Housing,Development,Street Lighting,Private Contractors,Third Party Prov - Private,PH101,5/23/2013,198363,"5,008.75",REVENUE,J MCCANN & CO LTD,100841
North East Lincolnshire Council,http://statistics.data.gov.uk/id/local-authority/00FC,Environment Economy & Housing,Neighbourhood Services,Beach Safety,Rep Alterations Maint Building,Buildings - Repairs And Maint,GA102,5/23/2013,198363,"6,169.90",REVENUE,J MCCANN & CO LTD,100841
North East Lincolnshire Council,http://statistics.data.gov.uk/id/local-authority/00FC,Environment Economy & Housing,Development,Street Lighting,Rep Alterations Maint Building,Street Lighting-General Maint,GA111,5/23/2013,198363,"7,925.45",REVENUE,J MCCANN & CO LTD,100841
North East Lincolnshire Council,http://statistics.data.gov.uk/id/local-authority/00FC,Cap Economy Env And Housing,Cap Development,Local Transport Plan,Cap Infrastr-Build Enh Wrk,Cap Infrastr-Build Enh Wrk,YC102,5/2/2013,192938,"11,700.00",CAPITAL,J MCCANN & CO LTD,100841
North East Lincolnshire Council,http://statistics.data.gov.uk/id/local-authority/00FC,Resources,Governance & Business Support,Coroners,Other Agencies,Conveyance Bodies,PJ149,5/15/2013,194163,319.20,REVENUE,J NAYLOR (FUNERAL DIRECTORS) LTD,100731
North East Lincolnshire Council,http://statistics.data.gov.uk/id/local-authority/00FC,Environment Economy & Housing,Neighbourhood Services,Grounds And Street Cleansing,Miscellaneous Expenses,Obc Holding Ac - To Be Cleared,LL125,5/2/2013,192062,295.68,REVENUE,JACKSON BUILDING CENTRES LTD,100817
North East Lincolnshire Council,http://statistics.data.gov.uk/id/local-authority/00FC,Cap Economy Env And Housing,Cap Development,Hps-Disabled Fac. Grants,Cap Grants To O/Side Sources,Cap Grants To O/Side Sources,YJ101,5/2/2013,191878,"6,713.00",CAPITAL,JAMES BRATTON & CO LTD,100714
North East Lincolnshire Council,http://statistics.data.gov.uk/id/local-authority/00FC,People And Communities,Improved Health,Improved Health Operational,Equip / Furniture / Materials,Health & Safety Supplies,LA116,5/30/2013,199914,439.00,REVENUE,JAMES LECKEY DESIGN LIMITED,100949
North East Lincolnshire Council,http://statistics.data.gov.uk/id/local-authority/00FC,People And Communities,Improved Health,Improved Health Operational,Equip / Furniture / Materials,Health & Safety Supplies,LA116,5/2/2013,193990,966.00,REVENUE,JAMES LECKEY DESIGN LIMITED,100949
North East Lincolnshire Council,http://statistics.data.gov.uk/id/local-authority/00FC,People And Communities,Improved Health,Improved Health Operational,Equip / Furniture / Materials,Health & Safety Supplies,LA116,5/15/2013,193992,"1,471.00",REVENUE,JAMES LECKEY DESIGN LIMITED,100949
North East Lincolnshire Council,http://statistics.data.gov.uk/id/local-authority/00FC,People And Communities,Vulnerable Young People,Placement & Support,Miscellaneous Expenses,Other Expenses General,LL119,5/2/2013,193271,278.93,REVENUE,JC COOK LTD,106127
North East Lincolnshire Council,http://statistics.data.gov.uk/id/local-authority/00FC,People And Communities,Vulnerable Young People,Strategic Management,Direct Employee Expenses,Agency Staff,EA105,5/8/2013,194844,"10,107.35",REVENUE,JD AND KM BLACKMORE PARTNERS,102197
North East Lincolnshire Council,http://statistics.data.gov.uk/id/local-authority/00FC,Environment Economy & Housing,Culture Leisure & Sport,Bradley Playing Fields,Equip / Furniture / Materials,Goods For Resale,LA123,5/29/2013,199044,412.64,REVENUE,JERRARDS BUTCHERS LTD,112408
North East Lincolnshire Council,http://statistics.data.gov.uk/id/local-authority/00FC,Resources,Governance & Business Support,Human Resources,Indirect Employee Expenses,Staff Advertising,EB113,5/2/2013,193943,"11,795.00",REVENUE,JGP RESOURCING LIMITED,109278
North East Lincolnshire Council,http://statistics.data.gov.uk/id/local-authority/00FC,Environment Economy & Housing,Neighbourhood Services,Beach Safety,Equip / Furniture / Materials,Equipment - Hire,LA102,5/15/2013,194943,400.00,REVENUE,JOHN L FAWCETT,101140
North East Lincolnshire Council,http://statistics.data.gov.uk/id/local-authority/00FC,Environment Economy & Housing,Neighbourhood Services,Grounds And Street Cleansing,Rep Alterations Maint Building,Buildings - Repairs And Maint,GA102,5/21/2013,194941,680.00,REVENUE,JOHN L FAWCETT,101140
North East Lincolnshire Council,http://statistics.data.gov.uk/id/local-authority/00FC,Environment Economy & Housing,Neighbourhood Services,Beach Safety,Rep Alterations Maint Building,Buildings - Repairs And Maint,GA102,5/16/2013,194942,"1,100.00",REVENUE,JOHN L FAWCETT,101140
North East Lincolnshire Council,http://statistics.data.gov.uk/id/local-authority/00FC,Chief Executive,Public Health,Public Hlth - Improved Health,Rents,Room Hire,GC103,5/7/2013,195461,260.00,REVENUE,JOHN LEGGOTT COLLEGE,113848
North East Lincolnshire Council,http://statistics.data.gov.uk/id/local-authority/00FC,Environment Economy & Housing,Neighbourhood Services,Garage & Fleet Strategy,Equip / Furniture / Materials,Equipment - Purchase,LA101,5/15/2013,197277,384.08,REVENUE,JOHNSONS APPARELMASTER,100810
North East Lincolnshire Council,http://statistics.data.gov.uk/id/local-authority/00FC,People And Communities,Vulnerable Young People,Sen/Inclusion,Contributions To Provisions,Contributions - Other,LK103,5/30/2013,199263,315.96,REVENUE,KEYS 7KS,109509
North East Lincolnshire Council,http://statistics.data.gov.uk/id/local-authority/00FC,People And Communities,Vulnerable Young People,Sen/Inclusion,Contributions To Provisions,Contributions - Other,LK103,5/7/2013,194542,725.55,REVENUE,KEYS 7KS,109509
North East Lincolnshire Council,http://statistics.data.gov.uk/id/local-authority/00FC,People And Communities,Vulnerable Young People,Sen/Inclusion,Contributions To Provisions,Contributions - Other,LK103,5/30/2013,199263,967.40,REVENUE,KEYS 7KS,109509
North East Lincolnshire Council,http://statistics.data.gov.uk/id/local-authority/00FC,Cap Economy Env And Housing,Cap Development,Local Transport Plan,Cap Infrastr-Build Enh Wrk,Cap Infrastr-Build Enh Wrk,YC102,5/3/2013,194892,"26,260.00",CAPITAL,KIELY BROS LTD,106644
North East Lincolnshire Council,http://statistics.data.gov.uk/id/local-authority/00FC,Cap Economy Env And Housing,Cap Development,Local Transport Plan,Cap Infrastr-Build Enh Wrk,Cap Infrastr-Build Enh Wrk,YC102,5/3/2013,194892,"80,947.07",CAPITAL,KIELY BROS LTD,106644
North East Lincolnshire Council,http://statistics.data.gov.uk/id/local-authority/00FC,Environment Economy & Housing,Culture Leisure & Sport,Tourist Information Centre,Miscellaneous Income,Miscellaneous Income,VG101,5/13/2013,195548,-10.20,REVENUE,KINGSTON UPON HULL CITY COUNCIL,100541
North East Lincolnshire Council,http://statistics.data.gov.uk/id/local-authority/00FC,Environment Economy & Housing,Development,Community Investment Team,Print Stationery / Gen Off Exp,Publicity,LD105,5/29/2013,199343,669.20,REVENUE,KINGSTON UPON HULL CITY COUNCIL,100541
North East Lincolnshire Council,http://statistics.data.gov.uk/id/local-authority/00FC,People And Communities,Vulnerable Young People,Placement & Support,Equip / Furniture / Materials,Equipment - Purchase,LA101,5/29/2013,199020,685.39,REVENUE,KINGSTON UPON HULL CITY COUNCIL,100541
North East Lincolnshire Council,http://statistics.data.gov.uk/id/local-authority/00FC,People And Communities,Vulnerable Young People,Placement & Support,Contract Hire-Operating Leases,Vehicles - Contract Hire,JC101,5/15/2013,188301,REDACTED COMMERCIALLY SENSITIVE,REVENUE,KINGSTOWN WORKS LTD,109559
North East Lincolnshire Council,http://statistics.data.gov.uk/id/local-authority/00FC,People And Communities,Vulnerable Young People,Placement & Support,Contract Hire-Operating Leases,Vehicles - Contract Hire,JC101,5/15/2013,188301,REDACTED COMMERCIALLY SENSITIVE,REVENUE,KINGSTOWN WORKS LTD,109559
North East Lincolnshire Council,http://statistics.data.gov.uk/id/local-authority/00FC,People And Communities,Vulnerable Young People,Placement & Support,Contract Hire-Operating Leases,Vehicles - Contract Hire,JC101,5/15/2013,188301,REDACTED COMMERCIALLY SENSITIVE,REVENUE,KINGSTOWN WORKS LTD,109559
North East Lincolnshire Council,http://statistics.data.gov.uk/id/local-authority/00FC,Environment Economy & Housing,Development,Community Investment Team,Private Contractors,Third Party Prov - Private,PH101,5/15/2013,197667,619.00,REVENUE,KITS FOR CASH LTD,116616
North East Lincolnshire Council,http://statistics.data.gov.uk/id/local-authority/00FC,Resources,Finance & Assets,Income & Payments Service,Grants And Subscriptions,Subscriptions,LJ101,5/7/2013,194477,430.00,REVENUE,LA DIRECTORIES LTD,106403
North East Lincolnshire Council,http://statistics.data.gov.uk/id/local-authority/00FC,People And Communities,Vulnerable Young People,Placement & Support,Equip / Furniture / Materials,Equipment - Hire,LA102,5/7/2013,195373,387.24,REVENUE,LARCO LTD,100542
North East Lincolnshire Council,http://statistics.data.gov.uk/id/local-authority/00FC,Environment Economy & Housing,Culture Leisure & Sport,Art & Sports Development,Other Agencies,Performers,PJ101,5/2/2013,194154,280.00,REVENUE,LAURA RAWLINGS,112113
North East Lincolnshire Council,http://statistics.data.gov.uk/id/local-authority/00FC,Environment Economy & Housing,Neighbourhood Services,Garage & Fleet Strategy,Direct Transport Costs,Vehicles - Repairs And Maint,JA105,5/23/2013,199053,339.16,REVENUE,LAWNMOWER SERVICE(LINCOLN)LTD,100544
North East Lincolnshire Council,http://statistics.data.gov.uk/id/local-authority/00FC,Chief Executive,Public Health,Public Hlth - Improved Health,Communications And Computing,Computer S/Ware - Licences,LF103,5/7/2013,193960,300.00,REVENUE,LEE CREATIVE MARKETING LTD,104460
North East Lincolnshire Council,http://statistics.data.gov.uk/id/local-authority/00FC,Chief Executive,Public Health,Public Hlth - Improved Health,Print Stationery / Gen Off Exp,Printing And Stationery,LD103,5/21/2013,190016,314.00,REVENUE,LEE CREATIVE MARKETING LTD,104460
North East Lincolnshire Council,http://statistics.data.gov.uk/id/local-authority/00FC,Environment Economy & Housing,Development,Strat Hous Out Of Scope,Private Contractors,Third Party Prov - Private,PH101,5/30/2013,199486,"1,000.00",REVENUE,LEEDS CITY COUNCIL,100545
North East Lincolnshire Council,http://statistics.data.gov.uk/id/local-authority/00FC,Resources,Commission & Information Sys,Head Commission & Info Systems,Private Contractors,Third Party Prov - Private,PH101,5/8/2013,195050,490.00,REVENUE,LEGEND CLUB MANAGMENT SYSTEMS (UK) LTD,119144
North East Lincolnshire Council,http://statistics.data.gov.uk/id/local-authority/00FC,Resources,Commission & Information Sys,Head Commission & Info Systems,Private Contractors,Third Party Prov - Private,PH101,5/8/2013,195051,905.83,REVENUE,LEGEND CLUB MANAGMENT SYSTEMS (UK) LTD,119144
North East Lincolnshire Council,http://statistics.data.gov.uk/id/local-authority/00FC,Resources,Commission & Information Sys,Head Commission & Info Systems,Private Contractors,Third Party Prov - Private,PH101,5/8/2013,195048,"8,796.00",REVENUE,LEGEND CLUB MANAGMENT SYSTEMS (UK) LTD,119144
North East Lincolnshire Council,http://statistics.data.gov.uk/id/local-authority/00FC,Resources,Commission & Information Sys,Head Commission & Info Systems,Private Contractors,Third Party Prov - Private,PH101,5/8/2013,195049,"9,130.00",REVENUE,LEGEND CLUB MANAGMENT SYSTEMS (UK) LTD,119144
North East Lincolnshire Council,http://statistics.data.gov.uk/id/local-authority/00FC,Resources,Commission & Information Sys,Head Commission & Info Systems,Private Contractors,Third Party Prov - Private,PH101,5/21/2013,197517,"9,923.00",REVENUE,LEGEND CLUB MANAGMENT SYSTEMS (UK) LTD,119144
North East Lincolnshire Council,http://statistics.data.gov.uk/id/local-authority/00FC,Resources,Commission & Information Sys,Head Commission & Info Systems,Private Contractors,Third Party Prov - Private,PH101,5/8/2013,195568,"10,949.15",REVENUE,LEONIE COWEN ASSOCIATES SOLICITORS,109641
North East Lincolnshire Council,http://statistics.data.gov.uk/id/local-authority/00FC,People And Communities,Vulnerable Young People,School Access Governor Student,Grants And Subscriptions,Subscriptions,LJ101,5/15/2013,195898,489.00,REVENUE,LEXISNEXIS UK,101447
North East Lincolnshire Council,http://statistics.data.gov.uk/id/local-authority/00FC,Resources,Governance & Business Support,Legal Services,Equip / Furniture / Materials,Books,LA121,5/21/2013,197246,"6,664.25",REVENUE,LEXISNEXIS UK,101447
North East Lincolnshire Council,http://statistics.data.gov.uk/id/local-authority/00FC,Resources,Governance & Business Support,Legal Services,Equip / Furniture / Materials,Books,LA121,5/21/2013,196866,"20,621.00",REVENUE,LEXISNEXIS UK,101447
North East Lincolnshire Council,http://statistics.data.gov.uk/id/local-authority/00FC,Resources,Strategic Director Resources,Director And Support,Indirect Employee Expenses,Staff Training,EB122,5/27/2013,194667,340.00,REVENUE,LG COMMUNICATIONS,119708
North East Lincolnshire Council,http://statistics.data.gov.uk/id/local-authority/00FC,Other Corporate Budgets,Other Corporate Budgets,Appropriations,Indirect Employee Expenses,Pension P/Ment Pension Inc Act,EB105,5/7/2013,195608,944.50,REVENUE,LINCOLNSHIRE COUNTY COUNCIL,101224
North East Lincolnshire Council,http://statistics.data.gov.uk/id/local-authority/00FC,Cap Economy Env And Housing,Cap Development,Housing Assistance,Cap Grants To O/Side Sources,Cap Grants To O/Side Sources,YJ101,5/15/2013,195586,"1,325.00",CAPITAL,LINCS PVC LTD,105739
North East Lincolnshire Council,http://statistics.data.gov.uk/id/local-authority/00FC,People And Communities,Improved Health,Improved Health Operational,Equip / Furniture / Materials,Health & Safety Supplies,LA116,5/29/2013,199046,REDACTED COMMERCIALLY SENSITIVE,REVENUE,LINDALE HEALTHCARE,102517
North East Lincolnshire Council,http://statistics.data.gov.uk/id/local-authority/00FC,People And Communities,Improved Health,Improved Health Operational,Equip / Furniture / Materials,Health & Safety Supplies,LA116,5/2/2013,194701,280.80,REVENUE,LISCLARE LTD,101785
North East Lincolnshire Council,http://statistics.data.gov.uk/id/local-authority/00FC,People And Communities,Improved Health,Improved Health Operational,Equip / Furniture / Materials,Health & Safety Supplies,LA116,5/2/2013,194701,338.40,REVENUE,LISCLARE LTD,101785
North East Lincolnshire Council,http://statistics.data.gov.uk/id/local-authority/00FC,People And Communities,Improved Health,Improved Health Operational,Equip / Furniture / Materials,Health & Safety Supplies,LA116,5/2/2013,194701,414.90,REVENUE,LISCLARE LTD,101785
North East Lincolnshire Council,http://statistics.data.gov.uk/id/local-authority/00FC,People And Communities,Improved Health,Improved Health Operational,Equip / Furniture / Materials,Health & Safety Supplies,LA116,5/2/2013,194701,582.00,REVENUE,LISCLARE LTD,101785
North East Lincolnshire Council,http://statistics.data.gov.uk/id/local-authority/00FC,People And Communities,Improved Health,Improved Health Operational,Equip / Furniture / Materials,Health & Safety Supplies,LA116,5/7/2013,194699,"1,933.20",REVENUE,LISCLARE LTD,101785
North East Lincolnshire Council,http://statistics.data.gov.uk/id/local-authority/00FC,People And Communities,Improved Health,Improved Health Operational,Equip / Furniture / Materials,Health & Safety Supplies,LA116,5/27/2013,194704,"2,736.00",REVENUE,LISCLARE LTD,101785
North East Lincolnshire Council,http://statistics.data.gov.uk/id/local-authority/00FC,Chief Executive,Public Health,Public Hlth - Improved Health,Miscellaneous Expenses,Medical Supplies And Services,LL109,5/30/2013,199941,280.91,REVENUE,LLOYDS PHARMACY,103916
North East Lincolnshire Council,http://statistics.data.gov.uk/id/local-authority/00FC,Chief Executive,Public Health,Public Hlth - Improved Health,Miscellaneous Expenses,Medical Supplies And Services,LL109,5/30/2013,199959,316.59,REVENUE,LLOYDS PHARMACY,106385
North East Lincolnshire Council,http://statistics.data.gov.uk/id/local-authority/00FC,Resources,Governance & Business Support,Legal Services,Grants And Subscriptions,Subscriptions,LJ101,5/10/2013,195592,"29,491.10",REVENUE,LOCAL GOVERNMENT ASSOCIATION,101113
North East Lincolnshire Council,http://statistics.data.gov.uk/id/local-authority/00FC,Environment Economy & Housing,Development,Community Investment Team,Print Stationery / Gen Off Exp,Publicity,LD105,5/15/2013,196444,408.00,REVENUE,LOCAL WORLD LIMITED,118774
North East Lincolnshire Council,http://statistics.data.gov.uk/id/local-authority/00FC,Resources,Finance & Assets,Accountancy,Print Stationery / Gen Off Exp,Advertising,LD104,5/22/2013,198142,635.52,REVENUE,LOCAL WORLD LIMITED,118774
North East Lincolnshire Council,http://statistics.data.gov.uk/id/local-authority/00FC,Environment Economy & Housing,Development,Retained Function,Miscellaneous Expenses,Other Expenses General,LL119,5/13/2013,196519,771.25,REVENUE,LOCAL WORLD LIMITED,118774
North East Lincolnshire Council,http://statistics.data.gov.uk/id/local-authority/00FC,Environment Economy & Housing,Development,Community Learning Services,Print Stationery / Gen Off Exp,Publicity,LD105,5/30/2013,199927,850.00,REVENUE,LOCAL WORLD LIMITED,118774
North East Lincolnshire Council,http://statistics.data.gov.uk/id/local-authority/00FC,Environment Economy & Housing,Development,Retained Function,Print Stationery / Gen Off Exp,Publicity,LD105,5/27/2013,196796,"2,000.00",REVENUE,LOCAL WORLD LIMITED,118774
North East Lincolnshire Council,http://statistics.data.gov.uk/id/local-authority/00FC,Environment Economy & Housing,Development,Community Investment Team,Print Stationery / Gen Off Exp,Publicity,LD105,5/2/2013,194177,"2,092.00",REVENUE,LOCAL WORLD LIMITED,118774
North East Lincolnshire Council,http://statistics.data.gov.uk/id/local-authority/00FC,Resources,Governance & Business Support,Human Resources,Indirect Employee Expenses,Staff Advertising,EB113,5/7/2013,194883,"2,298.00",REVENUE,LOCAL WORLD LIMITED,118774
North East Lincolnshire Council,http://statistics.data.gov.uk/id/local-authority/00FC,Environment Economy & Housing,Development,Community Investment Team,Print Stationery / Gen Off Exp,Publicity,LD105,5/7/2013,194956,"2,578.80",REVENUE,LOCAL WORLD LIMITED,118774
North East Lincolnshire Council,http://statistics.data.gov.uk/id/local-authority/00FC,Resources,Commission & Information Sys,Information Technology,Communications And Computing,Computer H/Ware - Purchases,LF105,5/15/2013,194235,"1,398.00",REVENUE,LOGMELN IRELAND LTD,119679
North East Lincolnshire Council,http://statistics.data.gov.uk/id/local-authority/00FC,Other Corporate Budgets,Borrowing Costs,Misc Interest Bank Charges Etc,Other Agencies,Fees Comm Clf Logotech Charges,PJ142,5/15/2013,194534,"1,800.00",REVENUE,LOGOTECH SYSTEMS,102773
North East Lincolnshire Council,http://statistics.data.gov.uk/id/local-authority/00FC,People And Communities,Improved Health,Supporting People,Other Agencies,Third Pp - Block Subsidy,PJ102,5/20/2013,198158,REDACTED COMMERCIALLY SENSITIVE,REVENUE,LONGHURST AND HAVELOK HOMES LTD,100342
North East Lincolnshire Council,http://statistics.data.gov.uk/id/local-authority/00FC,People And Communities,Improved Health,Supporting People,Other Agencies,Third Pp - Block Gross,PJ103,5/30/2013,199859,REDACTED COMMERCIALLY SENSITIVE,REVENUE,LONGHURST AND HAVELOK HOMES LTD,100342
North East Lincolnshire Council,http://statistics.data.gov.uk/id/local-authority/00FC,Cap Economy Env And Housing,Cap Development,Hps-Disabled Fac. Grants,Cap Grants To O/Side Sources,Cap Grants To O/Side Sources,YJ101,5/15/2013,194536,"19,765.05",CAPITAL,LRC ELECTRICAL,112250
North East Lincolnshire Council,http://statistics.data.gov.uk/id/local-authority/00FC,Governance And Transformation,Transformation Project,Transformation Programme,Print Stationery / Gen Off Exp,Printing And Stationery,LD103,5/2/2013,193461,-97.99,REVENUE,LYRECO UK LIMITED,101120
North East Lincolnshire Council,http://statistics.data.gov.uk/id/local-authority/00FC,Environment Economy & Housing,Culture Leisure & Sport,Library Service,Communications And Computing,Computer Consumables,LF109,5/21/2013,193469,-73.33,REVENUE,LYRECO UK LIMITED,101120
North East Lincolnshire Council,http://statistics.data.gov.uk/id/local-authority/00FC,Governance And Transformation,Transformation Project,Transformation Programme,Print Stationery / Gen Off Exp,Printing And Stationery,LD103,5/2/2013,193461,-62.99,REVENUE,LYRECO UK LIMITED,101120
North East Lincolnshire Council,http://statistics.data.gov.uk/id/local-authority/00FC,People And Communities,Childrens Hlth & Family Supp,Childrens Health Provision,Print Stationery / Gen Off Exp,Printing And Stationery,LD103,5/15/2013,182714,-28.31,REVENUE,LYRECO UK LIMITED,101120
North East Lincolnshire Council,http://statistics.data.gov.uk/id/local-authority/00FC,Environment Economy & Housing,Culture Leisure & Sport,Library Service,Communications And Computing,Computer Consumables,LF109,5/15/2013,193368,-23.70,REVENUE,LYRECO UK LIMITED,101120
North East Lincolnshire Council,http://statistics.data.gov.uk/id/local-authority/00FC,Environment Economy & Housing,Culture Leisure & Sport,Library Service,Print Stationery / Gen Off Exp,Printing And Stationery,LD103,5/23/2013,193464,-21.28,REVENUE,LYRECO UK LIMITED,101120
North East Lincolnshire Council,http://statistics.data.gov.uk/id/local-authority/00FC,Governance And Transformation,Transformation Project,Transformation Programme,Print Stationery / Gen Off Exp,Printing And Stationery,LD103,5/2/2013,193461,-14.00,REVENUE,LYRECO UK LIMITED,101120
North East Lincolnshire Council,http://statistics.data.gov.uk/id/local-authority/00FC,Resources,Strategic Director Resources,Business Support (Sbs),Print Stationery / Gen Off Exp,Printing And Stationery,LD103,5/14/2013,192991,-3.94,REVENUE,LYRECO UK LIMITED,101120
North East Lincolnshire Council,http://statistics.data.gov.uk/id/local-authority/00FC,People And Communities,Childrens Hlth & Family Supp,Childrens Health Provision,Communications And Computing,Postage,LF111,5/23/2013,198840,250.00,REVENUE,LYRECO UK LIMITED,101120
North East Lincolnshire Council,http://statistics.data.gov.uk/id/local-authority/00FC,People And Communities,Childrens Hlth & Family Supp,Childrens Health Provision,Communications And Computing,Postage,LF111,5/23/2013,189131,250.00,REVENUE,LYRECO UK LIMITED,101120
North East Lincolnshire Council,http://statistics.data.gov.uk/id/local-authority/00FC,People And Communities,Childrens Hlth & Family Supp,Childrens Health Provision,Communications And Computing,Postage,LF111,5/27/2013,199064,250.00,REVENUE,LYRECO UK LIMITED,101120
North East Lincolnshire Council,http://statistics.data.gov.uk/id/local-authority/00FC,People And Communities,Vulnerable Young People,Placement & Support,Print Stationery / Gen Off Exp,Printing And Stationery,LD103,5/2/2013,188717,817.99,REVENUE,LYRECO UK LIMITED,101120
North East Lincolnshire Council,http://statistics.data.gov.uk/id/local-authority/00FC,Cap Economy Env And Housing,Cap Development,Housing Assistance,Cap Grants To O/Side Sources,Cap Grants To O/Side Sources,YJ101,5/23/2013,198464,"1,298.78",CAPITAL,M J QUICKFALL,102499
North East Lincolnshire Council,http://statistics.data.gov.uk/id/local-authority/00FC,Environment Economy & Housing,Development,Community Learning Services,Miscellaneous Expenses,Exam Fees,LL115,5/30/2013,199542,450.00,REVENUE,M.A.L. TRAINING LTD,105979
North East Lincolnshire Council,http://statistics.data.gov.uk/id/local-authority/00FC,Environment Economy & Housing,Development,Community Learning Services,Other Agencies,Further Ed Emp & Training,PJ130,5/7/2013,195382,900.00,REVENUE,M.A.L. TRAINING LTD,105979
North East Lincolnshire Council,http://statistics.data.gov.uk/id/local-authority/00FC,Environment Economy & Housing,Development,Community Learning Services,Miscellaneous Expenses,Exam Fees,LL115,5/30/2013,199539,900.00,REVENUE,M.A.L. TRAINING LTD,105979
North East Lincolnshire Council,http://statistics.data.gov.uk/id/local-authority/00FC,Environment Economy & Housing,Development,Community Learning Services,Other Agencies,Further Ed Emp & Training,PJ130,5/7/2013,195381,"1,350.00",REVENUE,M.A.L. TRAINING LTD,105979
North East Lincolnshire Council,http://statistics.data.gov.uk/id/local-authority/00FC,Environment Economy & Housing,Development,Community Learning Services,Other Agencies,Further Ed Emp & Training,PJ130,5/7/2013,195380,"1,350.00",REVENUE,M.A.L. TRAINING LTD,105979
North East Lincolnshire Council,http://statistics.data.gov.uk/id/local-authority/00FC,Environment Economy & Housing,Development,Community Learning Services,Other Agencies,Further Ed Emp & Training,PJ130,5/7/2013,195378,"1,350.00",REVENUE,M.A.L. TRAINING LTD,105979
North East Lincolnshire Council,http://statistics.data.gov.uk/id/local-authority/00FC,People And Communities,Childrens Hlth & Family Supp,Childrens Centre Development,Water Services,Water,GE101,5/15/2013,197534,446.71,REVENUE,MACAULAY PRIMARY ACADEMY,112680
North East Lincolnshire Council,http://statistics.data.gov.uk/id/local-authority/00FC,Cap Economy Env And Housing,Cap Development,Housing Assistance,Cap Grants To O/Side Sources,Cap Grants To O/Side Sources,YJ101,5/30/2013,199553,325.00,CAPITAL,MACLAREN BRITTON SOLICITORS,119797
North East Lincolnshire Council,http://statistics.data.gov.uk/id/local-authority/00FC,Cap Economy Env And Housing,Cap Development,Housing Assistance,Cap Grants To O/Side Sources,Cap Grants To O/Side Sources,YJ101,5/30/2013,199555,325.00,CAPITAL,MACLAREN BRITTON SOLICITORS,119797
North East Lincolnshire Council,http://statistics.data.gov.uk/id/local-authority/00FC,Cap Economy Env And Housing,Cap Development,Housing Assistance,Cap Grants To O/Side Sources,Cap Grants To O/Side Sources,YJ101,5/2/2013,193705,325.00,CAPITAL,MACLAREN BRITTON SOLICITORS,119797
North East Lincolnshire Council,http://statistics.data.gov.uk/id/local-authority/00FC,Resources,Commission & Information Sys,Communications And Marketing,Grants And Subscriptions,Subscriptions,LJ101,5/8/2013,195844,273.90,REVENUE,MAGAZINE WORLD,120005
North East Lincolnshire Council,http://statistics.data.gov.uk/id/local-authority/00FC,People And Communities,Improved Health,Improved Health Operational,Equip / Furniture / Materials,Health & Safety Supplies,LA116,5/7/2013,194673,475.00,REVENUE,MANGAR INTERNATIONAL,101004
North East Lincolnshire Council,http://statistics.data.gov.uk/id/local-authority/00FC,People And Communities,Vulnerable Young People,Sen/Inclusion,Rep Alterations Maint Building,Buildings - Repairs And Maint,GA102,5/15/2013,196657,755.13,REVENUE,MANTA BRC LTD,102230
North East Lincolnshire Council,http://statistics.data.gov.uk/id/local-authority/00FC,Cap Resources,Cap Finance And Assets,Property Planned Repairs,Cap Land/Build-Build Enh Wrk,Cap Land/Build-Build Enh Wrk,YA102,5/13/2013,196469,"10,017.00",CAPITAL,MANTA BRC LTD,102230
North East Lincolnshire Council,http://statistics.data.gov.uk/id/local-authority/00FC,Environment Economy & Housing,Development,Community Investment Team,Private Contractors,Third Party Prov - Private,PH101,5/30/2013,199800,475.00,REVENUE,MARINER PACKAGING COMPANY LTD,110012
North East Lincolnshire Council,http://statistics.data.gov.uk/id/local-authority/00FC,Resources,Governance & Business Support,Business & Admin Supp Clusters,Direct Employee Expenses,Agency Staff,EA105,5/30/2013,199342,267.84,REVENUE,MATRIX SCM LTD,108117
North East Lincolnshire Council,http://statistics.data.gov.uk/id/local-authority/00FC,Resources,Commission & Information Sys,Central Commissioning & Delive,Direct Employee Expenses,Agency Staff,EA105,5/23/2013,199034,292.64,REVENUE,MATRIX SCM LTD,108117
North East Lincolnshire Council,http://statistics.data.gov.uk/id/local-authority/00FC,Resources,Governance & Business Support,Human Resources,Direct Employee Expenses,Agency Staff,EA105,5/23/2013,199033,340.90,REVENUE,MATRIX SCM LTD,108117
North East Lincolnshire Council,http://statistics.data.gov.uk/id/local-authority/00FC,Resources,Commission & Information Sys,Child Protection / Safeguardin,Direct Employee Expenses,Agency Staff,EA105,5/22/2013,198406,354.10,REVENUE,MATRIX SCM LTD,108117
North East Lincolnshire Council,http://statistics.data.gov.uk/id/local-authority/00FC,Resources,Commission & Information Sys,Child Protection / Safeguardin,Direct Employee Expenses,Agency Staff,EA105,5/23/2013,199032,354.11,REVENUE,MATRIX SCM LTD,108117
North East Lincolnshire Council,http://statistics.data.gov.uk/id/local-authority/00FC,Resources,Commission & Information Sys,Child Protection / Safeguardin,Direct Employee Expenses,Agency Staff,EA105,5/23/2013,199033,354.11,REVENUE,MATRIX SCM LTD,108117
North East Lincolnshire Council,http://statistics.data.gov.uk/id/local-authority/00FC,Environment Economy & Housing,Neighbourhood Services,Waste Collection,Direct Employee Expenses,Agency Staff,EA105,5/30/2013,199342,361.85,REVENUE,MATRIX SCM LTD,108117
North East Lincolnshire Council,http://statistics.data.gov.uk/id/local-authority/00FC,Resources,Commission & Information Sys,Central Commissioning & Delive,Direct Employee Expenses,Agency Staff,EA105,5/30/2013,199925,367.04,REVENUE,MATRIX SCM LTD,108117
North East Lincolnshire Council,http://statistics.data.gov.uk/id/local-authority/00FC,Resources,Commission & Information Sys,Central Commissioning & Delive,Direct Employee Expenses,Agency Staff,EA105,5/23/2013,199032,367.04,REVENUE,MATRIX SCM LTD,108117
North East Lincolnshire Council,http://statistics.data.gov.uk/id/local-authority/00FC,Resources,Commission & Information Sys,Central Commissioning & Delive,Direct Employee Expenses,Agency Staff,EA105,5/23/2013,199033,367.04,REVENUE,MATRIX SCM LTD,108117
North East Lincolnshire Council,http://statistics.data.gov.uk/id/local-authority/00FC,Resources,Governance & Business Support,Business & Admin Supp Clusters,Direct Employee Expenses,Agency Staff,EA105,5/23/2013,199033,367.04,REVENUE,MATRIX SCM LTD,108117
North East Lincolnshire Council,http://statistics.data.gov.uk/id/local-authority/00FC,Resources,Governance & Business Support,Business & Admin Supp Clusters,Direct Employee Expenses,Agency Staff,EA105,5/23/2013,199034,372.00,REVENUE,MATRIX SCM LTD,108117
North East Lincolnshire Council,http://statistics.data.gov.uk/id/local-authority/00FC,Governance And Transformation,Transformation Project,Transformation Programme,Direct Employee Expenses,Agency Staff,EA105,5/22/2013,198406,407.56,REVENUE,MATRIX SCM LTD,108117
North East Lincolnshire Council,http://statistics.data.gov.uk/id/local-authority/00FC,Governance And Transformation,Transformation Project,Transformation Programme,Direct Employee Expenses,Agency Staff,EA105,5/23/2013,199034,407.56,REVENUE,MATRIX SCM LTD,108117
North East Lincolnshire Council,http://statistics.data.gov.uk/id/local-authority/00FC,Governance And Transformation,Transformation Project,Transformation Programme,Direct Employee Expenses,Agency Staff,EA105,5/23/2013,199032,410.35,REVENUE,MATRIX SCM LTD,108117
North East Lincolnshire Council,http://statistics.data.gov.uk/id/local-authority/00FC,Cap Resources,Cap Commission & Inform System,Capita One,Cap Veh Plt Eqp-Prof Fees,Cap Veh Plt Eqp-Prof Fees,YB103,5/30/2013,199925,486.16,CAPITAL,MATRIX SCM LTD,108117
North East Lincolnshire Council,http://statistics.data.gov.uk/id/local-authority/00FC,Cap Resources,Cap Commission & Inform System,Capita One,Cap Veh Plt Eqp-Prof Fees,Cap Veh Plt Eqp-Prof Fees,YB103,5/30/2013,199342,486.16,CAPITAL,MATRIX SCM LTD,108117
North East Lincolnshire Council,http://statistics.data.gov.uk/id/local-authority/00FC,Resources,Commission & Information Sys,Information Technology,Direct Employee Expenses,Agency Staff,EA105,5/23/2013,199034,550.90,REVENUE,MATRIX SCM LTD,108117
North East Lincolnshire Council,http://statistics.data.gov.uk/id/local-authority/00FC,Resources,Commission & Information Sys,Information Technology,Direct Employee Expenses,Agency Staff,EA105,5/23/2013,199032,580.27,REVENUE,MATRIX SCM LTD,108117
North East Lincolnshire Council,http://statistics.data.gov.uk/id/local-authority/00FC,Cap Resources,Cap Commission & Inform System,Capita One,Cap Veh Plt Eqp-Prof Fees,Cap Veh Plt Eqp-Prof Fees,YB103,5/22/2013,198406,609.76,CAPITAL,MATRIX SCM LTD,108117
North East Lincolnshire Council,http://statistics.data.gov.uk/id/local-authority/00FC,Cap Resources,Cap Commission & Inform System,Capita One,Cap Veh Plt Eqp-Prof Fees,Cap Veh Plt Eqp-Prof Fees,YB103,5/23/2013,199032,609.76,CAPITAL,MATRIX SCM LTD,108117
North East Lincolnshire Council,http://statistics.data.gov.uk/id/local-authority/00FC,Cap Resources,Cap Commission & Inform System,Capita One,Cap Veh Plt Eqp-Prof Fees,Cap Veh Plt Eqp-Prof Fees,YB103,5/23/2013,199034,609.76,CAPITAL,MATRIX SCM LTD,108117
North East Lincolnshire Council,http://statistics.data.gov.uk/id/local-authority/00FC,Cap Resources,Cap Commission & Inform System,Capita One,Cap Veh Plt Eqp-Prof Fees,Cap Veh Plt Eqp-Prof Fees,YB103,5/23/2013,199033,609.76,CAPITAL,MATRIX SCM LTD,108117
North East Lincolnshire Council,http://statistics.data.gov.uk/id/local-authority/00FC,Resources,Commission & Information Sys,Information Technology,Direct Employee Expenses,Agency Staff,EA105,5/22/2013,198406,639.02,REVENUE,MATRIX SCM LTD,108117
North East Lincolnshire Council,http://statistics.data.gov.uk/id/local-authority/00FC,Resources,Governance & Business Support,Human Resources,Direct Employee Expenses,Agency Staff,EA105,5/23/2013,199034,686.67,REVENUE,MATRIX SCM LTD,108117
North East Lincolnshire Council,http://statistics.data.gov.uk/id/local-authority/00FC,Environment Economy & Housing,Neighbourhood Services,Waste Collection,Direct Employee Expenses,Agency Staff,EA105,5/30/2013,199925,754.66,REVENUE,MATRIX SCM LTD,108117
North East Lincolnshire Council,http://statistics.data.gov.uk/id/local-authority/00FC,Environment Economy & Housing,Neighbourhood Services,Waste Collection,Direct Employee Expenses,Agency Staff,EA105,5/23/2013,199034,872.69,REVENUE,MATRIX SCM LTD,108117
North East Lincolnshire Council,http://statistics.data.gov.uk/id/local-authority/00FC,Resources,Governance & Business Support,Human Resources,Direct Employee Expenses,Agency Staff,EA105,5/22/2013,198406,898.52,REVENUE,MATRIX SCM LTD,108117
North East Lincolnshire Council,http://statistics.data.gov.uk/id/local-authority/00FC,Resources,Commission & Information Sys,Information Technology,Direct Employee Expenses,Agency Staff,EA105,5/30/2013,199342,"1,020.98",REVENUE,MATRIX SCM LTD,108117
North East Lincolnshire Council,http://statistics.data.gov.uk/id/local-authority/00FC,Environment Economy & Housing,Neighbourhood Services,Waste Collection,Direct Employee Expenses,Agency Staff,EA105,5/23/2013,199032,"1,073.94",REVENUE,MATRIX SCM LTD,108117
North East Lincolnshire Council,http://statistics.data.gov.uk/id/local-authority/00FC,Resources,Commission & Information Sys,Information Technology,Direct Employee Expenses,Agency Staff,EA105,5/30/2013,199925,"1,115.62",REVENUE,MATRIX SCM LTD,108117
North East Lincolnshire Council,http://statistics.data.gov.uk/id/local-authority/00FC,Environment Economy & Housing,Neighbourhood Services,Waste Collection,Direct Employee Expenses,Agency Staff,EA105,5/22/2013,198406,"1,134.55",REVENUE,MATRIX SCM LTD,108117
North East Lincolnshire Council,http://statistics.data.gov.uk/id/local-authority/00FC,Resources,Commission & Information Sys,Child Protection / Safeguardin,Direct Employee Expenses,Agency Staff,EA105,5/30/2013,199342,"1,303.34",REVENUE,MATRIX SCM LTD,108117
North East Lincolnshire Council,http://statistics.data.gov.uk/id/local-authority/00FC,Environment Economy & Housing,Neighbourhood Services,Waste Collection,Direct Employee Expenses,Agency Staff,EA105,5/23/2013,199033,"1,672.39",REVENUE,MATRIX SCM LTD,108117
North East Lincolnshire Council,http://statistics.data.gov.uk/id/local-authority/00FC,Resources,Governance & Business Support,Legal Services,Direct Employee Expenses,Agency Staff,EA105,5/22/2013,198406,"2,032.64",REVENUE,MATRIX SCM LTD,108117
North East Lincolnshire Council,http://statistics.data.gov.uk/id/local-authority/00FC,Resources,Governance & Business Support,Legal Services,Direct Employee Expenses,Agency Staff,EA105,5/30/2013,199925,"2,266.89",REVENUE,MATRIX SCM LTD,108117
North East Lincolnshire Council,http://statistics.data.gov.uk/id/local-authority/00FC,Resources,Governance & Business Support,Legal Services,Direct Employee Expenses,Agency Staff,EA105,5/30/2013,199342,"2,496.06",REVENUE,MATRIX SCM LTD,108117
North East Lincolnshire Council,http://statistics.data.gov.uk/id/local-authority/00FC,Resources,Governance & Business Support,Legal Services,Direct Employee Expenses,Agency Staff,EA105,5/23/2013,199034,"3,399.06",REVENUE,MATRIX SCM LTD,108117
North East Lincolnshire Council,http://statistics.data.gov.uk/id/local-authority/00FC,Resources,Commission & Information Sys,Central Commissioning & Delive,Direct Employee Expenses,Agency Staff,EA105,5/22/2013,198406,"3,587.75",REVENUE,MATRIX SCM LTD,108117
North East Lincolnshire Council,http://statistics.data.gov.uk/id/local-authority/00FC,Resources,Governance & Business Support,Legal Services,Direct Employee Expenses,Agency Staff,EA105,5/23/2013,199032,"3,647.97",REVENUE,MATRIX SCM LTD,108117
North East Lincolnshire Council,http://statistics.data.gov.uk/id/local-authority/00FC,Resources,Commission & Information Sys,Central Commissioning & Delive,Direct Employee Expenses,Agency Staff,EA105,5/30/2013,199342,"7,161.31",REVENUE,MATRIX SCM LTD,108117
North East Lincolnshire Council,http://statistics.data.gov.uk/id/local-authority/00FC,Environment Economy & Housing,Development,Transport Policy,Private Contractors,Contract Payments,PH105,5/8/2013,187899,"-1,861.02",REVENUE,MAY GURNEY FLEET & PASSENGER SERVICES,101159
North East Lincolnshire Council,http://statistics.data.gov.uk/id/local-authority/00FC,Environment Economy & Housing,Development,Community Investment Team,Private Contractors,Third Party Prov - Private,PH101,5/16/2013,194635,"1,731.00",REVENUE,MAYNE GAS HEATING LTD,101861
North East Lincolnshire Council,http://statistics.data.gov.uk/id/local-authority/00FC,Cap Economy Env And Housing,Cap Development,Housing Assistance,Cap Grants To O/Side Sources,Cap Grants To O/Side Sources,YJ101,5/15/2013,196624,"2,900.00",CAPITAL,MAYNE GAS HEATING LTD,101861
North East Lincolnshire Council,http://statistics.data.gov.uk/id/local-authority/00FC,Environment Economy & Housing,Neighbourhood Services,Waste Disposal And Strategy,Communications And Computing,Computer S/Ware - Maintenance,LF102,5/30/2013,190071,"4,250.00",REVENUE,MAYRISE LIMITED,101670
North East Lincolnshire Council,http://statistics.data.gov.uk/id/local-authority/00FC,Cap Economy Env And Housing,Cap Development,Hps-Disabled Fac. Grants,Cap Grants To O/Side Sources,Cap Grants To O/Side Sources,YJ101,5/8/2013,195507,"2,003.48",CAPITAL,MEARS LTD,102433
North East Lincolnshire Council,http://statistics.data.gov.uk/id/local-authority/00FC,Cap Economy Env And Housing,Cap Development,Hps-Disabled Fac. Grants,Cap Grants To O/Side Sources,Cap Grants To O/Side Sources,YJ101,5/30/2013,190663,"2,235.61",CAPITAL,MEARS LTD,102433
North East Lincolnshire Council,http://statistics.data.gov.uk/id/local-authority/00FC,Cap Economy Env And Housing,Cap Development,Hps-Disabled Fac. Grants,Cap Grants To O/Side Sources,Cap Grants To O/Side Sources,YJ101,5/30/2013,196466,"5,030.07",CAPITAL,MEARS LTD,102433
North East Lincolnshire Council,http://statistics.data.gov.uk/id/local-authority/00FC,Cap Economy Env And Housing,Cap Development,Hps-Disabled Fac. Grants,Cap Grants To O/Side Sources,Cap Grants To O/Side Sources,YJ101,5/30/2013,196468,"5,047.11",CAPITAL,MEARS LTD,102433
North East Lincolnshire Council,http://statistics.data.gov.uk/id/local-authority/00FC,Resources,Governance & Business Support,Coroners,Communications And Computing,Computer S/Ware - Licences,LF103,5/2/2013,194151,"1,975.00",REVENUE,MERIDIAN LAW LTD,102764
North East Lincolnshire Council,http://statistics.data.gov.uk/id/local-authority/00FC,Governance And Transformation,Transformation Project,Transformation Programme,Indirect Employee Expenses,Staff Training,EB122,5/15/2013,196242,966.00,REVENUE,MIDLAND HR CUSTOMER ASSOCIATION,119273
North East Lincolnshire Council,http://statistics.data.gov.uk/id/local-authority/00FC,Cap Governance And Trans,Cap Transformation Project,Transformation Programme,Cap Intangible Assets,Cap Intangible Assets,YH101,5/9/2013,196157,REDACTED COMMERCIALLY SENSITIVE,CAPITAL,MIDLAND SOFTWARE LTD,102633
North East Lincolnshire Council,http://statistics.data.gov.uk/id/local-authority/00FC,Cap Governance And Trans,Cap Transformation Project,Transformation Programme,Cap Intangible Assets,Cap Intangible Assets,YH101,5/9/2013,196162,REDACTED COMMERCIALLY SENSITIVE,CAPITAL,MIDLAND SOFTWARE LTD,102633
North East Lincolnshire Council,http://statistics.data.gov.uk/id/local-authority/00FC,People And Communities,Vulnerable Young People,School Access Governor Student,Contract Hire-Operating Leases,Vehicles - Contract Hire,JC101,5/30/2013,199827,REDACTED COMMERCIALLY SENSITIVE,REVENUE,MILLMAN COACHES,100700
North East Lincolnshire Council,http://statistics.data.gov.uk/id/local-authority/00FC,People And Communities,Vulnerable Young People,School Access Governor Student,Contract Hire-Operating Leases,Vehicles - Contract Hire,JC101,5/30/2013,199825,REDACTED COMMERCIALLY SENSITIVE,REVENUE,MILLMAN COACHES,100700
North East Lincolnshire Council,http://statistics.data.gov.uk/id/local-authority/00FC,People And Communities,Vulnerable Young People,School Access Governor Student,Contract Hire-Operating Leases,Vehicles - Contract Hire,JC101,5/23/2013,188928,REDACTED COMMERCIALLY SENSITIVE,REVENUE,MINICABS CLEETHORPES (LINCS) LTD,102124
North East Lincolnshire Council,http://statistics.data.gov.uk/id/local-authority/00FC,People And Communities,Vulnerable Young People,School Access Governor Student,Contract Hire-Operating Leases,Vehicles - Contract Hire,JC101,5/23/2013,189499,REDACTED COMMERCIALLY SENSITIVE,REVENUE,MINICABS CLEETHORPES (LINCS) LTD,102124
North East Lincolnshire Council,http://statistics.data.gov.uk/id/local-authority/00FC,People And Communities,Vulnerable Young People,Safeguarding,Miscellaneous Expenses,Legal Fees - General,LL103,5/7/2013,194104,715.00,REVENUE,REDACTED PERSONAL INFORMATION,REDACTED PERSONAL INFORMATION
North East Lincolnshire Council,http://statistics.data.gov.uk/id/local-authority/00FC,Environment Economy & Housing,Development,Transport Policy,Miscellaneous Expenses,Other Expenses General,LL119,5/10/2013,194184,675.00,REVENUE,MODESHIFT,119471
North East Lincolnshire Council,http://statistics.data.gov.uk/id/local-authority/00FC,Resources,Governance & Business Support,Audit / Insurance And Risk,Indirect Employee Expenses,Staff Training,EB122,5/30/2013,199256,998.00,REVENUE,MORGAN KAI LTD,103871
North East Lincolnshire Council,http://statistics.data.gov.uk/id/local-authority/00FC,Resources,Governance & Business Support,Audit / Insurance And Risk,Communications And Computing,Computer S/Ware - Maintenance,LF102,5/30/2013,199256,"1,995.00",REVENUE,MORGAN KAI LTD,103871
North East Lincolnshire Council,http://statistics.data.gov.uk/id/local-authority/00FC,Resources,Governance & Business Support,Audit / Insurance And Risk,Communications And Computing,Computer S/Ware - Licences,LF103,5/30/2013,199256,"3,308.00",REVENUE,MORGAN KAI LTD,103871
North East Lincolnshire Council,http://statistics.data.gov.uk/id/local-authority/00FC,People And Communities,Strat Dir People & Communities,Subscription And Insurance Sla,Miscellaneous Expenses,Licences,LL116,5/15/2013,196621,529.38,REVENUE,MOTION PICTURE LICENSING COMPANY,101852
North East Lincolnshire Council,http://statistics.data.gov.uk/id/local-authority/00FC,People And Communities,Improved Health,Improved Health Operational,Equip / Furniture / Materials,Health & Safety Supplies,LA116,5/7/2013,194988,252.00,REVENUE,MOUNTWAY LTD,101232
North East Lincolnshire Council,http://statistics.data.gov.uk/id/local-authority/00FC,People And Communities,Improved Health,Improved Health Operational,Equip / Furniture / Materials,Health & Safety Supplies,LA116,5/8/2013,195014,"1,265.00",REVENUE,MOUNTWAY LTD,101232
North East Lincolnshire Council,http://statistics.data.gov.uk/id/local-authority/00FC,People And Communities,Vulnerable Young People,Safeguarding,Indirect Employee Expenses,Staff Training,EB122,5/15/2013,192025,"3,900.00",REVENUE,MR M A CHARLES,108653
North East Lincolnshire Council,http://statistics.data.gov.uk/id/local-authority/00FC,Resources,Governance & Business Support,Legal Services,Indirect Employee Expenses,Professional Fees - Employees,EB115,5/15/2013,196580,750.00,REVENUE,MR N A CAMERON,107309
North East Lincolnshire Council,http://statistics.data.gov.uk/id/local-authority/00FC,Resources,Finance & Assets,Cfs Assets & Pc Programme,Miscellaneous Expenses,Legal Fees - General,LL103,5/2/2013,194527,900.00,REVENUE,MR N A CAMERON,107309
North East Lincolnshire Council,http://statistics.data.gov.uk/id/local-authority/00FC,Environment Economy & Housing,Development,Community Investment Team,Private Contractors,Third Party Prov - Private,PH101,5/30/2013,199691,420.00,REVENUE,MR STEVE FERRAND,120568
North East Lincolnshire Council,http://statistics.data.gov.uk/id/local-authority/00FC,Resources,Governance & Business Support,Human Resources,Indirect Employee Expenses,Staff Training,EB122,5/8/2013,195110,450.00,REVENUE,MRS S BARNSLEY,101143
North East Lincolnshire Council,http://statistics.data.gov.uk/id/local-authority/00FC,Environment Economy & Housing,Culture Leisure & Sport,Art & Sports Development,Other Agencies,Performers,PJ101,5/27/2013,199249,250.00,REVENUE,MS S BEASLEY,101215
North East Lincolnshire Council,http://statistics.data.gov.uk/id/local-authority/00FC,Resources,Governance & Business Support,Human Resources,Indirect Employee Expenses,Medical Expenses - Employees,EB112,5/1/2013,194657,385.57,REVENUE,N LINCS & GOOLE HOSPITALS NHS,111074
North East Lincolnshire Council,http://statistics.data.gov.uk/id/local-authority/00FC,Resources,Governance & Business Support,Human Resources,Indirect Employee Expenses,Medical Expenses - Employees,EB112,5/15/2013,197516,593.99,REVENUE,N LINCS & GOOLE HOSPITALS NHS,111074
North East Lincolnshire Council,http://statistics.data.gov.uk/id/local-authority/00FC,Resources,Commission & Information Sys,Informatics And Research,Communications And Computing,Computer S/Ware - Licences,LF103,5/10/2013,193958,"2,531.93",REVENUE,NATIONAL CONSORTIUM FOR EXAMINATION RESULTS,110067
North East Lincolnshire Council,http://statistics.data.gov.uk/id/local-authority/00FC,People And Communities,Vulnerable Young People,Youth Offending Team,Indirect Employee Expenses,Staff Training,EB122,5/7/2013,194576,"1,750.00",REVENUE,NATIONAL COUNCIL FOR VOLUNTARY ORGANISATIONS,119236
North East Lincolnshire Council,http://statistics.data.gov.uk/id/local-authority/00FC,Environment Economy & Housing,Culture Leisure & Sport,Tourist Information Centre,Miscellaneous Income,Miscellaneous Income,VG101,5/23/2013,199035,REDACTED COMMERCIALLY SENSITIVE,REVENUE,NATIONAL EXPRESS LTD,100835
North East Lincolnshire Council,http://statistics.data.gov.uk/id/local-authority/00FC,Environment Economy & Housing,Culture Leisure & Sport,Tourist Information Centre,Miscellaneous Income,Miscellaneous Income,VG101,5/23/2013,199036,REDACTED COMMERCIALLY SENSITIVE,REVENUE,NATIONAL EXPRESS LTD,100835
North East Lincolnshire Council,http://statistics.data.gov.uk/id/local-authority/00FC,Environment Economy & Housing,Culture Leisure & Sport,Tourist Information Centre,Private Contractors,Third Party Prov - Private,PH101,5/23/2013,199036,REDACTED COMMERCIALLY SENSITIVE,REVENUE,NATIONAL EXPRESS LTD,100835
North East Lincolnshire Council,http://statistics.data.gov.uk/id/local-authority/00FC,Environment Economy & Housing,Culture Leisure & Sport,Tourist Information Centre,Private Contractors,Third Party Prov - Private,PH101,5/23/2013,199035,REDACTED COMMERCIALLY SENSITIVE,REVENUE,NATIONAL EXPRESS LTD,100835
North East Lincolnshire Council,http://statistics.data.gov.uk/id/local-authority/00FC,People And Communities,Improved Health,Supporting People,Other Agencies,Third Pp - Block Subsidy,PJ102,5/20/2013,198160,REDACTED COMMERCIALLY SENSITIVE,REVENUE,NAVIGO,104262
North East Lincolnshire Council,http://statistics.data.gov.uk/id/local-authority/00FC,People And Communities,Vulnerable Young People,Sen/Inclusion,Other Local Authorities,Third Pp - Other Local Auth,PC101,5/7/2013,194872,"7,743.32",REVENUE,NEW OPTIONS LTD,105590
North East Lincolnshire Council,http://statistics.data.gov.uk/id/local-authority/00FC,People And Communities,Vulnerable Young People,Sen/Inclusion,Other Local Authorities,Third Pp - Other Local Auth,PC101,5/7/2013,194873,"8,672.04",REVENUE,NEW OPTIONS LTD,105590
North East Lincolnshire Council,http://statistics.data.gov.uk/id/local-authority/00FC,Cap Economy Env And Housing,Cap Development,Housing Assistance,Cap Grants To O/Side Sources,Cap Grants To O/Side Sources,YJ101,5/8/2013,194762,487.00,CAPITAL,NEWGLAZE,100642
North East Lincolnshire Council,http://statistics.data.gov.uk/id/local-authority/00FC,Environment Economy & Housing,Neighbourhood Services,Waste Disposal And Strategy,Customer And Client Receipts,Sales - Std Vat 7,VC101,5/15/2013,196470,REDACTED COMMERCIALLY SENSITIVE,REVENUE,NEWLINCS DEVELOPMENT LTD,101125
North East Lincolnshire Council,http://statistics.data.gov.uk/id/local-authority/00FC,Environment Economy & Housing,Neighbourhood Services,Waste Disposal And Strategy,Customer And Client Receipts,Sales - Std Vat 7,VC101,5/21/2013,198359,REDACTED COMMERCIALLY SENSITIVE,REVENUE,NEWLINCS DEVELOPMENT LTD,101125
North East Lincolnshire Council,http://statistics.data.gov.uk/id/local-authority/00FC,Environment Economy & Housing,Neighbourhood Services,Waste Disposal And Strategy,Customer And Client Receipts,Fees/Chrgs-O/Side Scope Vat 4,VC125,5/21/2013,198359,REDACTED COMMERCIALLY SENSITIVE,REVENUE,NEWLINCS DEVELOPMENT LTD,101125
North East Lincolnshire Council,http://statistics.data.gov.uk/id/local-authority/00FC,Environment Economy & Housing,Neighbourhood Services,Waste Disposal And Strategy,Private Contractors,Contract Payments,PH105,5/8/2013,194776,REDACTED COMMERCIALLY SENSITIVE,REVENUE,NEWLINCS DEVELOPMENT LTD,101125
North East Lincolnshire Council,http://statistics.data.gov.uk/id/local-authority/00FC,Environment Economy & Housing,Neighbourhood Services,Waste Disposal And Strategy,Private Contractors,Contract Payments Landfill Tax,PH106,5/21/2013,198359,REDACTED COMMERCIALLY SENSITIVE,REVENUE,NEWLINCS DEVELOPMENT LTD,101125
North East Lincolnshire Council,http://statistics.data.gov.uk/id/local-authority/00FC,Environment Economy & Housing,Neighbourhood Services,Waste Disposal And Strategy,Private Contractors,Contract Payments Landfill Tax,PH106,5/15/2013,196470,REDACTED COMMERCIALLY SENSITIVE,REVENUE,NEWLINCS DEVELOPMENT LTD,101125
North East Lincolnshire Council,http://statistics.data.gov.uk/id/local-authority/00FC,Environment Economy & Housing,Neighbourhood Services,Waste Disposal And Strategy,Private Contractors,Contract Payments,PH105,5/15/2013,196470,REDACTED COMMERCIALLY SENSITIVE,REVENUE,NEWLINCS DEVELOPMENT LTD,101125
North East Lincolnshire Council,http://statistics.data.gov.uk/id/local-authority/00FC,Environment Economy & Housing,Neighbourhood Services,Waste Disposal And Strategy,Private Contractors,Contract Payments,PH105,5/21/2013,198359,REDACTED COMMERCIALLY SENSITIVE,REVENUE,NEWLINCS DEVELOPMENT LTD,101125
North East Lincolnshire Council,http://statistics.data.gov.uk/id/local-authority/00FC,People And Communities,Childrens Hlth & Family Supp,Childrens Centre Development,Equip / Furniture / Materials,Non-Teaching Resources,LA118,5/21/2013,196785,295.63,REVENUE,NHS SUPPLY CHAIN,104782
North East Lincolnshire Council,http://statistics.data.gov.uk/id/local-authority/00FC,Chief Executive,Public Health,Public Hlth - Improved Health,Communications And Computing,Computer H/Ware - Purchases,LF105,5/13/2013,196550,300.00,REVENUE,NORTH 51 LIMITED,102609
North East Lincolnshire Council,http://statistics.data.gov.uk/id/local-authority/00FC,People And Communities,Improved Health,Improved Health Operational,Consultancy,Consultancy,PL101,5/22/2013,198542,"10,000.00",REVENUE,NORTH BANK FORUM,120031
North East Lincolnshire Council,http://statistics.data.gov.uk/id/local-authority/00FC,People And Communities,Improved Health,Improved Health Operational,Consultancy,Consultancy,PL101,5/22/2013,198531,"29,539.50",REVENUE,NORTH BANK FORUM,120031
North East Lincolnshire Council,http://statistics.data.gov.uk/id/local-authority/00FC,People And Communities,Vulnerable Young People,Placement & Support,Clothes Uniforms And Laundry,Uniforms,LC102,5/28/2013,199348,-350.03,REVENUE,NORTH EAST LINCOLNSHIRE COUNCIL,100894
North East Lincolnshire Council,http://statistics.data.gov.uk/id/local-authority/00FC,People And Communities,Vulnerable Young People,Placement & Support,Catering,Provisions,LB101,5/28/2013,199348,-308.95,REVENUE,NORTH EAST LINCOLNSHIRE COUNCIL,100894
North East Lincolnshire Council,http://statistics.data.gov.uk/id/local-authority/00FC,People And Communities,Vulnerable Young People,Placement & Support,Miscellaneous Expenses,Activities - Service Users,LL114,5/28/2013,199348,-201.95,REVENUE,NORTH EAST LINCOLNSHIRE COUNCIL,100894
North East Lincolnshire Council,http://statistics.data.gov.uk/id/local-authority/00FC,People And Communities,Vulnerable Young People,Placement & Support,Equip / Furniture / Materials,Equipment - Purchase,LA101,5/28/2013,199348,-177.18,REVENUE,NORTH EAST LINCOLNSHIRE COUNCIL,100894
North East Lincolnshire Council,http://statistics.data.gov.uk/id/local-authority/00FC,People And Communities,Vulnerable Young People,Placement & Support,Contract Hire-Operating Leases,Vehicles - Contract Hire,JC101,5/28/2013,199348,-162.59,REVENUE,NORTH EAST LINCOLNSHIRE COUNCIL,100894
North East Lincolnshire Council,http://statistics.data.gov.uk/id/local-authority/00FC,People And Communities,Vulnerable Young People,Placement & Support,Other Agencies,Pocket Money,PJ105,5/28/2013,199348,-136.50,REVENUE,NORTH EAST LINCOLNSHIRE COUNCIL,100894
North East Lincolnshire Council,http://statistics.data.gov.uk/id/local-authority/00FC,People And Communities,Vulnerable Young People,Placement & Support,Catering,Provisions,LB101,5/28/2013,199348,-127.25,REVENUE,NORTH EAST LINCOLNSHIRE COUNCIL,100894
North East Lincolnshire Council,http://statistics.data.gov.uk/id/local-authority/00FC,People And Communities,Vulnerable Young People,Placement & Support,Public Transport,Public Transport - Serv User,JD102,5/28/2013,199348,-118.45,REVENUE,NORTH EAST LINCOLNSHIRE COUNCIL,100894
North East Lincolnshire Council,http://statistics.data.gov.uk/id/local-authority/00FC,People And Communities,Vulnerable Young People,Placement & Support,Catering,Provisions,LB101,5/28/2013,199348,-84.07,REVENUE,NORTH EAST LINCOLNSHIRE COUNCIL,100894
North East Lincolnshire Council,http://statistics.data.gov.uk/id/local-authority/00FC,People And Communities,Vulnerable Young People,Placement & Support,Contract Hire-Operating Leases,Vehicles - Contract Hire,JC101,5/28/2013,199348,-81.52,REVENUE,NORTH EAST LINCOLNSHIRE COUNCIL,100894
North East Lincolnshire Council,http://statistics.data.gov.uk/id/local-authority/00FC,People And Communities,Vulnerable Young People,Placement & Support,Other Agencies,Mobile Phones,PJ136,5/28/2013,199348,-47.00,REVENUE,NORTH EAST LINCOLNSHIRE COUNCIL,100894
North East Lincolnshire Council,http://statistics.data.gov.uk/id/local-authority/00FC,People And Communities,Vulnerable Young People,Placement & Support,Miscellaneous Expenses,Activities - Service Users,LL114,5/28/2013,199348,-33.51,REVENUE,NORTH EAST LINCOLNSHIRE COUNCIL,100894
North East Lincolnshire Council,http://statistics.data.gov.uk/id/local-authority/00FC,People And Communities,Vulnerable Young People,Placement & Support,Other Agencies,Personal Items,PJ115,5/28/2013,199348,-32.64,REVENUE,NORTH EAST LINCOLNSHIRE COUNCIL,100894
North East Lincolnshire Council,http://statistics.data.gov.uk/id/local-authority/00FC,People And Communities,Vulnerable Young People,Placement & Support,Cleaning And Domestic Supplies,Cleaning - Window Cleaning,GH101,5/28/2013,199348,-15.00,REVENUE,NORTH EAST LINCOLNSHIRE COUNCIL,100894
North East Lincolnshire Council,http://statistics.data.gov.uk/id/local-authority/00FC,People And Communities,Vulnerable Young People,Placement & Support,Cleaning And Domestic Supplies,Cleaning - Consumables,GH103,5/28/2013,199348,-12.29,REVENUE,NORTH EAST LINCOLNSHIRE COUNCIL,100894
North East Lincolnshire Council,http://statistics.data.gov.uk/id/local-authority/00FC,People And Communities,Vulnerable Young People,Placement & Support,Communications And Computing,Postage,LF111,5/28/2013,199348,-7.20,REVENUE,NORTH EAST LINCOLNSHIRE COUNCIL,100894
North East Lincolnshire Council,http://statistics.data.gov.uk/id/local-authority/00FC,People And Communities,Vulnerable Young People,Placement & Support,Print Stationery / Gen Off Exp,Printing And Stationery,LD103,5/28/2013,199348,-1.62,REVENUE,NORTH EAST LINCOLNSHIRE COUNCIL,100894
North East Lincolnshire Council,http://statistics.data.gov.uk/id/local-authority/00FC,People And Communities,Vulnerable Young People,Placement & Support,Print Stationery / Gen Off Exp,Printing And Stationery,LD103,5/28/2013,199348,-1.45,REVENUE,NORTH EAST LINCOLNSHIRE COUNCIL,100894
North East Lincolnshire Council,http://statistics.data.gov.uk/id/local-authority/00FC,People And Communities,Vulnerable Young People,Placement & Support,Cleaning And Domestic Supplies,Cleaning - Consumables,GH103,5/28/2013,199348,-1.08,REVENUE,NORTH EAST LINCOLNSHIRE COUNCIL,100894
North East Lincolnshire Council,http://statistics.data.gov.uk/id/local-authority/00FC,People And Communities,Vulnerable Young People,Placement & Support,Catering,Provisions,LB101,5/22/2013,197284,308.95,REVENUE,NORTH EAST LINCOLNSHIRE COUNCIL,100894
North East Lincolnshire Council,http://statistics.data.gov.uk/id/local-authority/00FC,People And Communities,Vulnerable Young People,Placement & Support,Clothes Uniforms And Laundry,Uniforms,LC102,5/22/2013,197284,350.03,REVENUE,NORTH EAST LINCOLNSHIRE COUNCIL,100894
North East Lincolnshire Council,http://statistics.data.gov.uk/id/local-authority/00FC,Environment Economy & Housing,Development,Car Parks,Rates,Rates,GD101,5/7/2013,195424,462.00,REVENUE,NORTH EAST LINCOLNSHIRE COUNCIL,100894
North East Lincolnshire Council,http://statistics.data.gov.uk/id/local-authority/00FC,Environment Economy & Housing,Culture Leisure & Sport,Events,Rates,Rates,GD101,5/23/2013,198836,462.00,REVENUE,NORTH EAST LINCOLNSHIRE COUNCIL,100894
North East Lincolnshire Council,http://statistics.data.gov.uk/id/local-authority/00FC,Environment Economy & Housing,Development,Car Parks,Rates,Rates,GD101,5/7/2013,195407,577.50,REVENUE,NORTH EAST LINCOLNSHIRE COUNCIL,100894
North East Lincolnshire Council,http://statistics.data.gov.uk/id/local-authority/00FC,Environment Economy & Housing,Development,Strat Hous Out Of Scope,Rents,Rent,GC101,5/9/2013,196185,665.07,REVENUE,NORTH EAST LINCOLNSHIRE COUNCIL,100894
North East Lincolnshire Council,http://statistics.data.gov.uk/id/local-authority/00FC,Environment Economy & Housing,Development,Car Parks,Rates,Rates,GD101,5/7/2013,194879,669.90,REVENUE,NORTH EAST LINCOLNSHIRE COUNCIL,100894
North East Lincolnshire Council,http://statistics.data.gov.uk/id/local-authority/00FC,Environment Economy & Housing,Development,Car Parks,Rates,Rates,GD101,5/7/2013,195405,900.90,REVENUE,NORTH EAST LINCOLNSHIRE COUNCIL,100894
North East Lincolnshire Council,http://statistics.data.gov.uk/id/local-authority/00FC,Resources,Finance & Assets,Cfs Assets & Pc Programme,Rates,Rates,GD101,5/14/2013,197187,978.74,REVENUE,NORTH EAST LINCOLNSHIRE COUNCIL,100894
North East Lincolnshire Council,http://statistics.data.gov.uk/id/local-authority/00FC,People And Communities,Vulnerable Young People,Through Care & Disability,Private Contractors,Third Party Prov - Private,PH101,5/7/2013,194484,"1,015.80",REVENUE,NORTH EAST LINCOLNSHIRE COUNCIL,100894
North East Lincolnshire Council,http://statistics.data.gov.uk/id/local-authority/00FC,Environment Economy & Housing,Neighbourhood Services,Beach Safety,Rates,Rates,GD101,5/2/2013,193935,"1,039.50",REVENUE,NORTH EAST LINCOLNSHIRE COUNCIL,100894
North East Lincolnshire Council,http://statistics.data.gov.uk/id/local-authority/00FC,Environment Economy & Housing,Development,Car Parks,Rates,Rates,GD101,5/7/2013,195416,"1,247.40",REVENUE,NORTH EAST LINCOLNSHIRE COUNCIL,100894
North East Lincolnshire Council,http://statistics.data.gov.uk/id/local-authority/00FC,Resources,Finance & Assets,Cfs Assets & Pc Programme,Rates,Rates,GD101,5/7/2013,195350,"1,333.84",REVENUE,NORTH EAST LINCOLNSHIRE COUNCIL,100894
North East Lincolnshire Council,http://statistics.data.gov.uk/id/local-authority/00FC,Environment Economy & Housing,Development,Car Parks,Rates,Rates,GD101,5/7/2013,195390,"1,386.00",REVENUE,NORTH EAST LINCOLNSHIRE COUNCIL,100894
